Workbook

Sheet Report - GR
D1: New Cohort | X1: Program Code: | Z1: Grad1
D2: New Cohort | X2: Prorgram Name | Z2: =INDEX(Data!A:P,MATCH(Z1,Data!A:A,0),15) -> CIP Program Description Grad #1
D3: New Cohort | X3: Program Department: | Z3: =INDEX(Data!A:P,MATCH(Z1,Data!A:A,0),14) -> Department Grad Example #1
D4: New Cohort | X4: Program College: | Z4: =INDEX(Data!A:P,MATCH(Z1,Data!A:A,0),13) -> College Grad Example #1
W7: Success Summary
D12: New Cohort | G12: @1 year | O12: @2 years | W12: @3 years | AE12: @4 years | AM12: @6 years
D13: 0.5
B14: Year | D14: New Cohort | G14: Program Success | I14: Non-program Success | K14: Not Retained | O14: Program Success | Q14: Non-program Success | S14: Not Retained | W14: Program Success | Y14: Non-program Success | AA14: Not Retained | AE14: Program Success | AG14: Non-program Success | AI14: Not Retained | AM14: Program Success | AO14: Non-program Success | AQ14: Not Retained
B15: =INDEX(Academic_Years_Report,COUNTA(Academic_Years_Report)-7) -> 2003-2004 | D15: =D76 -> 15 | G15: =SUM(G76:H76) -> 0.8 | I15: =SUM(I76:J76) -> 0 | K15: =K76 -> 0.2 | O15: =SUM(O76:P76) -> 0.8 | Q15: =SUM(Q76:R76) -> 0 | S15: =S76 -> 0.2 | W15: =SUM(W76:X76) -> 0.7333333333 | Y15: =SUM(Y76:Z76) -> 0 | AA15: =AA76 -> 0.2666666667 | AE15: =SUM(AE76:AF76) -> 0.6666666667 | AG15: =SUM(AG76:AH76) -> 0.06666666667 | AI15: =AI76 -> 0.2666666667 | AM15: =SUM(AM76:AN76) -> 0.6 | AO15: =SUM(AO76:AP76) -> 0.06666666667 | AQ15: =AQ76 -> 0.3333333333
B16: =INDEX(Academic_Years_Report,COUNTA(Academic_Years_Report)-6) -> 2004-2005 | D16: 15 | G16: 0.6666666667 | I16: 0.1333333333 | K16: 0.2 | O16: 0.6666666667 | Q16: 0.06666666667 | S16: 0.2666666667 | W16: 0.5333333333 | Y16: 0.06666666667 | AA16: 0.4 | AE16: 0.5333333333 | AG16: 0.06666666667 | AI16: 0.4 | AM16: 0.5333333333 | AO16: 0.06666666667 | AQ16: 0.4
B17: =INDEX(Academic_Years_Report,COUNTA(Academic_Years_Report)-5) -> 2005-2006 | D17: 25 | G17: 0.72 | I17: 0.04 | K17: 0.24 | O17: 0.64 | Q17: 0.12 | S17: 0.24 | W17: 0.56 | Y17: 0.16 | AA17: 0.28 | AE17: 0.56 | AG17: 0.16 | AI17: 0.28 | AM17: =SUM(AM78:AN78) -> 0.56 | AO17: =SUM(AO78:AP78) -> 0.16 | AQ17: =AQ78 -> 0.28
B18: =INDEX(Academic_Years_Report,COUNTA(Academic_Years_Report)-4) -> 2006-2007 | D18: 16 | G18: 0.5625 | I18: 0.125 | K18: 0.3125 | O18: 0.4375 | Q18: 0.25 | S18: 0.3125 | W18: 0.4375 | Y18: 0.1875 | AA18: 0.375 | AE18: 0.4375 | AG18: 0.125 | AI18: 0.4375
B19: =INDEX(Academic_Years_Report,COUNTA(Academic_Years_Report)-3) -> 2007-2008 | D19: 16 | G19: 0.8125 | I19: 0 | K19: 0.1875 | O19: 0.75 | Q19: 0 | S19: 0.25 | W19: 0.75 | Y19: 0.0625 | AA19: 0.1875 | AE19: =SUM(AE80:AF80) -> 0.75 | AG19: =SUM(AG80:AH80) -> 0 | AI19: =AI80 -> 0.25
B20: =INDEX(Academic_Years_Report,COUNTA(Academic_Years_Report)-2) -> 2008-2009 | D20: 25 | G20: 0.68 | I20: 0.04 | K20: 0.28 | O20: 0.72 | Q20: 0.04 | S20: 0.24 | W20: =SUM(W81:X81) -> 0.76 | Y20: =SUM(Y81:Z81) -> 0.04 | AA20: =AA81 -> 0.2
B21: =INDEX(Academic_Years_Report,COUNTA(Academic_Years_Report)-1) -> 2009-2010 | D21: 18 | G21: 0.7777777778 | I21: 0.05555555556 | K21: 0.1666666667 | O21: =SUM(O82:P82) -> 0.7777777778 | Q21: =SUM(Q82:R82) -> 0.05555555556 | S21: =S82 -> 0.1666666667
B22: =INDEX(Academic_Years_Report,COUNTA(Academic_Years_Report)-0) -> 2010-2011 | D22: =D83 -> 23 | G22: =SUM(G83:H83) -> 0.6956521739 | I22: =SUM(I83:J83) -> 0 | K22: =K83 -> 0.3043478261
W38: Average Graduate Program Data for Comparison
D39: New Cohort | G39: @1 year | O39: @2 years | W39: @3 years | AE39: @4 years | AM39: @6 years
D40: 0.5
B41: Year | D41: New Cohort | G41: Program Success | I41: Non-program Success | K41: Not Retained | O41: Program Success | Q41: Non-program Success | S41: Not Retained | W41: Program Success | Y41: Non-program Success | AA41: Not Retained | AE41: Program Success | AG41: Non-program Success | AI41: Not Retained | AM41: Program Success | AO41: Non-program Success | AQ41: Not Retained
B42: =INDEX(Academic_Years_Report,COUNTA(Academic_Years_Report)-7) -> 2003-2004 | D42: ='Process - GR AVE'!C36 -> 14.83333333 | G42: =IFERROR(SUM('Process - GR AVE'!F36:G36)/'Process - GR AVE'!$C$36,"-") -> 0.7415730337 | I42: =IFERROR(SUM('Process - GR AVE'!H36:I36)/'Process - GR AVE'!$C$36,"-") -> 0.04494382022 | K42: =IFERROR('Process - GR AVE'!J36/'Process - GR AVE'!$C$36,"-") -> 0.2134831461 | O42: =IFERROR(SUM('Process - GR AVE'!N36:O36)/'Process - GR AVE'!$C$36,"-") -> 0.6573033708 | Q42: =IFERROR(SUM('Process - GR AVE'!P36:Q36)/'Process - GR AVE'!$C$36,"-") -> 0.04494382022 | S42: =IFERROR('Process - GR AVE'!R36/'Process - GR AVE'!$C$36,"-") -> 0.297752809 | W42: =IFERROR(SUM('Process - GR AVE'!V36:W36)/'Process - GR AVE'!$C$36,"-") -> 0.6629213483 | Y42: =IFERROR(SUM('Process - GR AVE'!X36:Y36)/'Process - GR AVE'!$C$36,"-") -> 0.05056179775 | AA42: =IFERROR('Process - GR AVE'!Z36/'Process - GR AVE'!$C$36,"-") -> 0.2865168539 | AE42: =IFERROR(SUM('Process - GR AVE'!AD36:AE36)/'Process - GR AVE'!$C$36,"-") -> 0.6516853933 | AG42: =IFERROR(SUM('Process - GR AVE'!AF36:AG36)/'Process - GR AVE'!$C$36,"-") -> 0.04494382022 | AI42: =IFERROR('Process - GR AVE'!AH36/'Process - GR AVE'!$C$36,"-") -> 0.3033707865 | AM42: =IFERROR(SUM('Process - GR AVE'!AL36:AM36)/'Process - GR AVE'!$C$36,"-") -> 0.6460674157 | AO42: =IFERROR(SUM('Process - GR AVE'!AN36:AO36)/'Process - GR AVE'!$C$36,"-") -> 0.04494382022 | AQ42: =IFERROR('Process - GR AVE'!AP36/'Process - GR AVE'!$C$36,"-") -> 0.308988764
B43: =INDEX(Academic_Years_Report,COUNTA(Academic_Years_Report)-6) -> 2004-2005 | D43: ='Process - GR AVE'!C40 -> 14.2 | G43: =IFERROR(SUM('Process - GR AVE'!F40:G40)/'Process - GR AVE'!$C$40,"-") -> 0.676056338 | I43: =IFERROR(SUM('Process - GR AVE'!H40:I40)/'Process - GR AVE'!$C$40,"-") -> 0.04225352113 | K43: =IFERROR('Process - GR AVE'!J40/'Process - GR AVE'!$C$40,"-") -> 0.2816901408 | O43: =IFERROR(SUM('Process - GR AVE'!N40:O40)/'Process - GR AVE'!K40,"-") -> 0.676056338 | Q43: =IFERROR(SUM('Process - GR AVE'!P40:Q40)/'Process - GR AVE'!K40,"-") -> 0.02816901408 | S43: =IFERROR('Process - GR AVE'!R40/'Process - GR AVE'!K40,"-") -> 0.2957746479 | W43: =IFERROR(SUM('Process - GR AVE'!V40:W40)/'Process - GR AVE'!S40,"-") -> 0.661971831 | Y43: =IFERROR(SUM('Process - GR AVE'!X40:Y40)/'Process - GR AVE'!S40,"-") -> 0.02816901408 | AA43: =IFERROR('Process - GR AVE'!Z40/'Process - GR AVE'!S40,"-") -> 0.3098591549 | AE43: =IFERROR(SUM('Process - GR AVE'!AD40:AE40)/'Process - GR AVE'!AA40,"-") -> 0.6338028169 | AG43: =IFERROR(SUM('Process - GR AVE'!AF40:AG40)/'Process - GR AVE'!AA40,"-") -> 0.02816901408 | AI43: =IFERROR('Process - GR AVE'!AH40/'Process - GR AVE'!AA40,"-") -> 0.338028169 | AM43: =IFERROR(SUM('Process - GR AVE'!AL40:AM40)/'Process - GR AVE'!AI40,"-") -> 0.661971831 | AO43: =IFERROR(SUM('Process - GR AVE'!AN40:AO40)/'Process - GR AVE'!AI40,"-") -> 0.02816901408 | AQ43: =IFERROR('Process - GR AVE'!AP40/'Process - GR AVE'!AI40,"-") -> 0.3098591549
B44: =INDEX(Academic_Years_Report,COUNTA(Academic_Years_Report)-5) -> 2005-2006 | D44: ='Process - GR AVE'!C44 -> 18.5 | G44: =IFERROR(SUM('Process - GR AVE'!F44:G44)/'Process - GR AVE'!$C$44,"-") -> 0.7297297297 | I44: =IFERROR(SUM('Process - GR AVE'!H44:I44)/'Process - GR AVE'!$C$44,"-") -> 0.02702702703 | K44: =IFERROR('Process - GR AVE'!J44/'Process - GR AVE'!$C$44,"-") -> 0.2432432432 | O44: =IFERROR(SUM('Process - GR AVE'!N44:O44)/'Process - GR AVE'!$C$44,"-") -> 0.6351351351 | Q44: =IFERROR(SUM('Process - GR AVE'!P44:Q44)/'Process - GR AVE'!$C$44,"-") -> 0.05405405405 | S44: =IFERROR('Process - GR AVE'!R44/'Process - GR AVE'!$C$44,"-") -> 0.3108108108 | W44: =IFERROR(SUM('Process - GR AVE'!V44:W44)/'Process - GR AVE'!$C$44,"-") -> 0.6216216216 | Y44: =IFERROR(SUM('Process - GR AVE'!X44:Y44)/'Process - GR AVE'!$C$44,"-") -> 0.06756756757 | AA44: =IFERROR('Process - GR AVE'!Z44/'Process - GR AVE'!$C$44,"-") -> 0.3108108108 | AE44: =IFERROR(SUM('Process - GR AVE'!AD44:AE44)/'Process - GR AVE'!$C$44,"-") -> 0.6216216216 | AG44: =IFERROR(SUM('Process - GR AVE'!AF44:AG44)/'Process - GR AVE'!$C$44,"-") -> 0.06756756757 | AI44: =IFERROR('Process - GR AVE'!AH44/'Process - GR AVE'!$C$44,"-") -> 0.3108108108 | AM44: =IFERROR(SUM('Process - GR AVE'!AL44:AM44)/'Process - GR AVE'!$C$44,"-") -> 0.6621621622 | AO44: =IFERROR(SUM('Process - GR AVE'!AN44:AO44)/'Process - GR AVE'!$C$44,"-") -> 0.06756756757 | AQ44: =IFERROR('Process - GR AVE'!AP44/'Process - GR AVE'!$C$44,"-") -> 0.2702702703
B45: =INDEX(Academic_Years_Report,COUNTA(Academic_Years_Report)-4) -> 2006-2007 | D45: ='Process - GR AVE'!C48 -> 10.8 | G45: =IFERROR(SUM('Process - GR AVE'!F48:G48)/'Process - GR AVE'!$C$48,"-") -> 0.6296296296 | I45: =IFERROR(SUM('Process - GR AVE'!H48:I48)/'Process - GR AVE'!$C$48,"-") -> 0.05555555556 | K45: =IFERROR('Process - GR AVE'!J48/'Process - GR AVE'!$C$48,"-") -> 0.3148148148 | O45: =IFERROR(SUM('Process - GR AVE'!N48:O48)/'Process - GR AVE'!$C$48,"-") -> 0.5925925926 | Q45: =IFERROR(SUM('Process - GR AVE'!P48:Q48)/'Process - GR AVE'!$C$48,"-") -> 0.09259259259 | S45: =IFERROR('Process - GR AVE'!R48/'Process - GR AVE'!$C$48,"-") -> 0.3148148148 | W45: =IFERROR(SUM('Process - GR AVE'!V48:W48)/'Process - GR AVE'!$C$48,"-") -> 0.5925925926 | Y45: =IFERROR(SUM('Process - GR AVE'!X48:Y48)/'Process - GR AVE'!$C$48,"-") -> 0.07407407407 | AA45: =IFERROR('Process - GR AVE'!Z48/'Process - GR AVE'!$C$48,"-") -> 0.3333333333 | AE45: =IFERROR(SUM('Process - GR AVE'!AD48:AE48)/'Process - GR AVE'!$C$48,"-") -> 0.6481481481 | AG45: =IFERROR(SUM('Process - GR AVE'!AF48:AG48)/'Process - GR AVE'!$C$48,"-") -> 0.05555555556 | AI45: =IFERROR('Process - GR AVE'!AH48/'Process - GR AVE'!$C$48,"-") -> 0.2962962963
B46: =INDEX(Academic_Years_Report,COUNTA(Academic_Years_Report)-3) -> 2007-2008 | D46: ='Process - GR AVE'!C52 -> 16.2 | G46: =IFERROR(SUM('Process - GR AVE'!F52:G52)/'Process - GR AVE'!$C$52,"-") -> 0.7037037037 | I46: =IFERROR(SUM('Process - GR AVE'!H52:I52)/'Process - GR AVE'!$C$52,"-") -> 0.04938271605 | K46: =IFERROR('Process - GR AVE'!J52/'Process - GR AVE'!$C$52,"-") -> 0.2469135802 | O46: =IFERROR(SUM('Process - GR AVE'!N52:O52)/'Process - GR AVE'!$C$52,"-") -> 0.6296296296 | Q46: =IFERROR(SUM('Process - GR AVE'!P52:Q52)/'Process - GR AVE'!$C$52,"-") -> 0.02469135802 | S46: =IFERROR('Process - GR AVE'!R52/'Process - GR AVE'!$C$52,"-") -> 0.3456790123 | W46: =IFERROR(SUM('Process - GR AVE'!V52:W52)/'Process - GR AVE'!$C$52,"-") -> 0.6666666667 | Y46: =IFERROR(SUM('Process - GR AVE'!X52:Y52)/'Process - GR AVE'!$C$52,"-") -> 0.03703703704 | AA46: =IFERROR('Process - GR AVE'!Z52/'Process - GR AVE'!$C$52,"-") -> 0.2962962963 | AE46: =IFERROR(SUM('Process - GR AVE'!AD52:AE52)/'Process - GR AVE'!$C$52,"-") -> 0.6666666667 | AG46: =IFERROR(SUM('Process - GR AVE'!AF52:AG52)/'Process - GR AVE'!$C$52,"-") -> 0.02469135802 | AI46: =IFERROR('Process - GR AVE'!AH52/'Process - GR AVE'!$C$52,"-") -> 0.3086419753
B47: =INDEX(Academic_Years_Report,COUNTA(Academic_Years_Report)-2) -> 2008-2009 | D47: ='Process - GR AVE'!C56 -> 17 | G47: =IFERROR(SUM('Process - GR AVE'!F56:G56)/'Process - GR AVE'!$C$56,"-") -> 0.7411764706 | I47: =IFERROR(SUM('Process - GR AVE'!H56:I56)/'Process - GR AVE'!$C$56,"-") -> 0.02352941176 | K47: =IFERROR('Process - GR AVE'!J56/'Process - GR AVE'!$C$56,"-") -> 0.2352941176 | O47: =IFERROR(SUM('Process - GR AVE'!N56:O56)/'Process - GR AVE'!$C$56,"-") -> 0.7294117647 | Q47: =IFERROR(SUM('Process - GR AVE'!P56:Q56)/'Process - GR AVE'!$C$56,"-") -> 0.02352941176 | S47: =IFERROR('Process - GR AVE'!R56/'Process - GR AVE'!$C$56,"-") -> 0.2470588235 | W47: =IFERROR(SUM('Process - GR AVE'!V56:W56)/'Process - GR AVE'!$C$56,"-") -> 0.7529411765 | Y47: =IFERROR(SUM('Process - GR AVE'!X56:Y56)/'Process - GR AVE'!$C$56,"-") -> 0.02352941176 | AA47: =IFERROR('Process - GR AVE'!Z56/'Process - GR AVE'!$C$56,"-") -> 0.2235294118
B48: =INDEX(Academic_Years_Report,COUNTA(Academic_Years_Report)-1) -> 2009-2010 | D48: ='Process - GR AVE'!C60 -> 18.5 | G48: =IFERROR(SUM('Process - GR AVE'!F60:G60)/'Process - GR AVE'!$C$60,"-") -> 0.7432432432 | I48: =IFERROR(SUM('Process - GR AVE'!H60:I60)/'Process - GR AVE'!$C$60,"-") -> 0.01351351351 | K48: =IFERROR('Process - GR AVE'!J60/'Process - GR AVE'!$C$60,"-") -> 0.2432432432 | O48: =IFERROR(SUM('Process - GR AVE'!N60:O60)/'Process - GR AVE'!$C$60,"-") -> 0.6756756757 | Q48: =IFERROR(SUM('Process - GR AVE'!P60:Q60)/'Process - GR AVE'!$C$60,"-") -> 0.04054054054 | S48: =IFERROR('Process - GR AVE'!R60/'Process - GR AVE'!$C$60,"-") -> 0.2837837838
B49: =INDEX(Academic_Years_Report,COUNTA(Academic_Years_Report)-0) -> 2010-2011 | D49: ='Process - GR AVE'!C64 -> 20.5 | G49: =IFERROR(SUM('Process - GR AVE'!F64:G64)/'Process - GR AVE'!$C$64,"-") -> 0.743902439 | I49: =IFERROR(SUM('Process - GR AVE'!H64:I64)/'Process - GR AVE'!$C$64,"-") -> 0 | K49: =IFERROR('Process - GR AVE'!J64/'Process - GR AVE'!$C$64,"-") -> 0.256097561
W65: Academic Year Detail
D68: New Cohort | G68: @1 year | O68: @2 years | W68: @3 years | AE68: @4 years | AM68: @6 years
D69: 0.5 | L69: 1 | T69: 2 | AB69: 3 | AJ69: 4 | AR69: 6
B70: Year | D70: New Cohort | G70: Prg Ret | H70: Prg Grad | I70: WCU Ret | J70: WCU Grad | K70: Not Retained | L70: Total | O70: Prg Ret | P70: Prg Grad | Q70: WCU Ret | R70: WCU Grad | S70: Not Retained | T70: Total | W70: Prg Ret | X70: Prg Grad | Y70: WCU Ret | Z70: WCU Grad | AA70: Not Retained | AB70: Total | AE70: Prg Ret | AF70: Prg Grad | AG70: WCU Ret | AH70: WCU Grad | AI70: Not Retained | AJ70: Total | AM70: Prg Ret | AN70: Prg Grad | AO70: WCU Ret | AP70: WCU Grad | AQ70: Not Retained | AR70: Total
B71: =INDEX(Academic_Years_Report,COUNTA(Academic_Years_Report)-12) -> 1998-1999 | D71: ='Process - GR - Numbers'!C16 -> 20 | G71: =IFERROR('Process - GR - Numbers'!F16/'Process - GR - Numbers'!$C$16,"-") -> 0.75 | H71: =IFERROR('Process - GR - Numbers'!G16/'Process - GR - Numbers'!$C$16,"-") -> 0.05 | I71: =IFERROR('Process - GR - Numbers'!H16/'Process - GR - Numbers'!$C$16,"-") -> 0.05 | J71: =IFERROR('Process - GR - Numbers'!I16/'Process - GR - Numbers'!$C$16,"-") -> 0 | K71: =IFERROR('Process - GR - Numbers'!J16/'Process - GR - Numbers'!$C$16,"-") -> 0.15 | L71: =IFERROR('Process - GR - Numbers'!K16/'Process - GR - Numbers'!$C$16,"-") -> 1 | M71: =IFERROR('Process - GR - Numbers'!L16/'Process - GR - Numbers'!$C$16,"-") -> 0 | N71: =IFERROR('Process - GR - Numbers'!M16/'Process - GR - Numbers'!$C$16,"-") -> 0 | O71: =IFERROR('Process - GR - Numbers'!N16/'Process - GR - Numbers'!$C$16,"-") -> 0.45 | P71: =IFERROR('Process - GR - Numbers'!O16/'Process - GR - Numbers'!$C$16,"-") -> 0.3 | Q71: =IFERROR('Process - GR - Numbers'!P16/'Process - GR - Numbers'!$C$16,"-") -> 0 | R71: =IFERROR('Process - GR - Numbers'!Q16/'Process - GR - Numbers'!$C$16,"-") -> 0.05 | S71: =IFERROR('Process - GR - Numbers'!R16/'Process - GR - Numbers'!$C$16,"-") -> 0.2 | T71: =IFERROR('Process - GR - Numbers'!S16/'Process - GR - Numbers'!$C$16,"-") -> 1 | U71: =IFERROR('Process - GR - Numbers'!T16/'Process - GR - Numbers'!$C$16,"-") -> 0 | V71: =IFERROR('Process - GR - Numbers'!U16/'Process - GR - Numbers'!$C$16,"-") -> 0 | W71: =IFERROR('Process - GR - Numbers'!V16/'Process - GR - Numbers'!$C$16,"-") -> 0.1 | X71: =IFERROR('Process - GR - Numbers'!W16/'Process - GR - Numbers'!$C$16,"-") -> 0.5 | Y71: =IFERROR('Process - GR - Numbers'!X16/'Process - GR - Numbers'!$C$16,"-") -> 0 | Z71: =IFERROR('Process - GR - Numbers'!Y16/'Process - GR - Numbers'!$C$16,"-") -> 0.05 | AA71: =IFERROR('Process - GR - Numbers'!Z16/'Process - GR - Numbers'!$C$16,"-") -> 0.35 | AB71: =IFERROR('Process - GR - Numbers'!AA16/'Process - GR - Numbers'!$C$16,"-") -> 1 | AC71: =IFERROR('Process - GR - Numbers'!AB16/'Process - GR - Numbers'!$C$16,"-") -> 0 | AD71: =IFERROR('Process - GR - Numbers'!AC16/'Process - GR - Numbers'!$C$16,"-") -> 0 | AE71: =IFERROR('Process - GR - Numbers'!AD16/'Process - GR - Numbers'!$C$16,"-") -> 0.1 | AF71: =IFERROR('Process - GR - Numbers'!AE16/'Process - GR - Numbers'!$C$16,"-") -> 0.55 | AG71: =IFERROR('Process - GR - Numbers'!AF16/'Process - GR - Numbers'!$C$16,"-") -> 0 | AH71: =IFERROR('Process - GR - Numbers'!AG16/'Process - GR - Numbers'!$C$16,"-") -> 0.05 | AI71: =IFERROR('Process - GR - Numbers'!AH16/'Process - GR - Numbers'!$C$16,"-") -> 0.3 | AJ71: =IFERROR('Process - GR - Numbers'!AI16/'Process - GR - Numbers'!$C$16,"-") -> 1 | AK71: =IFERROR('Process - GR - Numbers'!AJ16/'Process - GR - Numbers'!$C$16,"-") -> 0 | AL71: =IFERROR('Process - GR - Numbers'!AK16/'Process - GR - Numbers'!$C$16,"-") -> 0 | AM71: =IFERROR('Process - GR - Numbers'!AL16/'Process - GR - Numbers'!$C$16,"-") -> 0.05 | AN71: =IFERROR('Process - GR - Numbers'!AM16/'Process - GR - Numbers'!$C$16,"-") -> 0.6 | AO71: =IFERROR('Process - GR - Numbers'!AN16/'Process - GR - Numbers'!$C$16,"-") -> 0 | AP71: =IFERROR('Process - GR - Numbers'!AO16/'Process - GR - Numbers'!$C$16,"-") -> 0.05 | AQ71: =IFERROR('Process - GR - Numbers'!AP16/'Process - GR - Numbers'!$C$16,"-") -> 0.3 | AR71: =IFERROR('Process - GR - Numbers'!AQ16/'Process - GR - Numbers'!$C$16,"-") -> 1
B72: =INDEX(Academic_Years_Report,COUNTA(Academic_Years_Report)-11) -> 1999-2000 | D72: ='Process - GR - Numbers'!C20 -> 8 | G72: =IFERROR('Process - GR - Numbers'!F20/'Process - GR - Numbers'!$C$20,"-") -> 0.75 | H72: =IFERROR('Process - GR - Numbers'!G20/'Process - GR - Numbers'!$C$20,"-") -> 0 | I72: =IFERROR('Process - GR - Numbers'!H20/'Process - GR - Numbers'!$C$20,"-") -> 0 | J72: =IFERROR('Process - GR - Numbers'!I20/'Process - GR - Numbers'!$C$20,"-") -> 0 | K72: =IFERROR('Process - GR - Numbers'!J20/'Process - GR - Numbers'!$C$20,"-") -> 0.25 | L72: =IFERROR('Process - GR - Numbers'!K20/'Process - GR - Numbers'!$C$20,"-") -> 1 | M72: =IFERROR('Process - GR - Numbers'!L20/'Process - GR - Numbers'!$C$20,"-") -> 0 | N72: =IFERROR('Process - GR - Numbers'!M20/'Process - GR - Numbers'!$C$20,"-") -> 0 | O72: =IFERROR('Process - GR - Numbers'!N20/'Process - GR - Numbers'!$C$20,"-") -> 0.25 | P72: =IFERROR('Process - GR - Numbers'!O20/'Process - GR - Numbers'!$C$20,"-") -> 0.25 | Q72: =IFERROR('Process - GR - Numbers'!P20/'Process - GR - Numbers'!$C$20,"-") -> 0 | R72: =IFERROR('Process - GR - Numbers'!Q20/'Process - GR - Numbers'!$C$20,"-") -> 0 | S72: =IFERROR('Process - GR - Numbers'!R20/'Process - GR - Numbers'!$C$20,"-") -> 0.5 | T72: =IFERROR('Process - GR - Numbers'!S20/'Process - GR - Numbers'!$C$20,"-") -> 1 | U72: =IFERROR('Process - GR - Numbers'!T20/'Process - GR - Numbers'!$C$20,"-") -> 0 | V72: =IFERROR('Process - GR - Numbers'!U20/'Process - GR - Numbers'!$C$20,"-") -> 0 | W72: =IFERROR('Process - GR - Numbers'!V20/'Process - GR - Numbers'!$C$20,"-") -> 0.125 | X72: =IFERROR('Process - GR - Numbers'!W20/'Process - GR - Numbers'!$C$20,"-") -> 0.375 | Y72: =IFERROR('Process - GR - Numbers'!X20/'Process - GR - Numbers'!$C$20,"-") -> 0 | Z72: =IFERROR('Process - GR - Numbers'!Y20/'Process - GR - Numbers'!$C$20,"-") -> 0 | AA72: =IFERROR('Process - GR - Numbers'!Z20/'Process - GR - Numbers'!$C$20,"-") -> 0.5 | AB72: =IFERROR('Process - GR - Numbers'!AA20/'Process - GR - Numbers'!$C$20,"-") -> 1 | AC72: =IFERROR('Process - GR - Numbers'!AB20/'Process - GR - Numbers'!$C$20,"-") -> 0 | AD72: =IFERROR('Process - GR - Numbers'!AC20/'Process - GR - Numbers'!$C$20,"-") -> 0 | AE72: =IFERROR('Process - GR - Numbers'!AD20/'Process - GR - Numbers'!$C$20,"-") -> 0 | AF72: =IFERROR('Process - GR - Numbers'!AE20/'Process - GR - Numbers'!$C$20,"-") -> 0.5 | AG72: =IFERROR('Process - GR - Numbers'!AF20/'Process - GR - Numbers'!$C$20,"-") -> 0 | AH72: =IFERROR('Process - GR - Numbers'!AG20/'Process - GR - Numbers'!$C$20,"-") -> 0 | AI72: =IFERROR('Process - GR - Numbers'!AH20/'Process - GR - Numbers'!$C$20,"-") -> 0.5 | AJ72: =IFERROR('Process - GR - Numbers'!AI20/'Process - GR - Numbers'!$C$20,"-") -> 1 | AK72: =IFERROR('Process - GR - Numbers'!AJ20/'Process - GR - Numbers'!$C$20,"-") -> 0 | AL72: =IFERROR('Process - GR - Numbers'!AK20/'Process - GR - Numbers'!$C$20,"-") -> 0 | AM72: =IFERROR('Process - GR - Numbers'!AL20/'Process - GR - Numbers'!$C$20,"-") -> 0 | AN72: =IFERROR('Process - GR - Numbers'!AM20/'Process - GR - Numbers'!$C$20,"-") -> 0.5 | AO72: =IFERROR('Process - GR - Numbers'!AN20/'Process - GR - Numbers'!$C$20,"-") -> 0 | AP72: =IFERROR('Process - GR - Numbers'!AO20/'Process - GR - Numbers'!$C$20,"-") -> 0 | AQ72: =IFERROR('Process - GR - Numbers'!AP20/'Process - GR - Numbers'!$C$20,"-") -> 0.5 | AR72: =IFERROR('Process - GR - Numbers'!AQ20/'Process - GR - Numbers'!$C$20,"-") -> 1
B73: =INDEX(Academic_Years_Report,COUNTA(Academic_Years_Report)-10) -> 2000-2001 | D73: ='Process - GR - Numbers'!C24 -> 8 | G73: =IFERROR('Process - GR - Numbers'!F24/'Process - GR - Numbers'!$C$24,"-") -> 0.5 | H73: =IFERROR('Process - GR - Numbers'!G24/'Process - GR - Numbers'!$C$24,"-") -> 0 | I73: =IFERROR('Process - GR - Numbers'!H24/'Process - GR - Numbers'!$C$24,"-") -> 0 | J73: =IFERROR('Process - GR - Numbers'!I24/'Process - GR - Numbers'!$C$24,"-") -> 0 | K73: =IFERROR('Process - GR - Numbers'!J24/'Process - GR - Numbers'!$C$24,"-") -> 0.5 | L73: =IFERROR('Process - GR - Numbers'!K24/'Process - GR - Numbers'!$C$24,"-") -> 1 | M73: =IFERROR('Process - GR - Numbers'!L24/'Process - GR - Numbers'!$C$24,"-") -> 0 | N73: =IFERROR('Process - GR - Numbers'!M24/'Process - GR - Numbers'!$C$24,"-") -> 0 | O73: =IFERROR('Process - GR - Numbers'!N24/'Process - GR - Numbers'!$C$24,"-") -> 0.125 | P73: =IFERROR('Process - GR - Numbers'!O24/'Process - GR - Numbers'!$C$24,"-") -> 0.125 | Q73: =IFERROR('Process - GR - Numbers'!P24/'Process - GR - Numbers'!$C$24,"-") -> 0 | R73: =IFERROR('Process - GR - Numbers'!Q24/'Process - GR - Numbers'!$C$24,"-") -> 0 | S73: =IFERROR('Process - GR - Numbers'!R24/'Process - GR - Numbers'!$C$24,"-") -> 0.75 | T73: =IFERROR('Process - GR - Numbers'!S24/'Process - GR - Numbers'!$C$24,"-") -> 1 | U73: =IFERROR('Process - GR - Numbers'!T24/'Process - GR - Numbers'!$C$24,"-") -> 0 | V73: =IFERROR('Process - GR - Numbers'!U24/'Process - GR - Numbers'!$C$24,"-") -> 0 | W73: =IFERROR('Process - GR - Numbers'!V24/'Process - GR - Numbers'!$C$24,"-") -> 0.25 | X73: =IFERROR('Process - GR - Numbers'!W24/'Process - GR - Numbers'!$C$24,"-") -> 0.125 | Y73: =IFERROR('Process - GR - Numbers'!X24/'Process - GR - Numbers'!$C$24,"-") -> 0 | Z73: =IFERROR('Process - GR - Numbers'!Y24/'Process - GR - Numbers'!$C$24,"-") -> 0 | AA73: =IFERROR('Process - GR - Numbers'!Z24/'Process - GR - Numbers'!$C$24,"-") -> 0.625 | AB73: =IFERROR('Process - GR - Numbers'!AA24/'Process - GR - Numbers'!$C$24,"-") -> 1 | AC73: =IFERROR('Process - GR - Numbers'!AB24/'Process - GR - Numbers'!$C$24,"-") -> 0 | AD73: =IFERROR('Process - GR - Numbers'!AC24/'Process - GR - Numbers'!$C$24,"-") -> 0 | AE73: =IFERROR('Process - GR - Numbers'!AD24/'Process - GR - Numbers'!$C$24,"-") -> 0 | AF73: =IFERROR('Process - GR - Numbers'!AE24/'Process - GR - Numbers'!$C$24,"-") -> 0.375 | AG73: =IFERROR('Process - GR - Numbers'!AF24/'Process - GR - Numbers'!$C$24,"-") -> 0 | AH73: =IFERROR('Process - GR - Numbers'!AG24/'Process - GR - Numbers'!$C$24,"-") -> 0 | AI73: =IFERROR('Process - GR - Numbers'!AH24/'Process - GR - Numbers'!$C$24,"-") -> 0.625 | AJ73: =IFERROR('Process - GR - Numbers'!AI24/'Process - GR - Numbers'!$C$24,"-") -> 1 | AK73: =IFERROR('Process - GR - Numbers'!AJ24/'Process - GR - Numbers'!$C$24,"-") -> 0 | AL73: =IFERROR('Process - GR - Numbers'!AK24/'Process - GR - Numbers'!$C$24,"-") -> 0 | AM73: =IFERROR('Process - GR - Numbers'!AL24/'Process - GR - Numbers'!$C$24,"-") -> 0 | AN73: =IFERROR('Process - GR - Numbers'!AM24/'Process - GR - Numbers'!$C$24,"-") -> 0.375 | AO73: =IFERROR('Process - GR - Numbers'!AN24/'Process - GR - Numbers'!$C$24,"-") -> 0 | AP73: =IFERROR('Process - GR - Numbers'!AO24/'Process - GR - Numbers'!$C$24,"-") -> 0 | AQ73: =IFERROR('Process - GR - Numbers'!AP24/'Process - GR - Numbers'!$C$24,"-") -> 0.625 | AR73: =IFERROR('Process - GR - Numbers'!AQ24/'Process - GR - Numbers'!$C$24,"-") -> 1
B74: =INDEX(Academic_Years_Report,COUNTA(Academic_Years_Report)-9) -> 2001-2002 | D74: ='Process - GR - Numbers'!C28 -> 14 | G74: =IFERROR('Process - GR - Numbers'!F28/'Process - GR - Numbers'!$C$28,"-") -> 0.5714285714 | H74: =IFERROR('Process - GR - Numbers'!G28/'Process - GR - Numbers'!$C$28,"-") -> 0.1428571429 | I74: =IFERROR('Process - GR - Numbers'!H28/'Process - GR - Numbers'!$C$28,"-") -> 0.07142857143 | J74: =IFERROR('Process - GR - Numbers'!I28/'Process - GR - Numbers'!$C$28,"-") -> 0 | K74: =IFERROR('Process - GR - Numbers'!J28/'Process - GR - Numbers'!$C$28,"-") -> 0.2142857143 | L74: =IFERROR('Process - GR - Numbers'!K28/'Process - GR - Numbers'!$C$28,"-") -> 1 | M74: =IFERROR('Process - GR - Numbers'!L28/'Process - GR - Numbers'!$C$28,"-") -> 0 | N74: =IFERROR('Process - GR - Numbers'!M28/'Process - GR - Numbers'!$C$28,"-") -> 0 | O74: =IFERROR('Process - GR - Numbers'!N28/'Process - GR - Numbers'!$C$28,"-") -> 0.3571428571 | P74: =IFERROR('Process - GR - Numbers'!O28/'Process - GR - Numbers'!$C$28,"-") -> 0.3571428571 | Q74: =IFERROR('Process - GR - Numbers'!P28/'Process - GR - Numbers'!$C$28,"-") -> 0.07142857143 | R74: =IFERROR('Process - GR - Numbers'!Q28/'Process - GR - Numbers'!$C$28,"-") -> 0 | S74: =IFERROR('Process - GR - Numbers'!R28/'Process - GR - Numbers'!$C$28,"-") -> 0.2142857143 | T74: =IFERROR('Process - GR - Numbers'!S28/'Process - GR - Numbers'!$C$28,"-") -> 1 | U74: =IFERROR('Process - GR - Numbers'!T28/'Process - GR - Numbers'!$C$28,"-") -> 0 | V74: =IFERROR('Process - GR - Numbers'!U28/'Process - GR - Numbers'!$C$28,"-") -> 0 | W74: =IFERROR('Process - GR - Numbers'!V28/'Process - GR - Numbers'!$C$28,"-") -> 0.1428571429 | X74: =IFERROR('Process - GR - Numbers'!W28/'Process - GR - Numbers'!$C$28,"-") -> 0.3571428571 | Y74: =IFERROR('Process - GR - Numbers'!X28/'Process - GR - Numbers'!$C$28,"-") -> 0 | Z74: =IFERROR('Process - GR - Numbers'!Y28/'Process - GR - Numbers'!$C$28,"-") -> 0.07142857143 | AA74: =IFERROR('Process - GR - Numbers'!Z28/'Process - GR - Numbers'!$C$28,"-") -> 0.4285714286 | AB74: =IFERROR('Process - GR - Numbers'!AA28/'Process - GR - Numbers'!$C$28,"-") -> 1 | AC74: =IFERROR('Process - GR - Numbers'!AB28/'Process - GR - Numbers'!$C$28,"-") -> 0 | AD74: =IFERROR('Process - GR - Numbers'!AC28/'Process - GR - Numbers'!$C$28,"-") -> 0 | AE74: =IFERROR('Process - GR - Numbers'!AD28/'Process - GR - Numbers'!$C$28,"-") -> 0 | AF74: =IFERROR('Process - GR - Numbers'!AE28/'Process - GR - Numbers'!$C$28,"-") -> 0.5 | AG74: =IFERROR('Process - GR - Numbers'!AF28/'Process - GR - Numbers'!$C$28,"-") -> 0 | AH74: =IFERROR('Process - GR - Numbers'!AG28/'Process - GR - Numbers'!$C$28,"-") -> 0.07142857143 | AI74: =IFERROR('Process - GR - Numbers'!AH28/'Process - GR - Numbers'!$C$28,"-") -> 0.4285714286 | AJ74: =IFERROR('Process - GR - Numbers'!AI28/'Process - GR - Numbers'!$C$28,"-") -> 1 | AK74: =IFERROR('Process - GR - Numbers'!AJ28/'Process - GR - Numbers'!$C$28,"-") -> 0 | AL74: =IFERROR('Process - GR - Numbers'!AK28/'Process - GR - Numbers'!$C$28,"-") -> 0 | AM74: =IFERROR('Process - GR - Numbers'!AL28/'Process - GR - Numbers'!$C$28,"-") -> 0.07142857143 | AN74: =IFERROR('Process - GR - Numbers'!AM28/'Process - GR - Numbers'!$C$28,"-") -> 0.5 | AO74: =IFERROR('Process - GR - Numbers'!AN28/'Process - GR - Numbers'!$C$28,"-") -> 0 | AP74: =IFERROR('Process - GR - Numbers'!AO28/'Process - GR - Numbers'!$C$28,"-") -> 0.07142857143 | AQ74: =IFERROR('Process - GR - Numbers'!AP28/'Process - GR - Numbers'!$C$28,"-") -> 0.3571428571 | AR74: =IFERROR('Process - GR - Numbers'!AQ28/'Process - GR - Numbers'!$C$28,"-") -> 1 | AS74: =IFERROR('Process - GR - Numbers'!AR28/'Process - GR - Numbers'!$C$28,"-") -> 0
B75: =INDEX(Academic_Years_Report,COUNTA(Academic_Years_Report)-8) -> 2002-2003 | D75: ='Process - GR - Numbers'!C32 -> 16 | G75: =IFERROR('Process - GR - Numbers'!F32/'Process - GR - Numbers'!$C$32,"-") -> 0.625 | H75: =IFERROR('Process - GR - Numbers'!G32/'Process - GR - Numbers'!$C$32,"-") -> 0.0625 | I75: =IFERROR('Process - GR - Numbers'!H32/'Process - GR - Numbers'!$C$32,"-") -> 0.0625 | J75: =IFERROR('Process - GR - Numbers'!I32/'Process - GR - Numbers'!$C$32,"-") -> 0 | K75: =IFERROR('Process - GR - Numbers'!J32/'Process - GR - Numbers'!$C$32,"-") -> 0.25 | L75: =IFERROR('Process - GR - Numbers'!K32/'Process - GR - Numbers'!$C$32,"-") -> 1 | M75: =IFERROR('Process - GR - Numbers'!L32/'Process - GR - Numbers'!$C$32,"-") -> 0 | N75: =IFERROR('Process - GR - Numbers'!M32/'Process - GR - Numbers'!$C$32,"-") -> 0 | O75: =IFERROR('Process - GR - Numbers'!N32/'Process - GR - Numbers'!$C$32,"-") -> 0.25 | P75: =IFERROR('Process - GR - Numbers'!O32/'Process - GR - Numbers'!$C$32,"-") -> 0.375 | Q75: =IFERROR('Process - GR - Numbers'!P32/'Process - GR - Numbers'!$C$32,"-") -> 0 | R75: =IFERROR('Process - GR - Numbers'!Q32/'Process - GR - Numbers'!$C$32,"-") -> 0.0625 | S75: =IFERROR('Process - GR - Numbers'!R32/'Process - GR - Numbers'!$C$32,"-") -> 0.3125 | T75: =IFERROR('Process - GR - Numbers'!S32/'Process - GR - Numbers'!$C$32,"-") -> 1 | U75: =IFERROR('Process - GR - Numbers'!T32/'Process - GR - Numbers'!$C$32,"-") -> 0 | V75: =IFERROR('Process - GR - Numbers'!U32/'Process - GR - Numbers'!$C$32,"-") -> 0 | W75: =IFERROR('Process - GR - Numbers'!V32/'Process - GR - Numbers'!$C$32,"-") -> 0.125 | X75: =IFERROR('Process - GR - Numbers'!W32/'Process - GR - Numbers'!$C$32,"-") -> 0.5 | Y75: =IFERROR('Process - GR - Numbers'!X32/'Process - GR - Numbers'!$C$32,"-") -> 0.0625 | Z75: =IFERROR('Process - GR - Numbers'!Y32/'Process - GR - Numbers'!$C$32,"-") -> 0.0625 | AA75: =IFERROR('Process - GR - Numbers'!Z32/'Process - GR - Numbers'!$C$32,"-") -> 0.25 | AB75: =IFERROR('Process - GR - Numbers'!AA32/'Process - GR - Numbers'!$C$32,"-") -> 1 | AC75: =IFERROR('Process - GR - Numbers'!AB32/'Process - GR - Numbers'!$C$32,"-") -> 0 | AD75: =IFERROR('Process - GR - Numbers'!AC32/'Process - GR - Numbers'!$C$32,"-") -> 0 | AE75: =IFERROR('Process - GR - Numbers'!AD32/'Process - GR - Numbers'!$C$32,"-") -> 0.0625 | AF75: =IFERROR('Process - GR - Numbers'!AE32/'Process - GR - Numbers'!$C$32,"-") -> 0.5625 | AG75: =IFERROR('Process - GR - Numbers'!AF32/'Process - GR - Numbers'!$C$32,"-") -> 0 | AH75: =IFERROR('Process - GR - Numbers'!AG32/'Process - GR - Numbers'!$C$32,"-") -> 0.0625 | AI75: =IFERROR('Process - GR - Numbers'!AH32/'Process - GR - Numbers'!$C$32,"-") -> 0.3125 | AJ75: =IFERROR('Process - GR - Numbers'!AI32/'Process - GR - Numbers'!$C$32,"-") -> 1 | AK75: =IFERROR('Process - GR - Numbers'!AJ32/'Process - GR - Numbers'!$C$32,"-") -> 0 | AL75: =IFERROR('Process - GR - Numbers'!AK32/'Process - GR - Numbers'!$C$32,"-") -> 0 | AM75: =IFERROR('Process - GR - Numbers'!AL32/'Process - GR - Numbers'!$C$32,"-") -> 0.0625 | AN75: =IFERROR('Process - GR - Numbers'!AM32/'Process - GR - Numbers'!$C$32,"-") -> 0.625 | AO75: =IFERROR('Process - GR - Numbers'!AN32/'Process - GR - Numbers'!$C$32,"-") -> 0 | AP75: =IFERROR('Process - GR - Numbers'!AO32/'Process - GR - Numbers'!$C$32,"-") -> 0.0625 | AQ75: =IFERROR('Process - GR - Numbers'!AP32/'Process - GR - Numbers'!$C$32,"-") -> 0.25 | AR75: =IFERROR('Process - GR - Numbers'!AQ32/'Process - GR - Numbers'!$C$32,"-") -> 1 | AS75: =IFERROR('Process - GR - Numbers'!AR32/'Process - GR - Numbers'!$C$32,"-") -> 0
B76: =INDEX(Academic_Years_Report,COUNTA(Academic_Years_Report)-7) -> 2003-2004 | D76: ='Process - GR - Numbers'!C36 -> 15 | G76: =IFERROR('Process - GR - Numbers'!F36/'Process - GR - Numbers'!$C$36,"-") -> 0.7333333333 | H76: =IFERROR('Process - GR - Numbers'!G36/'Process - GR - Numbers'!$C$36,"-") -> 0.06666666667 | I76: =IFERROR('Process - GR - Numbers'!H36/'Process - GR - Numbers'!$C$36,"-") -> 0 | J76: =IFERROR('Process - GR - Numbers'!I36/'Process - GR - Numbers'!$C$36,"-") -> 0 | K76: =IFERROR('Process - GR - Numbers'!J36/'Process - GR - Numbers'!$C$36,"-") -> 0.2 | L76: =IFERROR('Process - GR - Numbers'!K36/'Process - GR - Numbers'!$C$36,"-") -> 1 | O76: =IFERROR('Process - GR - Numbers'!N36/'Process - GR - Numbers'!$C$36,"-") -> 0.4666666667 | P76: =IFERROR('Process - GR - Numbers'!O36/'Process - GR - Numbers'!$C$36,"-") -> 0.3333333333 | Q76: =IFERROR('Process - GR - Numbers'!P36/'Process - GR - Numbers'!$C$36,"-") -> 0 | R76: =IFERROR('Process - GR - Numbers'!Q36/'Process - GR - Numbers'!$C$36,"-") -> 0 | S76: =IFERROR('Process - GR - Numbers'!R36/'Process - GR - Numbers'!$C$36,"-") -> 0.2 | T76: =IFERROR('Process - GR - Numbers'!S36/'Process - GR - Numbers'!$C$36,"-") -> 1 | W76: =IFERROR('Process - GR - Numbers'!V36/'Process - GR - Numbers'!$C$36,"-") -> 0.1333333333 | X76: =IFERROR('Process - GR - Numbers'!W36/'Process - GR - Numbers'!$C$36,"-") -> 0.6 | Y76: =IFERROR('Process - GR - Numbers'!X36/'Process - GR - Numbers'!$C$36,"-") -> 0 | Z76: =IFERROR('Process - GR - Numbers'!Y36/'Process - GR - Numbers'!$C$36,"-") -> 0 | AA76: =IFERROR('Process - GR - Numbers'!Z36/'Process - GR - Numbers'!$C$36,"-") -> 0.2666666667 | AB76: =IFERROR('Process - GR - Numbers'!AA36/'Process - GR - Numbers'!$C$36,"-") -> 1 | AE76: =IFERROR('Process - GR - Numbers'!AD36/'Process - GR - Numbers'!$C$36,"-") -> 0.06666666667 | AF76: =IFERROR('Process - GR - Numbers'!AE36/'Process - GR - Numbers'!$C$36,"-") -> 0.6 | AG76: =IFERROR('Process - GR - Numbers'!AF36/'Process - GR - Numbers'!$C$36,"-") -> 0.06666666667 | AH76: =IFERROR('Process - GR - Numbers'!AG36/'Process - GR - Numbers'!$C$36,"-") -> 0 | AI76: =IFERROR('Process - GR - Numbers'!AH36/'Process - GR - Numbers'!$C$36,"-") -> 0.2666666667 | AJ76: =IFERROR('Process - GR - Numbers'!AI36/'Process - GR - Numbers'!$C$36,"-") -> 1 | AM76: =IFERROR('Process - GR - Numbers'!AL36/'Process - GR - Numbers'!$C$36,"-") -> 0 | AN76: =IFERROR('Process - GR - Numbers'!AM36/'Process - GR - Numbers'!$C$36,"-") -> 0.6 | AO76: =IFERROR('Process - GR - Numbers'!AN36/'Process - GR - Numbers'!$C$36,"-") -> 0 | AP76: =IFERROR('Process - GR - Numbers'!AO36/'Process - GR - Numbers'!$C$36,"-") -> 0.06666666667 | AQ76: =IFERROR('Process - GR - Numbers'!AP36/'Process - GR - Numbers'!$C$36,"-") -> 0.3333333333 | AR76: =IFERROR('Process - GR - Numbers'!AQ36/'Process - GR - Numbers'!$C$36,"-") -> 1 | AS76: =IFERROR('Process - GR - Numbers'!AR36/'Process - GR - Numbers'!$C$36,"-") -> 0
B77: =INDEX(Academic_Years_Report,COUNTA(Academic_Years_Report)-6) -> 2004-2005 | D77: ='Process - GR - Numbers'!C40 -> 15 | G77: =IFERROR('Process - GR - Numbers'!F40/'Process - GR - Numbers'!$C$40,"-") -> 0.6666666667 | H77: =IFERROR('Process - GR - Numbers'!G40/'Process - GR - Numbers'!$C$40,"-") -> 0 | I77: =IFERROR('Process - GR - Numbers'!H40/'Process - GR - Numbers'!$C$40,"-") -> 0.1333333333 | J77: =IFERROR('Process - GR - Numbers'!I40/'Process - GR - Numbers'!$C$40,"-") -> 0 | K77: =IFERROR('Process - GR - Numbers'!J40/'Process - GR - Numbers'!$C$40,"-") -> 0.2 | L77: =IFERROR('Process - GR - Numbers'!K40/'Process - GR - Numbers'!$C$40,"-") -> 1 | O77: =IFERROR('Process - GR - Numbers'!N40/'Process - GR - Numbers'!$C$40,"-") -> 0.3333333333 | P77: =IFERROR('Process - GR - Numbers'!O40/'Process - GR - Numbers'!$C$40,"-") -> 0.3333333333 | Q77: =IFERROR('Process - GR - Numbers'!P40/'Process - GR - Numbers'!$C$40,"-") -> 0 | R77: =IFERROR('Process - GR - Numbers'!Q40/'Process - GR - Numbers'!$C$40,"-") -> 0.06666666667 | S77: =IFERROR('Process - GR - Numbers'!R40/'Process - GR - Numbers'!$C$40,"-") -> 0.2666666667 | T77: =IFERROR('Process - GR - Numbers'!S40/'Process - GR - Numbers'!$C$40,"-") -> 1 | W77: =IFERROR('Process - GR - Numbers'!V40/'Process - GR - Numbers'!$C$40,"-") -> 0.06666666667 | X77: =IFERROR('Process - GR - Numbers'!W40/'Process - GR - Numbers'!$C$40,"-") -> 0.4666666667 | Y77: =IFERROR('Process - GR - Numbers'!X40/'Process - GR - Numbers'!$C$40,"-") -> 0 | Z77: =IFERROR('Process - GR - Numbers'!Y40/'Process - GR - Numbers'!$C$40,"-") -> 0.06666666667 | AA77: =IFERROR('Process - GR - Numbers'!Z40/'Process - GR - Numbers'!$C$40,"-") -> 0.4 | AB77: =IFERROR('Process - GR - Numbers'!AA40/'Process - GR - Numbers'!$C$40,"-") -> 1 | AE77: =IFERROR('Process - GR - Numbers'!AD40/'Process - GR - Numbers'!$C$40,"-") -> 0 | AF77: =IFERROR('Process - GR - Numbers'!AE40/'Process - GR - Numbers'!$C$40,"-") -> 0.5333333333 | AG77: =IFERROR('Process - GR - Numbers'!AF40/'Process - GR - Numbers'!$C$40,"-") -> 0 | AH77: =IFERROR('Process - GR - Numbers'!AG40/'Process - GR - Numbers'!$C$40,"-") -> 0.06666666667 | AI77: =IFERROR('Process - GR - Numbers'!AH40/'Process - GR - Numbers'!$C$40,"-") -> 0.4 | AJ77: =IFERROR('Process - GR - Numbers'!AI40/'Process - GR - Numbers'!$C$40,"-") -> 1 | AM77: =IFERROR('Process - GR - Numbers'!AL40/'Process - GR - Numbers'!$C$40,"-") -> 0 | AN77: =IFERROR('Process - GR - Numbers'!AM40/'Process - GR - Numbers'!$C$40,"-") -> 0.5333333333 | AO77: =IFERROR('Process - GR - Numbers'!AN40/'Process - GR - Numbers'!$C$40,"-") -> 0 | AP77: =IFERROR('Process - GR - Numbers'!AO40/'Process - GR - Numbers'!$C$40,"-") -> 0.06666666667 | AQ77: =IFERROR('Process - GR - Numbers'!AP40/'Process - GR - Numbers'!$C$40,"-") -> 0.4 | AR77: =IFERROR('Process - GR - Numbers'!AQ40/'Process - GR - Numbers'!$C$40,"-") -> 1
B78: =INDEX(Academic_Years_Report,COUNTA(Academic_Years_Report)-5) -> 2005-2006 | D78: ='Process - GR - Numbers'!C44 -> 25 | G78: =IFERROR('Process - GR - Numbers'!F44/'Process - GR - Numbers'!$C$44,"-") -> 0.64 | H78: =IFERROR('Process - GR - Numbers'!G44/'Process - GR - Numbers'!$C$44,"-") -> 0.08 | I78: =IFERROR('Process - GR - Numbers'!H44/'Process - GR - Numbers'!$C$44,"-") -> 0 | J78: =IFERROR('Process - GR - Numbers'!I44/'Process - GR - Numbers'!$C$44,"-") -> 0.04 | K78: =IFERROR('Process - GR - Numbers'!J44/'Process - GR - Numbers'!$C$44,"-") -> 0.24 | L78: =IFERROR('Process - GR - Numbers'!K44/'Process - GR - Numbers'!$C$44,"-") -> 1 | O78: =IFERROR('Process - GR - Numbers'!N44/'Process - GR - Numbers'!$C$44,"-") -> 0.32 | P78: =IFERROR('Process - GR - Numbers'!O44/'Process - GR - Numbers'!$C$44,"-") -> 0.32 | Q78: =IFERROR('Process - GR - Numbers'!P44/'Process - GR - Numbers'!$C$44,"-") -> 0.08 | R78: =IFERROR('Process - GR - Numbers'!Q44/'Process - GR - Numbers'!$C$44,"-") -> 0.04 | S78: =IFERROR('Process - GR - Numbers'!R44/'Process - GR - Numbers'!$C$44,"-") -> 0.24 | T78: =IFERROR('Process - GR - Numbers'!S44/'Process - GR - Numbers'!$C$44,"-") -> 1 | W78: =IFERROR('Process - GR - Numbers'!V44/'Process - GR - Numbers'!$C$44,"-") -> 0.12 | X78: =IFERROR('Process - GR - Numbers'!W44/'Process - GR - Numbers'!$C$44,"-") -> 0.44 | Y78: =IFERROR('Process - GR - Numbers'!X44/'Process - GR - Numbers'!$C$44,"-") -> 0.08 | Z78: =IFERROR('Process - GR - Numbers'!Y44/'Process - GR - Numbers'!$C$44,"-") -> 0.08 | AA78: =IFERROR('Process - GR - Numbers'!Z44/'Process - GR - Numbers'!$C$44,"-") -> 0.28 | AB78: =IFERROR('Process - GR - Numbers'!AA44/'Process - GR - Numbers'!$C$44,"-") -> 1 | AE78: =IFERROR('Process - GR - Numbers'!AD44/'Process - GR - Numbers'!$C$44,"-") -> 0.04 | AF78: =IFERROR('Process - GR - Numbers'!AE44/'Process - GR - Numbers'!$C$44,"-") -> 0.52 | AG78: =IFERROR('Process - GR - Numbers'!AF44/'Process - GR - Numbers'!$C$44,"-") -> 0 | AH78: =IFERROR('Process - GR - Numbers'!AG44/'Process - GR - Numbers'!$C$44,"-") -> 0.16 | AI78: =IFERROR('Process - GR - Numbers'!AH44/'Process - GR - Numbers'!$C$44,"-") -> 0.28 | AJ78: =IFERROR('Process - GR - Numbers'!AI44/'Process - GR - Numbers'!$C$44,"-") -> 1 | AM78: =IFERROR('Process - GR - Numbers'!AL44/'Process - GR - Numbers'!$C$44,"-") -> 0 | AN78: =IFERROR('Process - GR - Numbers'!AM44/'Process - GR - Numbers'!$C$44,"-") -> 0.56 | AO78: =IFERROR('Process - GR - Numbers'!AN44/'Process - GR - Numbers'!$C$44,"-") -> 0 | AP78: =IFERROR('Process - GR - Numbers'!AO44/'Process - GR - Numbers'!$C$44,"-") -> 0.16 | AQ78: =IFERROR('Process - GR - Numbers'!AP44/'Process - GR - Numbers'!$C$44,"-") -> 0.28 | AR78: =IFERROR('Process - GR - Numbers'!AQ44/'Process - GR - Numbers'!$C$44,"-") -> 1 | AS78: =IFERROR('Process - GR - Numbers'!AR44/'Process - GR - Numbers'!$C$44,"-") -> 0
B79: =INDEX(Academic_Years_Report,COUNTA(Academic_Years_Report)-4) -> 2006-2007 | D79: ='Process - GR - Numbers'!C48 -> 16 | G79: =IFERROR('Process - GR - Numbers'!F48/'Process - GR - Numbers'!$C$48,"-") -> 0.4375 | H79: =IFERROR('Process - GR - Numbers'!G48/'Process - GR - Numbers'!$C$48,"-") -> 0.125 | I79: =IFERROR('Process - GR - Numbers'!H48/'Process - GR - Numbers'!$C$48,"-") -> 0.125 | J79: =IFERROR('Process - GR - Numbers'!I48/'Process - GR - Numbers'!$C$48,"-") -> 0 | K79: =IFERROR('Process - GR - Numbers'!J48/'Process - GR - Numbers'!$C$48,"-") -> 0.3125 | L79: =IFERROR('Process - GR - Numbers'!K48/'Process - GR - Numbers'!$C$48,"-") -> 1 | O79: =IFERROR('Process - GR - Numbers'!N48/'Process - GR - Numbers'!$C$48,"-") -> 0 | P79: =IFERROR('Process - GR - Numbers'!O48/'Process - GR - Numbers'!$C$48,"-") -> 0.4375 | Q79: =IFERROR('Process - GR - Numbers'!P48/'Process - GR - Numbers'!$C$48,"-") -> 0.25 | R79: =IFERROR('Process - GR - Numbers'!Q48/'Process - GR - Numbers'!$C$48,"-") -> 0 | S79: =IFERROR('Process - GR - Numbers'!R48/'Process - GR - Numbers'!$C$48,"-") -> 0.3125 | T79: =IFERROR('Process - GR - Numbers'!S48/'Process - GR - Numbers'!$C$48,"-") -> 1 | W79: =IFERROR('Process - GR - Numbers'!V48/'Process - GR - Numbers'!$C$48,"-") -> 0 | X79: =IFERROR('Process - GR - Numbers'!W48/'Process - GR - Numbers'!$C$48,"-") -> 0.4375 | Y79: =IFERROR('Process - GR - Numbers'!X48/'Process - GR - Numbers'!$C$48,"-") -> 0.0625 | Z79: =IFERROR('Process - GR - Numbers'!Y48/'Process - GR - Numbers'!$C$48,"-") -> 0.125 | AA79: =IFERROR('Process - GR - Numbers'!Z48/'Process - GR - Numbers'!$C$48,"-") -> 0.375 | AB79: =IFERROR('Process - GR - Numbers'!AA48/'Process - GR - Numbers'!$C$48,"-") -> 1 | AE79: =IFERROR('Process - GR - Numbers'!AD48/'Process - GR - Numbers'!$C$48,"-") -> 0 | AF79: =IFERROR('Process - GR - Numbers'!AE48/'Process - GR - Numbers'!$C$48,"-") -> 0.4375 | AG79: =IFERROR('Process - GR - Numbers'!AF48/'Process - GR - Numbers'!$C$48,"-") -> 0 | AH79: =IFERROR('Process - GR - Numbers'!AG48/'Process - GR - Numbers'!$C$48,"-") -> 0.125 | AI79: =IFERROR('Process - GR - Numbers'!AH48/'Process - GR - Numbers'!$C$48,"-") -> 0.4375 | AJ79: =IFERROR('Process - GR - Numbers'!AI48/'Process - GR - Numbers'!$C$48,"-") -> 1 | AM79: =IFERROR('Process - GR - Numbers'!AL48/'Process - GR - Numbers'!$C$48,"-") -> 0 | AN79: =IFERROR('Process - GR - Numbers'!AM48/'Process - GR - Numbers'!$C$48,"-") -> 0 | AO79: =IFERROR('Process - GR - Numbers'!AN48/'Process - GR - Numbers'!$C$48,"-") -> 0 | AP79: =IFERROR('Process - GR - Numbers'!AO48/'Process - GR - Numbers'!$C$48,"-") -> 0 | AQ79: =IFERROR('Process - GR - Numbers'!AP48/'Process - GR - Numbers'!$C$48,"-") -> 0 | AR79: =IFERROR('Process - GR - Numbers'!AQ48/'Process - GR - Numbers'!$C$48,"-") -> 0 | AS79: =IFERROR('Process - GR - Numbers'!AR48/'Process - GR - Numbers'!$C$48,"-") -> 0
B80: =INDEX(Academic_Years_Report,COUNTA(Academic_Years_Report)-3) -> 2007-2008 | D80: ='Process - GR - Numbers'!C52 -> 16 | G80: =IFERROR('Process - GR - Numbers'!F52/'Process - GR - Numbers'!$C$52,"-") -> 0.8125 | H80: =IFERROR('Process - GR - Numbers'!G52/'Process - GR - Numbers'!$C$52,"-") -> 0 | I80: =IFERROR('Process - GR - Numbers'!H52/'Process - GR - Numbers'!$C$52,"-") -> 0 | J80: =IFERROR('Process - GR - Numbers'!I52/'Process - GR - Numbers'!$C$52,"-") -> 0 | K80: =IFERROR('Process - GR - Numbers'!J52/'Process - GR - Numbers'!$C$52,"-") -> 0.1875 | L80: =IFERROR('Process - GR - Numbers'!K52/'Process - GR - Numbers'!$C$52,"-") -> 1 | O80: =IFERROR('Process - GR - Numbers'!N52/'Process - GR - Numbers'!$C$52,"-") -> 0.3125 | P80: =IFERROR('Process - GR - Numbers'!O52/'Process - GR - Numbers'!$C$52,"-") -> 0.4375 | Q80: =IFERROR('Process - GR - Numbers'!P52/'Process - GR - Numbers'!$C$52,"-") -> 0 | R80: =IFERROR('Process - GR - Numbers'!Q52/'Process - GR - Numbers'!$C$52,"-") -> 0 | S80: =IFERROR('Process - GR - Numbers'!R52/'Process - GR - Numbers'!$C$52,"-") -> 0.25 | T80: =IFERROR('Process - GR - Numbers'!S52/'Process - GR - Numbers'!$C$52,"-") -> 1 | W80: =IFERROR('Process - GR - Numbers'!V52/'Process - GR - Numbers'!$C$52,"-") -> 0.125 | X80: =IFERROR('Process - GR - Numbers'!W52/'Process - GR - Numbers'!$C$52,"-") -> 0.625 | Y80: =IFERROR('Process - GR - Numbers'!X52/'Process - GR - Numbers'!$C$52,"-") -> 0.0625 | Z80: =IFERROR('Process - GR - Numbers'!Y52/'Process - GR - Numbers'!$C$52,"-") -> 0 | AA80: =IFERROR('Process - GR - Numbers'!Z52/'Process - GR - Numbers'!$C$52,"-") -> 0.1875 | AB80: =IFERROR('Process - GR - Numbers'!AA52/'Process - GR - Numbers'!$C$52,"-") -> 1 | AE80: =IFERROR('Process - GR - Numbers'!AD52/'Process - GR - Numbers'!$C$52,"-") -> 0.0625 | AF80: =IFERROR('Process - GR - Numbers'!AE52/'Process - GR - Numbers'!$C$52,"-") -> 0.6875 | AG80: =IFERROR('Process - GR - Numbers'!AF52/'Process - GR - Numbers'!$C$52,"-") -> 0 | AH80: =IFERROR('Process - GR - Numbers'!AG52/'Process - GR - Numbers'!$C$52,"-") -> 0 | AI80: =IFERROR('Process - GR - Numbers'!AH52/'Process - GR - Numbers'!$C$52,"-") -> 0.25 | AJ80: =IFERROR('Process - GR - Numbers'!AI52/'Process - GR - Numbers'!$C$52,"-") -> 1 | AM80: =IFERROR('Process - GR - Numbers'!AL52/'Process - GR - Numbers'!$C$52,"-") -> 0 | AN80: =IFERROR('Process - GR - Numbers'!AM52/'Process - GR - Numbers'!$C$52,"-") -> 0 | AO80: =IFERROR('Process - GR - Numbers'!AN52/'Process - GR - Numbers'!$C$52,"-") -> 0 | AP80: =IFERROR('Process - GR - Numbers'!AO52/'Process - GR - Numbers'!$C$52,"-") -> 0 | AQ80: =IFERROR('Process - GR - Numbers'!AP52/'Process - GR - Numbers'!$C$52,"-") -> 0 | AR80: =IFERROR('Process - GR - Numbers'!AQ52/'Process - GR - Numbers'!$C$52,"-") -> 0 | AS80: =IFERROR('Process - GR - Numbers'!AR52/'Process - GR - Numbers'!$C$52,"-") -> 0
B81: =INDEX(Academic_Years_Report,COUNTA(Academic_Years_Report)-2) -> 2008-2009 | D81: ='Process - GR - Numbers'!C56 -> 25 | G81: =IFERROR('Process - GR - Numbers'!F56/'Process - GR - Numbers'!$C$56,"-") -> 0.64 | H81: =IFERROR('Process - GR - Numbers'!G56/'Process - GR - Numbers'!$C$56,"-") -> 0.04 | I81: =IFERROR('Process - GR - Numbers'!H56/'Process - GR - Numbers'!$C$56,"-") -> 0.04 | J81: =IFERROR('Process - GR - Numbers'!I56/'Process - GR - Numbers'!$C$56,"-") -> 0 | K81: =IFERROR('Process - GR - Numbers'!J56/'Process - GR - Numbers'!$C$56,"-") -> 0.28 | L81: =IFERROR('Process - GR - Numbers'!K56/'Process - GR - Numbers'!$C$56,"-") -> 1 | M81: =IFERROR('Process - GR - Numbers'!L56/'Process - GR - Numbers'!$C$56,"-") -> 0 | N81: =IFERROR('Process - GR - Numbers'!M56/'Process - GR - Numbers'!$C$56,"-") -> 0 | O81: =IFERROR('Process - GR - Numbers'!N56/'Process - GR - Numbers'!$C$56,"-") -> 0.32 | P81: =IFERROR('Process - GR - Numbers'!O56/'Process - GR - Numbers'!$C$56,"-") -> 0.4 | Q81: =IFERROR('Process - GR - Numbers'!P56/'Process - GR - Numbers'!$C$56,"-") -> 0.04 | R81: =IFERROR('Process - GR - Numbers'!Q56/'Process - GR - Numbers'!$C$56,"-") -> 0 | S81: =IFERROR('Process - GR - Numbers'!R56/'Process - GR - Numbers'!$C$56,"-") -> 0.24 | T81: =IFERROR('Process - GR - Numbers'!S56/'Process - GR - Numbers'!$C$56,"-") -> 1 | U81: =IFERROR('Process - GR - Numbers'!T56/'Process - GR - Numbers'!$C$56,"-") -> 0 | V81: =IFERROR('Process - GR - Numbers'!U56/'Process - GR - Numbers'!$C$56,"-") -> 0 | W81: =IFERROR('Process - GR - Numbers'!V56/'Process - GR - Numbers'!$C$56,"-") -> 0.2 | X81: =IFERROR('Process - GR - Numbers'!W56/'Process - GR - Numbers'!$C$56,"-") -> 0.56 | Y81: =IFERROR('Process - GR - Numbers'!X56/'Process - GR - Numbers'!$C$56,"-") -> 0.04 | Z81: =IFERROR('Process - GR - Numbers'!Y56/'Process - GR - Numbers'!$C$56,"-") -> 0 | AA81: =IFERROR('Process - GR - Numbers'!Z56/'Process - GR - Numbers'!$C$56,"-") -> 0.2 | AB81: =IFERROR('Process - GR - Numbers'!AA56/'Process - GR - Numbers'!$C$56,"-") -> 1 | AE81: =IFERROR('Process - GR - Numbers'!AD56/'Process - GR - Numbers'!$C$56,"-") -> 0 | AF81: =IFERROR('Process - GR - Numbers'!AE56/'Process - GR - Numbers'!$C$56,"-") -> 0 | AG81: =IFERROR('Process - GR - Numbers'!AF56/'Process - GR - Numbers'!$C$56,"-") -> 0 | AH81: =IFERROR('Process - GR - Numbers'!AG56/'Process - GR - Numbers'!$C$56,"-") -> 0 | AI81: =IFERROR('Process - GR - Numbers'!AH56/'Process - GR - Numbers'!$C$56,"-") -> 0 | AJ81: =IFERROR('Process - GR - Numbers'!AI56/'Process - GR - Numbers'!$C$56,"-") -> 0 | AK81: =IFERROR('Process - GR - Numbers'!AJ56/'Process - GR - Numbers'!$C$56,"-") -> 0 | AL81: =IFERROR('Process - GR - Numbers'!AK56/'Process - GR - Numbers'!$C$56,"-") -> 0 | AM81: =IFERROR('Process - GR - Numbers'!AL56/'Process - GR - Numbers'!$C$56,"-") -> 0 | AN81: =IFERROR('Process - GR - Numbers'!AM56/'Process - GR - Numbers'!$C$56,"-") -> 0 | AO81: =IFERROR('Process - GR - Numbers'!AN56/'Process - GR - Numbers'!$C$56,"-") -> 0 | AP81: =IFERROR('Process - GR - Numbers'!AO56/'Process - GR - Numbers'!$C$56,"-") -> 0 | AQ81: =IFERROR('Process - GR - Numbers'!AP56/'Process - GR - Numbers'!$C$56,"-") -> 0 | AR81: =IFERROR('Process - GR - Numbers'!AQ56/'Process - GR - Numbers'!$C$56,"-") -> 0
B82: =INDEX(Academic_Years_Report,COUNTA(Academic_Years_Report)-1) -> 2009-2010 | D82: ='Process - GR - Numbers'!C60 -> 18 | G82: =IFERROR('Process - GR - Numbers'!F60/'Process - GR - Numbers'!$C$60,"-") -> 0.7777777778 | H82: =IFERROR('Process - GR - Numbers'!G60/'Process - GR - Numbers'!$C$60,"-") -> 0 | I82: =IFERROR('Process - GR - Numbers'!H60/'Process - GR - Numbers'!$C$60,"-") -> 0.05555555556 | J82: =IFERROR('Process - GR - Numbers'!I60/'Process - GR - Numbers'!$C$60,"-") -> 0 | K82: =IFERROR('Process - GR - Numbers'!J60/'Process - GR - Numbers'!$C$60,"-") -> 0.1666666667 | L82: =IFERROR('Process - GR - Numbers'!K60/'Process - GR - Numbers'!$C$60,"-") -> 1 | M82: =IFERROR('Process - GR - Numbers'!L60/'Process - GR - Numbers'!$C$60,"-") -> 0 | N82: =IFERROR('Process - GR - Numbers'!M60/'Process - GR - Numbers'!$C$60,"-") -> 0 | O82: =IFERROR('Process - GR - Numbers'!N60/'Process - GR - Numbers'!$C$60,"-") -> 0.3333333333 | P82: =IFERROR('Process - GR - Numbers'!O60/'Process - GR - Numbers'!$C$60,"-") -> 0.4444444444 | Q82: =IFERROR('Process - GR - Numbers'!P60/'Process - GR - Numbers'!$C$60,"-") -> 0 | R82: =IFERROR('Process - GR - Numbers'!Q60/'Process - GR - Numbers'!$C$60,"-") -> 0.05555555556 | S82: =IFERROR('Process - GR - Numbers'!R60/'Process - GR - Numbers'!$C$60,"-") -> 0.1666666667 | T82: =IFERROR('Process - GR - Numbers'!S60/'Process - GR - Numbers'!$C$60,"-") -> 1 | U82: =IFERROR('Process - GR - Numbers'!T60/'Process - GR - Numbers'!$C$60,"-") -> 0 | V82: =IFERROR('Process - GR - Numbers'!U60/'Process - GR - Numbers'!$C$60,"-") -> 0 | W82: =IFERROR('Process - GR - Numbers'!V60/'Process - GR - Numbers'!$C$60,"-") -> 0 | X82: =IFERROR('Process - GR - Numbers'!W60/'Process - GR - Numbers'!$C$60,"-") -> 0 | Y82: =IFERROR('Process - GR - Numbers'!X60/'Process - GR - Numbers'!$C$60,"-") -> 0 | Z82: =IFERROR('Process - GR - Numbers'!Y60/'Process - GR - Numbers'!$C$60,"-") -> 0 | AA82: =IFERROR('Process - GR - Numbers'!Z60/'Process - GR - Numbers'!$C$60,"-") -> 0 | AB82: =IFERROR('Process - GR - Numbers'!AA60/'Process - GR - Numbers'!$C$60,"-") -> 0 | AE82: =IFERROR('Process - GR - Numbers'!AD60/'Process - GR - Numbers'!$C$60,"-") -> 0 | AF82: =IFERROR('Process - GR - Numbers'!AE60/'Process - GR - Numbers'!$C$60,"-") -> 0 | AG82: =IFERROR('Process - GR - Numbers'!AF60/'Process - GR - Numbers'!$C$60,"-") -> 0 | AH82: =IFERROR('Process - GR - Numbers'!AG60/'Process - GR - Numbers'!$C$60,"-") -> 0 | AI82: =IFERROR('Process - GR - Numbers'!AH60/'Process - GR - Numbers'!$C$60,"-") -> 0 | AJ82: =IFERROR('Process - GR - Numbers'!AI60/'Process - GR - Numbers'!$C$60,"-") -> 0 | AK82: =IFERROR('Process - GR - Numbers'!AJ60/'Process - GR - Numbers'!$C$60,"-") -> 0 | AL82: =IFERROR('Process - GR - Numbers'!AK60/'Process - GR - Numbers'!$C$60,"-") -> 0 | AM82: =IFERROR('Process - GR - Numbers'!AL60/'Process - GR - Numbers'!$C$60,"-") -> 0 | AN82: =IFERROR('Process - GR - Numbers'!AM60/'Process - GR - Numbers'!$C$60,"-") -> 0 | AO82: =IFERROR('Process - GR - Numbers'!AN60/'Process - GR - Numbers'!$C$60,"-") -> 0 | AP82: =IFERROR('Process - GR - Numbers'!AO60/'Process - GR - Numbers'!$C$60,"-") -> 0 | AQ82: =IFERROR('Process - GR - Numbers'!AP60/'Process - GR - Numbers'!$C$60,"-") -> 0 | AR82: =IFERROR('Process - GR - Numbers'!AQ60/'Process - GR - Numbers'!$C$60,"-") -> 0 | AS82: =IFERROR('Process - GR - Numbers'!AR60/'Process - GR - Numbers'!$C$60,"-") -> 0
B83: =INDEX(Academic_Years_Report,COUNTA(Academic_Years_Report)-0) -> 2010-2011 | D83: ='Process - GR - Numbers'!C64 -> 23 | G83: =IFERROR('Process - GR - Numbers'!F64/$D$83,"-") -> 0.6956521739 | H83: =IFERROR('Process - GR - Numbers'!G64/$D$83,"-") -> 0 | I83: =IFERROR('Process - GR - Numbers'!H64/$D$83,"-") -> 0 | J83: =IFERROR('Process - GR - Numbers'!I64/$D$83,"-") -> 0 | K83: =IFERROR('Process - GR - Numbers'!J64/$D$83,"-") -> 0.3043478261 | L83: =IFERROR('Process - GR - Numbers'!K64/$D$83,"-") -> 1 | M83: =IFERROR('Process - GR - Numbers'!L64/$D$83,"-") -> 0 | N83: =IFERROR('Process - GR - Numbers'!M64/$D$83,"-") -> 0 | O83: =IFERROR('Process - GR - Numbers'!N64/$D$83,"-") -> 0 | P83: =IFERROR('Process - GR - Numbers'!O64/$D$83,"-") -> 0 | Q83: =IFERROR('Process - GR - Numbers'!P64/$D$83,"-") -> 0 | R83: =IFERROR('Process - GR - Numbers'!Q64/$D$83,"-") -> 0 | S83: =IFERROR('Process - GR - Numbers'!R64/$D$83,"-") -> 0 | T83: =IFERROR('Process - GR - Numbers'!S64/$D$83,"-") -> 0 | U83: =IFERROR('Process - GR - Numbers'!T64/$D$83,"-") -> 0 | V83: =IFERROR('Process - GR - Numbers'!U64/$D$83,"-") -> 0 | W83: =IFERROR('Process - GR - Numbers'!V64/$D$83,"-") -> 0 | X83: =IFERROR('Process - GR - Numbers'!W64/$D$83,"-") -> 0 | Y83: =IFERROR('Process - GR - Numbers'!X64/$D$83,"-") -> 0 | Z83: =IFERROR('Process - GR - Numbers'!Y64/$D$83,"-") -> 0 | AA83: =IFERROR('Process - GR - Numbers'!Z64/$D$83,"-") -> 0 | AB83: =IFERROR('Process - GR - Numbers'!AA64/$D$83,"-") -> 0 | AE83: =IFERROR('Process - GR - Numbers'!AD64/$D$83,"-") -> 0 | AF83: =IFERROR('Process - GR - Numbers'!AE64/$D$83,"-") -> 0 | AG83: =IFERROR('Process - GR - Numbers'!AF64/$D$83,"-") -> 0 | AH83: =IFERROR('Process - GR - Numbers'!AG64/$D$83,"-") -> 0 | AI83: =IFERROR('Process - GR - Numbers'!AH64/$D$83,"-") -> 0 | AJ83: =IFERROR('Process - GR - Numbers'!AI64/$D$83,"-") -> 0 | AK83: =IFERROR('Process - GR - Numbers'!AJ64/$D$83,"-") -> 0 | AL83: =IFERROR('Process - GR - Numbers'!AK64/$D$83,"-") -> 0 | AM83: =IFERROR('Process - GR - Numbers'!AL64/$D$83,"-") -> 0 | AN83: =IFERROR('Process - GR - Numbers'!AM64/$D$83,"-") -> 0 | AO83: =IFERROR('Process - GR - Numbers'!AN64/$D$83,"-") -> 0 | AP83: =IFERROR('Process - GR - Numbers'!AO64/$D$83,"-") -> 0 | AQ83: =IFERROR('Process - GR - Numbers'!AP64/$D$83,"-") -> 0 | AR83: =IFERROR('Process - GR - Numbers'!AQ64/$D$83,"-") -> 0 | AS83: ='Process - GR - Numbers'!AR64/$D$83 -> 0
W99: Average Graduate Program Data for Comparison
D100: New Cohort | G100: @1 year | O100: @2 years | W100: @3 years | AE100: @4 years | AM100: @6 years
D101: 0.5
B102: Year | D102: New Cohort | G102: Prg Ret | H102: Prg Grad | I102: WCU Ret | J102: WCU Grad | K102: Not Retained | L102: Total | O102: Prg Ret | P102: Prg Grad | Q102: WCU Ret | R102: WCU Grad | S102: Not Retained | T102: Total | W102: Prg Ret | X102: Prg Grad | Y102: WCU Ret | Z102: WCU Grad | AA102: Not Retained | AB102: Total | AE102: Prg Ret | AF102: Prg Grad | AG102: WCU Ret | AH102: WCU Grad | AI102: Not Retained | AJ102: Total | AM102: Prg Ret | AN102: Prg Grad | AO102: WCU Ret | AP102: WCU Grad | AQ102: Not Retained | AR102: Total
B103: =INDEX(Academic_Years_Report,COUNTA(Academic_Years_Report)-7) -> 2003-2004 | D103: ='Process - GR AVE'!C36 -> 14.83333333 | G103: =IFERROR('Process - GR AVE'!F36/'Process - GR AVE'!$C$36,"-") -> 0.6516853933 | H103: =IFERROR('Process - GR AVE'!G36/'Process - GR AVE'!$C$36,"-") -> 0.08988764045 | I103: =IFERROR('Process - GR AVE'!H36/'Process - GR AVE'!$C$36,"-") -> 0.03370786517 | J103: =IFERROR('Process - GR AVE'!I36/'Process - GR AVE'!$C$36,"-") -> 0.01123595506 | K103: =IFERROR('Process - GR AVE'!J36/'Process - GR AVE'!$C$36,"-") -> 0.2134831461 | L103: =IFERROR('Process - GR AVE'!K36/'Process - GR AVE'!$C$36,"-") -> 1 | O103: =IFERROR('Process - GR AVE'!N36/'Process - GR AVE'!$C$36,"-") -> 0.2640449438 | P103: =IFERROR('Process - GR AVE'!O36/'Process - GR AVE'!$C$36,"-") -> 0.393258427 | Q103: =IFERROR('Process - GR AVE'!P36/'Process - GR AVE'!$C$36,"-") -> 0.02247191011 | R103: =IFERROR('Process - GR AVE'!Q36/'Process - GR AVE'!$C$36,"-") -> 0.02247191011 | S103: =IFERROR('Process - GR AVE'!R36/'Process - GR AVE'!$C$36,"-") -> 0.297752809 | T103: =IFERROR('Process - GR AVE'!S36/'Process - GR AVE'!$C$36,"-") -> 1 | W103: =IFERROR('Process - GR AVE'!V36/'Process - GR AVE'!$C$36,"-") -> 0.06741573034 | X103: =IFERROR('Process - GR AVE'!W36/'Process - GR AVE'!$C$36,"-") -> 0.595505618 | Y103: =IFERROR('Process - GR AVE'!X36/'Process - GR AVE'!$C$36,"-") -> 0.02808988764 | Z103: =IFERROR('Process - GR AVE'!Y36/'Process - GR AVE'!$C$36,"-") -> 0.02247191011 | AA103: =IFERROR('Process - GR AVE'!Z36/'Process - GR AVE'!$C$36,"-") -> 0.2865168539 | AB103: =IFERROR('Process - GR AVE'!AA36/'Process - GR AVE'!$C$36,"-") -> 1 | AE103: =IFERROR('Process - GR AVE'!AD36/'Process - GR AVE'!$C$36,"-") -> 0.02808988764 | AF103: =IFERROR('Process - GR AVE'!AE36/'Process - GR AVE'!$C$36,"-") -> 0.6235955056 | AG103: =IFERROR('Process - GR AVE'!AF36/'Process - GR AVE'!$C$36,"-") -> 0.02247191011 | AH103: =IFERROR('Process - GR AVE'!AG36/'Process - GR AVE'!$C$36,"-") -> 0.02247191011 | AI103: =IFERROR('Process - GR AVE'!AH36/'Process - GR AVE'!$C$36,"-") -> 0.3033707865 | AJ103: =IFERROR('Process - GR AVE'!AI36/'Process - GR AVE'!$C$36,"-") -> 1 | AM103: =IFERROR('Process - GR AVE'!AL36/'Process - GR AVE'!$C$36,"-") -> 0 | AN103: =IFERROR('Process - GR AVE'!AM36/'Process - GR AVE'!$C$36,"-") -> 0.6460674157 | AO103: =IFERROR('Process - GR AVE'!AN36/'Process - GR AVE'!$C$36,"-") -> 0 | AP103: =IFERROR('Process - GR AVE'!AO36/'Process - GR AVE'!$C$36,"-") -> 0.04494382022 | AQ103: =IFERROR('Process - GR AVE'!AP36/'Process - GR AVE'!$C$36,"-") -> 0.308988764 | AR103: =IFERROR('Process - GR AVE'!AQ36/'Process - GR AVE'!$C$36,"-") -> 1
B104: =INDEX(Academic_Years_Report,COUNTA(Academic_Years_Report)-6) -> 2004-2005 | D104: ='Process - GR AVE'!C40 -> 14.2 | G104: =IFERROR('Process - GR AVE'!F40/'Process - GR AVE'!$C$40,"-") -> 0.5774647887 | H104: =IFERROR('Process - GR AVE'!G40/'Process - GR AVE'!$C$40,"-") -> 0.0985915493 | I104: =IFERROR('Process - GR AVE'!H40/'Process - GR AVE'!$C$40,"-") -> 0.02816901408 | J104: =IFERROR('Process - GR AVE'!I40/'Process - GR AVE'!$C$40,"-") -> 0.01408450704 | K104: =IFERROR('Process - GR AVE'!J40/'Process - GR AVE'!$C$40,"-") -> 0.2816901408 | L104: =IFERROR('Process - GR AVE'!K40/'Process - GR AVE'!$C$40,"-") -> 1 | O104: =IFERROR('Process - GR AVE'!N40/'Process - GR AVE'!$C$40,"-") -> 0.1971830986 | P104: =IFERROR('Process - GR AVE'!O40/'Process - GR AVE'!$C$40,"-") -> 0.4788732394 | Q104: =IFERROR('Process - GR AVE'!P40/'Process - GR AVE'!$C$40,"-") -> 0 | R104: =IFERROR('Process - GR AVE'!Q40/'Process - GR AVE'!$C$40,"-") -> 0.02816901408 | S104: =IFERROR('Process - GR AVE'!R40/'Process - GR AVE'!$C$40,"-") -> 0.2957746479 | T104: =IFERROR('Process - GR AVE'!S40/'Process - GR AVE'!$C$40,"-") -> 1 | W104: =IFERROR('Process - GR AVE'!V40/'Process - GR AVE'!$C$40,"-") -> 0.08450704225 | X104: =IFERROR('Process - GR AVE'!W40/'Process - GR AVE'!$C$40,"-") -> 0.5774647887 | Y104: =IFERROR('Process - GR AVE'!X40/'Process - GR AVE'!$C$40,"-") -> 0 | Z104: =IFERROR('Process - GR AVE'!Y40/'Process - GR AVE'!$C$40,"-") -> 0.02816901408 | AA104: =IFERROR('Process - GR AVE'!Z40/'Process - GR AVE'!$C$40,"-") -> 0.3098591549 | AB104: =IFERROR('Process - GR AVE'!AA40/'Process - GR AVE'!$C$40,"-") -> 1 | AE104: =IFERROR('Process - GR AVE'!AD40/'Process - GR AVE'!$C$40,"-") -> 0.01408450704 | AF104: =IFERROR('Process - GR AVE'!AE40/'Process - GR AVE'!$C$40,"-") -> 0.6197183099 | AG104: =IFERROR('Process - GR AVE'!AF40/'Process - GR AVE'!$C$40,"-") -> 0 | AH104: =IFERROR('Process - GR AVE'!AG40/'Process - GR AVE'!$C$40,"-") -> 0.02816901408 | AI104: =IFERROR('Process - GR AVE'!AH40/'Process - GR AVE'!$C$40,"-") -> 0.338028169 | AJ104: =IFERROR('Process - GR AVE'!AI40/'Process - GR AVE'!$C$40,"-") -> 1 | AM104: =IFERROR('Process - GR AVE'!AL40/'Process - GR AVE'!$C$40,"-") -> 0 | AN104: =IFERROR('Process - GR AVE'!AM40/'Process - GR AVE'!$C$40,"-") -> 0.661971831 | AO104: =IFERROR('Process - GR AVE'!AN40/'Process - GR AVE'!$C$40,"-") -> 0 | AP104: =IFERROR('Process - GR AVE'!AO40/'Process - GR AVE'!$C$40,"-") -> 0.02816901408 | AQ104: =IFERROR('Process - GR AVE'!AP40/'Process - GR AVE'!$C$40,"-") -> 0.3098591549 | AR104: =IFERROR('Process - GR AVE'!AQ40/'Process - GR AVE'!$C$40,"-") -> 1
B105: =INDEX(Academic_Years_Report,COUNTA(Academic_Years_Report)-5) -> 2005-2006 | D105: ='Process - GR AVE'!C44 -> 18.5 | G105: =IFERROR('Process - GR AVE'!F44/'Process - GR AVE'!$C$44,"-") -> 0.5810810811 | H105: =IFERROR('Process - GR AVE'!G44/'Process - GR AVE'!$C$44,"-") -> 0.1486486486 | I105: =IFERROR('Process - GR AVE'!H44/'Process - GR AVE'!$C$44,"-") -> 0.01351351351 | J105: =IFERROR('Process - GR AVE'!I44/'Process - GR AVE'!$C$44,"-") -> 0.01351351351 | K105: =IFERROR('Process - GR AVE'!J44/'Process - GR AVE'!$C$44,"-") -> 0.2432432432 | L105: =IFERROR('Process - GR AVE'!K44/'Process - GR AVE'!$C$44,"-") -> 1 | O105: =IFERROR('Process - GR AVE'!N44/'Process - GR AVE'!$C$44,"-") -> 0.2297297297 | P105: =IFERROR('Process - GR AVE'!O44/'Process - GR AVE'!$C$44,"-") -> 0.4054054054 | Q105: =IFERROR('Process - GR AVE'!P44/'Process - GR AVE'!$C$44,"-") -> 0.04054054054 | R105: =IFERROR('Process - GR AVE'!Q44/'Process - GR AVE'!$C$44,"-") -> 0.01351351351 | S105: =IFERROR('Process - GR AVE'!R44/'Process - GR AVE'!$C$44,"-") -> 0.3108108108 | T105: =IFERROR('Process - GR AVE'!S44/'Process - GR AVE'!$C$44,"-") -> 1 | W105: =IFERROR('Process - GR AVE'!V44/'Process - GR AVE'!$C$44,"-") -> 0.08108108108 | X105: =IFERROR('Process - GR AVE'!W44/'Process - GR AVE'!$C$44,"-") -> 0.5405405405 | Y105: =IFERROR('Process - GR AVE'!X44/'Process - GR AVE'!$C$44,"-") -> 0.02702702703 | Z105: =IFERROR('Process - GR AVE'!Y44/'Process - GR AVE'!$C$44,"-") -> 0.04054054054 | AA105: =IFERROR('Process - GR AVE'!Z44/'Process - GR AVE'!$C$44,"-") -> 0.3108108108 | AB105: =IFERROR('Process - GR AVE'!AA44/'Process - GR AVE'!$C$44,"-") -> 1 | AE105: =IFERROR('Process - GR AVE'!AD44/'Process - GR AVE'!$C$44,"-") -> 0.04054054054 | AF105: =IFERROR('Process - GR AVE'!AE44/'Process - GR AVE'!$C$44,"-") -> 0.5810810811 | AG105: =IFERROR('Process - GR AVE'!AF44/'Process - GR AVE'!$C$44,"-") -> 0 | AH105: =IFERROR('Process - GR AVE'!AG44/'Process - GR AVE'!$C$44,"-") -> 0.06756756757 | AI105: =IFERROR('Process - GR AVE'!AH44/'Process - GR AVE'!$C$44,"-") -> 0.3108108108 | AJ105: =IFERROR('Process - GR AVE'!AI44/'Process - GR AVE'!$C$44,"-") -> 1 | AM105: =IFERROR('Process - GR AVE'!AL44/'Process - GR AVE'!$C$44,"-") -> 0.01351351351 | AN105: =IFERROR('Process - GR AVE'!AM44/'Process - GR AVE'!$C$44,"-") -> 0.6486486486 | AO105: =IFERROR('Process - GR AVE'!AN44/'Process - GR AVE'!$C$44,"-") -> 0 | AP105: =IFERROR('Process - GR AVE'!AO44/'Process - GR AVE'!$C$44,"-") -> 0.06756756757 | AQ105: =IFERROR('Process - GR AVE'!AP44/'Process - GR AVE'!$C$44,"-") -> 0.2702702703 | AR105: =IFERROR('Process - GR AVE'!AQ44/'Process - GR AVE'!$C$44,"-") -> 1
B106: =INDEX(Academic_Years_Report,COUNTA(Academic_Years_Report)-4) -> 2006-2007 | D106: ='Process - GR AVE'!C48 -> 10.8 | G106: =IFERROR('Process - GR AVE'!F48/'Process - GR AVE'!$C$48,"-") -> 0.5185185185 | H106: =IFERROR('Process - GR AVE'!G48/'Process - GR AVE'!$C$48,"-") -> 0.1111111111 | I106: =IFERROR('Process - GR AVE'!H48/'Process - GR AVE'!$C$48,"-") -> 0.03703703704 | J106: =IFERROR('Process - GR AVE'!I48/'Process - GR AVE'!$C$48,"-") -> 0.01851851852 | K106: =IFERROR('Process - GR AVE'!J48/'Process - GR AVE'!$C$48,"-") -> 0.3148148148 | L106: =IFERROR('Process - GR AVE'!K48/'Process - GR AVE'!$C$48,"-") -> 1 | O106: =IFERROR('Process - GR AVE'!N48/'Process - GR AVE'!$C$48,"-") -> 0.2222222222 | P106: =IFERROR('Process - GR AVE'!O48/'Process - GR AVE'!$C$48,"-") -> 0.3703703704 | Q106: =IFERROR('Process - GR AVE'!P48/'Process - GR AVE'!$C$48,"-") -> 0.07407407407 | R106: =IFERROR('Process - GR AVE'!Q48/'Process - GR AVE'!$C$48,"-") -> 0.01851851852 | S106: =IFERROR('Process - GR AVE'!R48/'Process - GR AVE'!$C$48,"-") -> 0.3148148148 | T106: =IFERROR('Process - GR AVE'!S48/'Process - GR AVE'!$C$48,"-") -> 1 | W106: =IFERROR('Process - GR AVE'!V48/'Process - GR AVE'!$C$48,"-") -> 0.07407407407 | X106: =IFERROR('Process - GR AVE'!W48/'Process - GR AVE'!$C$48,"-") -> 0.5185185185 | Y106: =IFERROR('Process - GR AVE'!X48/'Process - GR AVE'!$C$48,"-") -> 0.01851851852 | Z106: =IFERROR('Process - GR AVE'!Y48/'Process - GR AVE'!$C$48,"-") -> 0.05555555556 | AA106: =IFERROR('Process - GR AVE'!Z48/'Process - GR AVE'!$C$48,"-") -> 0.3333333333 | AB106: =IFERROR('Process - GR AVE'!AA48/'Process - GR AVE'!$C$48,"-") -> 1 | AE106: =IFERROR('Process - GR AVE'!AD48/'Process - GR AVE'!$C$48,"-") -> 0.03703703704 | AF106: =IFERROR('Process - GR AVE'!AE48/'Process - GR AVE'!$C$48,"-") -> 0.6111111111 | AG106: =IFERROR('Process - GR AVE'!AF48/'Process - GR AVE'!$C$48,"-") -> 0 | AH106: =IFERROR('Process - GR AVE'!AG48/'Process - GR AVE'!$C$48,"-") -> 0.05555555556 | AI106: =IFERROR('Process - GR AVE'!AH48/'Process - GR AVE'!$C$48,"-") -> 0.2962962963 | AJ106: =IFERROR('Process - GR AVE'!AI48/'Process - GR AVE'!$C$48,"-") -> 1
B107: =INDEX(Academic_Years_Report,COUNTA(Academic_Years_Report)-3) -> 2007-2008 | D107: ='Process - GR AVE'!C52 -> 16.2 | G107: =IFERROR('Process - GR AVE'!F52/'Process - GR AVE'!$C$52,"-") -> 0.6172839506 | H107: =IFERROR('Process - GR AVE'!G52/'Process - GR AVE'!$C$52,"-") -> 0.08641975309 | I107: =IFERROR('Process - GR AVE'!H52/'Process - GR AVE'!$C$52,"-") -> 0.04938271605 | J107: =IFERROR('Process - GR AVE'!I52/'Process - GR AVE'!$C$52,"-") -> 0 | K107: =IFERROR('Process - GR AVE'!J52/'Process - GR AVE'!$C$52,"-") -> 0.2469135802 | L107: =IFERROR('Process - GR AVE'!K52/'Process - GR AVE'!$C$52,"-") -> 1 | O107: =IFERROR('Process - GR AVE'!N52/'Process - GR AVE'!$C$52,"-") -> 0.2469135802 | P107: =IFERROR('Process - GR AVE'!O52/'Process - GR AVE'!$C$52,"-") -> 0.3827160494 | Q107: =IFERROR('Process - GR AVE'!P52/'Process - GR AVE'!$C$52,"-") -> 0.01234567901 | R107: =IFERROR('Process - GR AVE'!Q52/'Process - GR AVE'!$C$52,"-") -> 0.01234567901 | S107: =IFERROR('Process - GR AVE'!R52/'Process - GR AVE'!$C$52,"-") -> 0.3456790123 | T107: =IFERROR('Process - GR AVE'!S52/'Process - GR AVE'!$C$52,"-") -> 1 | W107: =IFERROR('Process - GR AVE'!V52/'Process - GR AVE'!$C$52,"-") -> 0.1111111111 | X107: =IFERROR('Process - GR AVE'!W52/'Process - GR AVE'!$C$52,"-") -> 0.5555555556 | Y107: =IFERROR('Process - GR AVE'!X52/'Process - GR AVE'!$C$52,"-") -> 0.01234567901 | Z107: =IFERROR('Process - GR AVE'!Y52/'Process - GR AVE'!$C$52,"-") -> 0.02469135802 | AA107: =IFERROR('Process - GR AVE'!Z52/'Process - GR AVE'!$C$52,"-") -> 0.2962962963 | AB107: =IFERROR('Process - GR AVE'!AA52/'Process - GR AVE'!$C$52,"-") -> 1 | AE107: =IFERROR('Process - GR AVE'!AD52/'Process - GR AVE'!$C$52,"-") -> 0.01234567901 | AF107: =IFERROR('Process - GR AVE'!AE52/'Process - GR AVE'!$C$52,"-") -> 0.6543209877 | AG107: =IFERROR('Process - GR AVE'!AF52/'Process - GR AVE'!$C$52,"-") -> 0 | AH107: =IFERROR('Process - GR AVE'!AG52/'Process - GR AVE'!$C$52,"-") -> 0.02469135802 | AI107: =IFERROR('Process - GR AVE'!AH52/'Process - GR AVE'!$C$52,"-") -> 0.3086419753 | AJ107: =IFERROR('Process - GR AVE'!AI52/'Process - GR AVE'!$C$52,"-") -> 1
B108: =INDEX(Academic_Years_Report,COUNTA(Academic_Years_Report)-2) -> 2008-2009 | D108: ='Process - GR AVE'!C56 -> 17 | G108: =IFERROR('Process - GR AVE'!F56/'Process - GR AVE'!$C$56,"-") -> 0.7058823529 | H108: =IFERROR('Process - GR AVE'!G56/'Process - GR AVE'!$C$56,"-") -> 0.03529411765 | I108: =IFERROR('Process - GR AVE'!H56/'Process - GR AVE'!$C$56,"-") -> 0.02352941176 | J108: =IFERROR('Process - GR AVE'!I56/'Process - GR AVE'!$C$56,"-") -> 0 | K108: =IFERROR('Process - GR AVE'!J56/'Process - GR AVE'!$C$56,"-") -> 0.2352941176 | L108: =IFERROR('Process - GR AVE'!K56/'Process - GR AVE'!$C$56,"-") -> 1 | M108: =IFERROR('Process - GR AVE'!L56/'Process - GR AVE'!$C$56,"-") -> 0 | N108: =IFERROR('Process - GR AVE'!M56/'Process - GR AVE'!$C$56,"-") -> 0 | O108: =IFERROR('Process - GR AVE'!N56/'Process - GR AVE'!$C$56,"-") -> 0.2705882353 | P108: =IFERROR('Process - GR AVE'!O56/'Process - GR AVE'!$C$56,"-") -> 0.4588235294 | Q108: =IFERROR('Process - GR AVE'!P56/'Process - GR AVE'!$C$56,"-") -> 0.01176470588 | R108: =IFERROR('Process - GR AVE'!Q56/'Process - GR AVE'!$C$56,"-") -> 0.01176470588 | S108: =IFERROR('Process - GR AVE'!R56/'Process - GR AVE'!$C$56,"-") -> 0.2470588235 | T108: =IFERROR('Process - GR AVE'!S56/'Process - GR AVE'!$C$56,"-") -> 1 | U108: =IFERROR('Process - GR AVE'!T56/'Process - GR AVE'!$C$56,"-") -> 0 | V108: =IFERROR('Process - GR AVE'!U56/'Process - GR AVE'!$C$56,"-") -> 0 | W108: =IFERROR('Process - GR AVE'!V56/'Process - GR AVE'!$C$56,"-") -> 0.08235294118 | X108: =IFERROR('Process - GR AVE'!W56/'Process - GR AVE'!$C$56,"-") -> 0.6705882353 | Y108: =IFERROR('Process - GR AVE'!X56/'Process - GR AVE'!$C$56,"-") -> 0.01176470588 | Z108: =IFERROR('Process - GR AVE'!Y56/'Process - GR AVE'!$C$56,"-") -> 0.01176470588 | AA108: =IFERROR('Process - GR AVE'!Z56/'Process - GR AVE'!$C$56,"-") -> 0.2235294118 | AB108: =IFERROR('Process - GR AVE'!AA56/'Process - GR AVE'!$C$56,"-") -> 1 | AC108: =IFERROR('Process - GR AVE'!AB56/'Process - GR AVE'!$C$56,"-") -> 0
B109: =INDEX(Academic_Years_Report,COUNTA(Academic_Years_Report)-1) -> 2009-2010 | D109: ='Process - GR AVE'!C60 -> 18.5 | G109: =IFERROR('Process - GR AVE'!F60/'Process - GR AVE'!$C$60,"-") -> 0.7027027027 | H109: =IFERROR('Process - GR AVE'!G60/'Process - GR AVE'!$C$60,"-") -> 0.04054054054 | I109: =IFERROR('Process - GR AVE'!H60/'Process - GR AVE'!$C$60,"-") -> 0.01351351351 | J109: =IFERROR('Process - GR AVE'!I60/'Process - GR AVE'!$C$60,"-") -> 0 | K109: =IFERROR('Process - GR AVE'!J60/'Process - GR AVE'!$C$60,"-") -> 0.2432432432 | L109: =IFERROR('Process - GR AVE'!K60/'Process - GR AVE'!$C$60,"-") -> 1 | M109: =IFERROR('Process - GR AVE'!L60/'Process - GR AVE'!$C$60,"-") -> 0 | N109: =IFERROR('Process - GR AVE'!M60/'Process - GR AVE'!$C$60,"-") -> 0 | O109: =IFERROR('Process - GR AVE'!N60/'Process - GR AVE'!$C$60,"-") -> 0.2837837838 | P109: =IFERROR('Process - GR AVE'!O60/'Process - GR AVE'!$C$60,"-") -> 0.3918918919 | Q109: =IFERROR('Process - GR AVE'!P60/'Process - GR AVE'!$C$60,"-") -> 0.02702702703 | R109: =IFERROR('Process - GR AVE'!Q60/'Process - GR AVE'!$C$60,"-") -> 0.01351351351 | S109: =IFERROR('Process - GR AVE'!R60/'Process - GR AVE'!$C$60,"-") -> 0.2837837838 | T109: =IFERROR('Process - GR AVE'!S60/'Process - GR AVE'!$C$60,"-") -> 1
B110: =INDEX(Academic_Years_Report,COUNTA(Academic_Years_Report)-0) -> 2010-2011 | D110: ='Process - GR AVE'!C64 -> 20.5 | G110: =IFERROR('Process - GR AVE'!F64/'Process - GR AVE'!$C$64,"-") -> 0.5731707317 | H110: =IFERROR('Process - GR AVE'!G64/'Process - GR AVE'!$C$64,"-") -> 0.1707317073 | I110: =IFERROR('Process - GR AVE'!H64/'Process - GR AVE'!$C$64,"-") -> 0 | J110: =IFERROR('Process - GR AVE'!I64/'Process - GR AVE'!$C$64,"-") -> 0 | K110: =IFERROR('Process - GR AVE'!J64/'Process - GR AVE'!$C$64,"-") -> 0.256097561 | L110: =IFERROR('Process - GR AVE'!K64/'Process - GR AVE'!$C$64,"-") -> 1
D127: New Cohort | G127: @1 year | O127: @2 years | W127: @3 years | AE127: @4 years | AM127: @6 years
D128: 0.5 | L128: 1 | T128: 2 | AB128: 3 | AJ128: 4 | AR128: 6
B129: Year | C129: Semester | D129: New Cohort | G129: Prg Ret | H129: Prg Grad | I129: WCU Ret | J129: WCU Grad | K129: Not Retained | L129: Total | O129: Prg Ret | P129: Prg Grad | Q129: WCU Ret | R129: WCU Grad | S129: Not Retained | T129: Total | W129: Prg Ret | X129: Prg Grad | Y129: WCU Ret | Z129: WCU Grad | AA129: Not Retained | AB129: Total | AE129: Prg Ret | AF129: Prg Grad | AG129: WCU Ret | AH129: WCU Grad | AI129: Not Retained | AJ129: Total | AM129: Prg Ret | AN129: Prg Grad | AO129: WCU Ret | AP129: WCU Grad | AQ129: Not Retained | AR129: Total
B130: 1996 | C130: Fall | D130: =SUMIFS(Program_Retention[Cohort_Count],Program_Retention[program_code],'Report - GR'!$Z$1,Program_Retention[Year],'Report - GR'!$B130,Program_Retention[Semester],'Report - GR'!$C130,Program_Retention[At_years],$D$128) -> 28 | G130: =IFERROR(SUMIFS(Program_Retention[Program_Retain],Program_Retention[program_code],'Report - GR'!$Z$1,Program_Retention[Year],'Report - GR'!$B130,Program_Retention[Semester],'Report - GR'!$C130,Program_Retention[At_years],$L$128)/$D130,"-") -> 0.5357142857 | H130: =IFERROR(SUMIFS(Program_Retention[Program_Grad],Program_Retention[program_code],'Report - GR'!$Z$1,Program_Retention[Year],'Report - GR'!$B130,Program_Retention[Semester],'Report - GR'!$C130,Program_Retention[At_years],$L$128)/$D130,"-") -> 0.1785714286 | I130: =IFERROR(SUMIFS(Program_Retention[WCU_Retain],Program_Retention[program_code],'Report - GR'!$Z$1,Program_Retention[Year],'Report - GR'!$B130,Program_Retention[Semester],'Report - GR'!$C130,Program_Retention[At_years],$L$128)/$D130,"-") -> 0.03571428571 | J130: =IFERROR(SUMIFS(Program_Retention[WCU_Grad],Program_Retention[program_code],'Report - GR'!$Z$1,Program_Retention[Year],'Report - GR'!$B130,Program_Retention[Semester],'Report - GR'!$C130,Program_Retention[At_years],$L$128)/$D130,"-") -> 0 | K130: =IFERROR(SUMIFS(Program_Retention[Not_Retained],Program_Retention[program_code],'Report - GR'!$Z$1,Program_Retention[Year],'Report - GR'!$B130,Program_Retention[Semester],'Report - GR'!$C130,Program_Retention[At_years],$L$128)/$D130,"-") -> 0.25 | L130: =SUM(G130:K130) -> 1 | O130: =IFERROR(SUMIFS(Program_Retention[Program_Retain],Program_Retention[program_code],'Report - GR'!$Z$1,Program_Retention[Year],'Report - GR'!$B130,Program_Retention[Semester],'Report - GR'!$C130,Program_Retention[At_years],$T$128)/$D130,"-") -> 0.25 | P130: =IFERROR(SUMIFS(Program_Retention[Program_Grad],Program_Retention[program_code],'Report - GR'!$Z$1,Program_Retention[Year],'Report - GR'!$B130,Program_Retention[Semester],'Report - GR'!$C130,Program_Retention[At_years],$T$128)/$D130,"-") -> 0.4642857143 | Q130: =IFERROR(SUMIFS(Program_Retention[WCU_Retain],Program_Retention[program_code],'Report - GR'!$Z$1,Program_Retention[Year],'Report - GR'!$B130,Program_Retention[Semester],'Report - GR'!$C130,Program_Retention[At_years],$T$128)/$D130,"-") -> 0 | R130: =IFERROR(SUMIFS(Program_Retention[WCU_Grad],Program_Retention[program_code],'Report - GR'!$Z$1,Program_Retention[Year],'Report - GR'!$B130,Program_Retention[Semester],'Report - GR'!$C130,Program_Retention[At_years],$T$128)/$D130,"-") -> 0 | S130: =IFERROR(SUMIFS(Program_Retention[Not_Retained],Program_Retention[program_code],'Report - GR'!$Z$1,Program_Retention[Year],'Report - GR'!$B130,Program_Retention[Semester],'Report - GR'!$C130,Program_Retention[At_years],$T$128)/$D130,"-") -> 0.2857142857 | T130: =SUM(O130:S130) -> 1 | W130: =IFERROR(SUMIFS(Program_Retention[Program_Retain],Program_Retention[program_code],'Report - GR'!$Z$1,Program_Retention[Year],'Report - GR'!$B130,Program_Retention[Semester],'Report - GR'!$C130,Program_Retention[At_years],$AB$128)/$D130,"-") -> 0.2142857143 | X130: =IFERROR(SUMIFS(Program_Retention[Program_Grad],Program_Retention[program_code],'Report - GR'!$Z$1,Program_Retention[Year],'Report - GR'!$B130,Program_Retention[Semester],'Report - GR'!$C130,Program_Retention[At_years],$AB$128)/$D130,"-") -> 0.6071428571 | Y130: =IFERROR(SUMIFS(Program_Retention[WCU_Retain],Program_Retention[program_code],'Report - GR'!$Z$1,Program_Retention[Year],'Report - GR'!$B130,Program_Retention[Semester],'Report - GR'!$C130,Program_Retention[At_years],$AB$128)/$D130,"-") -> 0 | Z130: =IFERROR(SUMIFS(Program_Retention[WCU_Grad],Program_Retention[program_code],'Report - GR'!$Z$1,Program_Retention[Year],'Report - GR'!$B130,Program_Retention[Semester],'Report - GR'!$C130,Program_Retention[At_years],$AB$128)/$D130,"-") -> 0 | AA130: =IFERROR(SUMIFS(Program_Retention[Not_Retained],Program_Retention[program_code],'Report - GR'!$Z$1,Program_Retention[Year],'Report - GR'!$B130,Program_Retention[Semester],'Report - GR'!$C130,Program_Retention[At_years],$AB$128)/$D130,"-") -> 0.1785714286 | AB130: =SUM(W130:AA130) -> 1 | AE130: =IFERROR(SUMIFS(Program_Retention[Program_Retain],Program_Retention[program_code],'Report - GR'!$Z$1,Program_Retention[Year],'Report - GR'!$B130,Program_Retention[Semester],'Report - GR'!$C130,Program_Retention[At_years],$AJ$128)/$D130,"-") -> 0.1428571429 | AF130: =IFERROR(SUMIFS(Program_Retention[Program_Grad],Program_Retention[program_code],'Report - GR'!$Z$1,Program_Retention[Year],'Report - GR'!$B130,Program_Retention[Semester],'Report - GR'!$C130,Program_Retention[At_years],$AJ$128)/$D130,"-") -> 0.6428571429 | AG130: =IFERROR(SUMIFS(Program_Retention[WCU_Retain],Program_Retention[program_code],'Report - GR'!$Z$1,Program_Retention[Year],'Report - GR'!$B130,Program_Retention[Semester],'Report - GR'!$C130,Program_Retention[At_years],$AJ$128)/$D130,"-") -> 0 | AH130: =IFERROR(SUMIFS(Program_Retention[WCU_Grad],Program_Retention[program_code],'Report - GR'!$Z$1,Program_Retention[Year],'Report - GR'!$B130,Program_Retention[Semester],'Report - GR'!$C130,Program_Retention[At_years],$AJ$128)/$D130,"-") -> 0 | AI130: =IFERROR(SUMIFS(Program_Retention[Not_Retained],Program_Retention[program_code],'Report - GR'!$Z$1,Program_Retention[Year],'Report - GR'!$B130,Program_Retention[Semester],'Report - GR'!$C130,Program_Retention[At_years],$AJ$128)/$D130,"-") -> 0.2142857143 | AJ130: =SUM(AE130:AI130) -> 1 | AM130: =IFERROR(SUMIFS(Program_Retention[Program_Retain],Program_Retention[program_code],'Report - GR'!$Z$1,Program_Retention[Year],'Report - GR'!$B130,Program_Retention[Semester],'Report - GR'!$C130,Program_Retention[At_years],$AR$128)/$D130,"-") -> 0.07142857143 | AN130: =IFERROR(SUMIFS(Program_Retention[Program_Grad],Program_Retention[program_code],'Report - GR'!$Z$1,Program_Retention[Year],'Report - GR'!$B130,Program_Retention[Semester],'Report - GR'!$C130,Program_Retention[At_years],$AR$128)/$D130,"-") -> 0.7857142857 | AO130: =IFERROR(SUMIFS(Program_Retention[WCU_Retain],Program_Retention[program_code],'Report - GR'!$Z$1,Program_Retention[Year],'Report - GR'!$B130,Program_Retention[Semester],'Report - GR'!$C130,Program_Retention[At_years],$AR$128)/$D130,"-") -> 0 | AP130: =IFERROR(SUMIFS(Program_Retention[WCU_Grad],Program_Retention[program_code],'Report - GR'!$Z$1,Program_Retention[Year],'Report - GR'!$B130,Program_Retention[Semester],'Report - GR'!$C130,Program_Retention[At_years],$AR$128)/$D130,"-") -> 0 | AQ130: =IFERROR(SUMIFS(Program_Retention[Not_Retained],Program_Retention[program_code],'Report - GR'!$Z$1,Program_Retention[Year],'Report - GR'!$B130,Program_Retention[Semester],'Report - GR'!$C130,Program_Retention[At_years],$AR$128)/$D130,"-") -> 0.1428571429 | AR130: =SUM(AM130:AQ130) -> 1
B131: 1997 | C131: Spring | D131: =SUMIFS(Program_Retention[Cohort_Count],Program_Retention[program_code],'Report - GR'!$Z$1,Program_Retention[Year],'Report - GR'!$B131,Program_Retention[Semester],'Report - GR'!$C131,Program_Retention[At_years],$D$128) -> 3 | G131: =IFERROR(SUMIFS(Program_Retention[Program_Retain],Program_Retention[program_code],'Report - GR'!$Z$1,Program_Retention[Year],'Report - GR'!$B131,Program_Retention[Semester],'Report - GR'!$C131,Program_Retention[At_years],$L$128)/$D131,"-") -> 0.6666666667 | H131: =IFERROR(SUMIFS(Program_Retention[Program_Grad],Program_Retention[program_code],'Report - GR'!$Z$1,Program_Retention[Year],'Report - GR'!$B131,Program_Retention[Semester],'Report - GR'!$C131,Program_Retention[At_years],$L$128)/$D131,"-") -> 0 | I131: =IFERROR(SUMIFS(Program_Retention[WCU_Retain],Program_Retention[program_code],'Report - GR'!$Z$1,Program_Retention[Year],'Report - GR'!$B131,Program_Retention[Semester],'Report - GR'!$C131,Program_Retention[At_years],$L$128)/$D131,"-") -> 0 | J131: =IFERROR(SUMIFS(Program_Retention[WCU_Grad],Program_Retention[program_code],'Report - GR'!$Z$1,Program_Retention[Year],'Report - GR'!$B131,Program_Retention[Semester],'Report - GR'!$C131,Program_Retention[At_years],$L$128)/$D131,"-") -> 0 | K131: =IFERROR(SUMIFS(Program_Retention[Not_Retained],Program_Retention[program_code],'Report - GR'!$Z$1,Program_Retention[Year],'Report - GR'!$B131,Program_Retention[Semester],'Report - GR'!$C131,Program_Retention[At_years],$L$128)/$D131,"-") -> 0.3333333333 | L131: =SUM(G131:K131) -> 1 | O131: =IFERROR(SUMIFS(Program_Retention[Program_Retain],Program_Retention[program_code],'Report - GR'!$Z$1,Program_Retention[Year],'Report - GR'!$B131,Program_Retention[Semester],'Report - GR'!$C131,Program_Retention[At_years],$T$128)/$D131,"-") -> 0.3333333333 | P131: =IFERROR(SUMIFS(Program_Retention[Program_Grad],Program_Retention[program_code],'Report - GR'!$Z$1,Program_Retention[Year],'Report - GR'!$B131,Program_Retention[Semester],'Report - GR'!$C131,Program_Retention[At_years],$T$128)/$D131,"-") -> 0.3333333333 | Q131: =IFERROR(SUMIFS(Program_Retention[WCU_Retain],Program_Retention[program_code],'Report - GR'!$Z$1,Program_Retention[Year],'Report - GR'!$B131,Program_Retention[Semester],'Report - GR'!$C131,Program_Retention[At_years],$T$128)/$D131,"-") -> 0 | R131: =IFERROR(SUMIFS(Program_Retention[WCU_Grad],Program_Retention[program_code],'Report - GR'!$Z$1,Program_Retention[Year],'Report - GR'!$B131,Program_Retention[Semester],'Report - GR'!$C131,Program_Retention[At_years],$T$128)/$D131,"-") -> 0 | S131: =IFERROR(SUMIFS(Program_Retention[Not_Retained],Program_Retention[program_code],'Report - GR'!$Z$1,Program_Retention[Year],'Report - GR'!$B131,Program_Retention[Semester],'Report - GR'!$C131,Program_Retention[At_years],$T$128)/$D131,"-") -> 0.3333333333 | T131: =SUM(O131:S131) -> 1 | W131: =IFERROR(SUMIFS(Program_Retention[Program_Retain],Program_Retention[program_code],'Report - GR'!$Z$1,Program_Retention[Year],'Report - GR'!$B131,Program_Retention[Semester],'Report - GR'!$C131,Program_Retention[At_years],$AB$128)/$D131,"-") -> 0.3333333333 | X131: =IFERROR(SUMIFS(Program_Retention[Program_Grad],Program_Retention[program_code],'Report - GR'!$Z$1,Program_Retention[Year],'Report - GR'!$B131,Program_Retention[Semester],'Report - GR'!$C131,Program_Retention[At_years],$AB$128)/$D131,"-") -> 0.3333333333 | Y131: =IFERROR(SUMIFS(Program_Retention[WCU_Retain],Program_Retention[program_code],'Report - GR'!$Z$1,Program_Retention[Year],'Report - GR'!$B131,Program_Retention[Semester],'Report - GR'!$C131,Program_Retention[At_years],$AB$128)/$D131,"-") -> 0 | Z131: =IFERROR(SUMIFS(Program_Retention[WCU_Grad],Program_Retention[program_code],'Report - GR'!$Z$1,Program_Retention[Year],'Report - GR'!$B131,Program_Retention[Semester],'Report - GR'!$C131,Program_Retention[At_years],$AB$128)/$D131,"-") -> 0 | AA131: =IFERROR(SUMIFS(Program_Retention[Not_Retained],Program_Retention[program_code],'Report - GR'!$Z$1,Program_Retention[Year],'Report - GR'!$B131,Program_Retention[Semester],'Report - GR'!$C131,Program_Retention[At_years],$AB$128)/$D131,"-") -> 0.3333333333 | AB131: =SUM(W131:AA131) -> 1 | AE131: =IFERROR(SUMIFS(Program_Retention[Program_Retain],Program_Retention[program_code],'Report - GR'!$Z$1,Program_Retention[Year],'Report - GR'!$B131,Program_Retention[Semester],'Report - GR'!$C131,Program_Retention[At_years],$AJ$128)/$D131,"-") -> 0 | AF131: =IFERROR(SUMIFS(Program_Retention[Program_Grad],Program_Retention[program_code],'Report - GR'!$Z$1,Program_Retention[Year],'Report - GR'!$B131,Program_Retention[Semester],'Report - GR'!$C131,Program_Retention[At_years],$AJ$128)/$D131,"-") -> 0.3333333333 | AG131: =IFERROR(SUMIFS(Program_Retention[WCU_Retain],Program_Retention[program_code],'Report - GR'!$Z$1,Program_Retention[Year],'Report - GR'!$B131,Program_Retention[Semester],'Report - GR'!$C131,Program_Retention[At_years],$AJ$128)/$D131,"-") -> 0 | AH131: =IFERROR(SUMIFS(Program_Retention[WCU_Grad],Program_Retention[program_code],'Report - GR'!$Z$1,Program_Retention[Year],'Report - GR'!$B131,Program_Retention[Semester],'Report - GR'!$C131,Program_Retention[At_years],$AJ$128)/$D131,"-") -> 0 | AI131: =IFERROR(SUMIFS(Program_Retention[Not_Retained],Program_Retention[program_code],'Report - GR'!$Z$1,Program_Retention[Year],'Report - GR'!$B131,Program_Retention[Semester],'Report - GR'!$C131,Program_Retention[At_years],$AJ$128)/$D131,"-") -> 0.6666666667 | AJ131: =SUM(AE131:AI131) -> 1 | AM131: =IFERROR(SUMIFS(Program_Retention[Program_Retain],Program_Retention[program_code],'Report - GR'!$Z$1,Program_Retention[Year],'Report - GR'!$B131,Program_Retention[Semester],'Report - GR'!$C131,Program_Retention[At_years],$AR$128)/$D131,"-") -> 0 | AN131: =IFERROR(SUMIFS(Program_Retention[Program_Grad],Program_Retention[program_code],'Report - GR'!$Z$1,Program_Retention[Year],'Report - GR'!$B131,Program_Retention[Semester],'Report - GR'!$C131,Program_Retention[At_years],$AR$128)/$D131,"-") -> 0.3333333333 | AO131: =IFERROR(SUMIFS(Program_Retention[WCU_Retain],Program_Retention[program_code],'Report - GR'!$Z$1,Program_Retention[Year],'Report - GR'!$B131,Program_Retention[Semester],'Report - GR'!$C131,Program_Retention[At_years],$AR$128)/$D131,"-") -> 0 | AP131: =IFERROR(SUMIFS(Program_Retention[WCU_Grad],Program_Retention[program_code],'Report - GR'!$Z$1,Program_Retention[Year],'Report - GR'!$B131,Program_Retention[Semester],'Report - GR'!$C131,Program_Retention[At_years],$AR$128)/$D131,"-") -> 0 | AQ131: =IFERROR(SUMIFS(Program_Retention[Not_Retained],Program_Retention[program_code],'Report - GR'!$Z$1,Program_Retention[Year],'Report - GR'!$B131,Program_Retention[Semester],'Report - GR'!$C131,Program_Retention[At_years],$AR$128)/$D131,"-") -> 0.6666666667 | AR131: =SUM(AM131:AQ131) -> 1
B133: 1997 | C133: Fall | D133: =SUMIFS(Program_Retention[Cohort_Count],Program_Retention[program_code],'Report - GR'!$Z$1,Program_Retention[Year],'Report - GR'!$B133,Program_Retention[Semester],'Report - GR'!$C133,Program_Retention[At_years],$D$128) -> 14 | G133: =IFERROR(SUMIFS(Program_Retention[Program_Retain],Program_Retention[program_code],'Report - GR'!$Z$1,Program_Retention[Year],'Report - GR'!$B133,Program_Retention[Semester],'Report - GR'!$C133,Program_Retention[At_years],$L$128)/$D133,"-") -> 0.5 | H133: =IFERROR(SUMIFS(Program_Retention[Program_Grad],Program_Retention[program_code],'Report - GR'!$Z$1,Program_Retention[Year],'Report - GR'!$B133,Program_Retention[Semester],'Report - GR'!$C133,Program_Retention[At_years],$L$128)/$D133,"-") -> 0.1428571429 | I133: =IFERROR(SUMIFS(Program_Retention[WCU_Retain],Program_Retention[program_code],'Report - GR'!$Z$1,Program_Retention[Year],'Report - GR'!$B133,Program_Retention[Semester],'Report - GR'!$C133,Program_Retention[At_years],$L$128)/$D133,"-") -> 0 | J133: =IFERROR(SUMIFS(Program_Retention[WCU_Grad],Program_Retention[program_code],'Report - GR'!$Z$1,Program_Retention[Year],'Report - GR'!$B133,Program_Retention[Semester],'Report - GR'!$C133,Program_Retention[At_years],$L$128)/$D133,"-") -> 0 | K133: =IFERROR(SUMIFS(Program_Retention[Not_Retained],Program_Retention[program_code],'Report - GR'!$Z$1,Program_Retention[Year],'Report - GR'!$B133,Program_Retention[Semester],'Report - GR'!$C133,Program_Retention[At_years],$L$128)/$D133,"-") -> 0.3571428571 | L133: =SUM(G133:K133) -> 1 | O133: =IFERROR(SUMIFS(Program_Retention[Program_Retain],Program_Retention[program_code],'Report - GR'!$Z$1,Program_Retention[Year],'Report - GR'!$B133,Program_Retention[Semester],'Report - GR'!$C133,Program_Retention[At_years],$T$128)/$D133,"-") -> 0.07142857143 | P133: =IFERROR(SUMIFS(Program_Retention[Program_Grad],Program_Retention[program_code],'Report - GR'!$Z$1,Program_Retention[Year],'Report - GR'!$B133,Program_Retention[Semester],'Report - GR'!$C133,Program_Retention[At_years],$T$128)/$D133,"-") -> 0.4285714286 | Q133: =IFERROR(SUMIFS(Program_Retention[WCU_Retain],Program_Retention[program_code],'Report - GR'!$Z$1,Program_Retention[Year],'Report - GR'!$B133,Program_Retention[Semester],'Report - GR'!$C133,Program_Retention[At_years],$T$128)/$D133,"-") -> 0 | R133: =IFERROR(SUMIFS(Program_Retention[WCU_Grad],Program_Retention[program_code],'Report - GR'!$Z$1,Program_Retention[Year],'Report - GR'!$B133,Program_Retention[Semester],'Report - GR'!$C133,Program_Retention[At_years],$T$128)/$D133,"-") -> 0 | S133: =IFERROR(SUMIFS(Program_Retention[Not_Retained],Program_Retention[program_code],'Report - GR'!$Z$1,Program_Retention[Year],'Report - GR'!$B133,Program_Retention[Semester],'Report - GR'!$C133,Program_Retention[At_years],$T$128)/$D133,"-") -> 0.5 | T133: =SUM(O133:S133) -> 1 | W133: =IFERROR(SUMIFS(Program_Retention[Program_Retain],Program_Retention[program_code],'Report - GR'!$Z$1,Program_Retention[Year],'Report - GR'!$B133,Program_Retention[Semester],'Report - GR'!$C133,Program_Retention[At_years],$AB$128)/$D133,"-") -> 0.1428571429 | X133: =IFERROR(SUMIFS(Program_Retention[Program_Grad],Program_Retention[program_code],'Report - GR'!$Z$1,Program_Retention[Year],'Report - GR'!$B133,Program_Retention[Semester],'Report - GR'!$C133,Program_Retention[At_years],$AB$128)/$D133,"-") -> 0.5 | Y133: =IFERROR(SUMIFS(Program_Retention[WCU_Retain],Program_Retention[program_code],'Report - GR'!$Z$1,Program_Retention[Year],'Report - GR'!$B133,Program_Retention[Semester],'Report - GR'!$C133,Program_Retention[At_years],$AB$128)/$D133,"-") -> 0 | Z133: =IFERROR(SUMIFS(Program_Retention[WCU_Grad],Program_Retention[program_code],'Report - GR'!$Z$1,Program_Retention[Year],'Report - GR'!$B133,Program_Retention[Semester],'Report - GR'!$C133,Program_Retention[At_years],$AB$128)/$D133,"-") -> 0 | AA133: =IFERROR(SUMIFS(Program_Retention[Not_Retained],Program_Retention[program_code],'Report - GR'!$Z$1,Program_Retention[Year],'Report - GR'!$B133,Program_Retention[Semester],'Report - GR'!$C133,Program_Retention[At_years],$AB$128)/$D133,"-") -> 0.3571428571 | AB133: =SUM(W133:AA133) -> 1 | AE133: =IFERROR(SUMIFS(Program_Retention[Program_Retain],Program_Retention[program_code],'Report - GR'!$Z$1,Program_Retention[Year],'Report - GR'!$B133,Program_Retention[Semester],'Report - GR'!$C133,Program_Retention[At_years],$AJ$128)/$D133,"-") -> 0 | AF133: =IFERROR(SUMIFS(Program_Retention[Program_Grad],Program_Retention[program_code],'Report - GR'!$Z$1,Program_Retention[Year],'Report - GR'!$B133,Program_Retention[Semester],'Report - GR'!$C133,Program_Retention[At_years],$AJ$128)/$D133,"-") -> 0.5 | AG133: =IFERROR(SUMIFS(Program_Retention[WCU_Retain],Program_Retention[program_code],'Report - GR'!$Z$1,Program_Retention[Year],'Report - GR'!$B133,Program_Retention[Semester],'Report - GR'!$C133,Program_Retention[At_years],$AJ$128)/$D133,"-") -> 0 | AH133: =IFERROR(SUMIFS(Program_Retention[WCU_Grad],Program_Retention[program_code],'Report - GR'!$Z$1,Program_Retention[Year],'Report - GR'!$B133,Program_Retention[Semester],'Report - GR'!$C133,Program_Retention[At_years],$AJ$128)/$D133,"-") -> 0 | AI133: =IFERROR(SUMIFS(Program_Retention[Not_Retained],Program_Retention[program_code],'Report - GR'!$Z$1,Program_Retention[Year],'Report - GR'!$B133,Program_Retention[Semester],'Report - GR'!$C133,Program_Retention[At_years],$AJ$128)/$D133,"-") -> 0.5 | AJ133: =SUM(AE133:AI133) -> 1 | AM133: =IFERROR(SUMIFS(Program_Retention[Program_Retain],Program_Retention[program_code],'Report - GR'!$Z$1,Program_Retention[Year],'Report - GR'!$B133,Program_Retention[Semester],'Report - GR'!$C133,Program_Retention[At_years],$AR$128)/$D133,"-") -> 0 | AN133: =IFERROR(SUMIFS(Program_Retention[Program_Grad],Program_Retention[program_code],'Report - GR'!$Z$1,Program_Retention[Year],'Report - GR'!$B133,Program_Retention[Semester],'Report - GR'!$C133,Program_Retention[At_years],$AR$128)/$D133,"-") -> 0.5714285714 | AO133: =IFERROR(SUMIFS(Program_Retention[WCU_Retain],Program_Retention[program_code],'Report - GR'!$Z$1,Program_Retention[Year],'Report - GR'!$B133,Program_Retention[Semester],'Report - GR'!$C133,Program_Retention[At_years],$AR$128)/$D133,"-") -> 0 | AP133: =IFERROR(SUMIFS(Program_Retention[WCU_Grad],Program_Retention[program_code],'Report - GR'!$Z$1,Program_Retention[Year],'Report - GR'!$B133,Program_Retention[Semester],'Report - GR'!$C133,Program_Retention[At_years],$AR$128)/$D133,"-") -> 0 | AQ133: =IFERROR(SUMIFS(Program_Retention[Not_Retained],Program_Retention[program_code],'Report - GR'!$Z$1,Program_Retention[Year],'Report - GR'!$B133,Program_Retention[Semester],'Report - GR'!$C133,Program_Retention[At_years],$AR$128)/$D133,"-") -> 0.4285714286 | AR133: =SUM(AM133:AQ133) -> 1
B134: 1998 | C134: Spring | D134: =SUMIFS(Program_Retention[Cohort_Count],Program_Retention[program_code],'Report - GR'!$Z$1,Program_Retention[Year],'Report - GR'!$B134,Program_Retention[Semester],'Report - GR'!$C134,Program_Retention[At_years],$D$128) -> 4 | G134: =IFERROR(SUMIFS(Program_Retention[Program_Retain],Program_Retention[program_code],'Report - GR'!$Z$1,Program_Retention[Year],'Report - GR'!$B134,Program_Retention[Semester],'Report - GR'!$C134,Program_Retention[At_years],$L$128)/$D134,"-") -> 0.75 | H134: =IFERROR(SUMIFS(Program_Retention[Program_Grad],Program_Retention[program_code],'Report - GR'!$Z$1,Program_Retention[Year],'Report - GR'!$B134,Program_Retention[Semester],'Report - GR'!$C134,Program_Retention[At_years],$L$128)/$D134,"-") -> 0 | I134: =IFERROR(SUMIFS(Program_Retention[WCU_Retain],Program_Retention[program_code],'Report - GR'!$Z$1,Program_Retention[Year],'Report - GR'!$B134,Program_Retention[Semester],'Report - GR'!$C134,Program_Retention[At_years],$L$128)/$D134,"-") -> 0 | J134: =IFERROR(SUMIFS(Program_Retention[WCU_Grad],Program_Retention[program_code],'Report - GR'!$Z$1,Program_Retention[Year],'Report - GR'!$B134,Program_Retention[Semester],'Report - GR'!$C134,Program_Retention[At_years],$L$128)/$D134,"-") -> 0 | K134: =IFERROR(SUMIFS(Program_Retention[Not_Retained],Program_Retention[program_code],'Report - GR'!$Z$1,Program_Retention[Year],'Report - GR'!$B134,Program_Retention[Semester],'Report - GR'!$C134,Program_Retention[At_years],$L$128)/$D134,"-") -> 0.25 | L134: =SUM(G134:K134) -> 1 | O134: =IFERROR(SUMIFS(Program_Retention[Program_Retain],Program_Retention[program_code],'Report - GR'!$Z$1,Program_Retention[Year],'Report - GR'!$B134,Program_Retention[Semester],'Report - GR'!$C134,Program_Retention[At_years],$T$128)/$D134,"-") -> 0.25 | P134: =IFERROR(SUMIFS(Program_Retention[Program_Grad],Program_Retention[program_code],'Report - GR'!$Z$1,Program_Retention[Year],'Report - GR'!$B134,Program_Retention[Semester],'Report - GR'!$C134,Program_Retention[At_years],$T$128)/$D134,"-") -> 0.5 | Q134: =IFERROR(SUMIFS(Program_Retention[WCU_Retain],Program_Retention[program_code],'Report - GR'!$Z$1,Program_Retention[Year],'Report - GR'!$B134,Program_Retention[Semester],'Report - GR'!$C134,Program_Retention[At_years],$T$128)/$D134,"-") -> 0 | R134: =IFERROR(SUMIFS(Program_Retention[WCU_Grad],Program_Retention[program_code],'Report - GR'!$Z$1,Program_Retention[Year],'Report - GR'!$B134,Program_Retention[Semester],'Report - GR'!$C134,Program_Retention[At_years],$T$128)/$D134,"-") -> 0 | S134: =IFERROR(SUMIFS(Program_Retention[Not_Retained],Program_Retention[program_code],'Report - GR'!$Z$1,Program_Retention[Year],'Report - GR'!$B134,Program_Retention[Semester],'Report - GR'!$C134,Program_Retention[At_years],$T$128)/$D134,"-") -> 0.25 | T134: =SUM(O134:S134) -> 1 | W134: =IFERROR(SUMIFS(Program_Retention[Program_Retain],Program_Retention[program_code],'Report - GR'!$Z$1,Program_Retention[Year],'Report - GR'!$B134,Program_Retention[Semester],'Report - GR'!$C134,Program_Retention[At_years],$AB$128)/$D134,"-") -> 0 | X134: =IFERROR(SUMIFS(Program_Retention[Program_Grad],Program_Retention[program_code],'Report - GR'!$Z$1,Program_Retention[Year],'Report - GR'!$B134,Program_Retention[Semester],'Report - GR'!$C134,Program_Retention[At_years],$AB$128)/$D134,"-") -> 0.75 | Y134: =IFERROR(SUMIFS(Program_Retention[WCU_Retain],Program_Retention[program_code],'Report - GR'!$Z$1,Program_Retention[Year],'Report - GR'!$B134,Program_Retention[Semester],'Report - GR'!$C134,Program_Retention[At_years],$AB$128)/$D134,"-") -> 0 | Z134: =IFERROR(SUMIFS(Program_Retention[WCU_Grad],Program_Retention[program_code],'Report - GR'!$Z$1,Program_Retention[Year],'Report - GR'!$B134,Program_Retention[Semester],'Report - GR'!$C134,Program_Retention[At_years],$AB$128)/$D134,"-") -> 0 | AA134: =IFERROR(SUMIFS(Program_Retention[Not_Retained],Program_Retention[program_code],'Report - GR'!$Z$1,Program_Retention[Year],'Report - GR'!$B134,Program_Retention[Semester],'Report - GR'!$C134,Program_Retention[At_years],$AB$128)/$D134,"-") -> 0.25 | AB134: =SUM(W134:AA134) -> 1 | AE134: =IFERROR(SUMIFS(Program_Retention[Program_Retain],Program_Retention[program_code],'Report - GR'!$Z$1,Program_Retention[Year],'Report - GR'!$B134,Program_Retention[Semester],'Report - GR'!$C134,Program_Retention[At_years],$AJ$128)/$D134,"-") -> 0 | AF134: =IFERROR(SUMIFS(Program_Retention[Program_Grad],Program_Retention[program_code],'Report - GR'!$Z$1,Program_Retention[Year],'Report - GR'!$B134,Program_Retention[Semester],'Report - GR'!$C134,Program_Retention[At_years],$AJ$128)/$D134,"-") -> 0.75 | AG134: =IFERROR(SUMIFS(Program_Retention[WCU_Retain],Program_Retention[program_code],'Report - GR'!$Z$1,Program_Retention[Year],'Report - GR'!$B134,Program_Retention[Semester],'Report - GR'!$C134,Program_Retention[At_years],$AJ$128)/$D134,"-") -> 0 | AH134: =IFERROR(SUMIFS(Program_Retention[WCU_Grad],Program_Retention[program_code],'Report - GR'!$Z$1,Program_Retention[Year],'Report - GR'!$B134,Program_Retention[Semester],'Report - GR'!$C134,Program_Retention[At_years],$AJ$128)/$D134,"-") -> 0 | AI134: =IFERROR(SUMIFS(Program_Retention[Not_Retained],Program_Retention[program_code],'Report - GR'!$Z$1,Program_Retention[Year],'Report - GR'!$B134,Program_Retention[Semester],'Report - GR'!$C134,Program_Retention[At_years],$AJ$128)/$D134,"-") -> 0.25 | AJ134: =SUM(AE134:AI134) -> 1 | AM134: =IFERROR(SUMIFS(Program_Retention[Program_Retain],Program_Retention[program_code],'Report - GR'!$Z$1,Program_Retention[Year],'Report - GR'!$B134,Program_Retention[Semester],'Report - GR'!$C134,Program_Retention[At_years],$AR$128)/$D134,"-") -> 0 | AN134: =IFERROR(SUMIFS(Program_Retention[Program_Grad],Program_Retention[program_code],'Report - GR'!$Z$1,Program_Retention[Year],'Report - GR'!$B134,Program_Retention[Semester],'Report - GR'!$C134,Program_Retention[At_years],$AR$128)/$D134,"-") -> 0.75 | AO134: =IFERROR(SUMIFS(Program_Retention[WCU_Retain],Program_Retention[program_code],'Report - GR'!$Z$1,Program_Retention[Year],'Report - GR'!$B134,Program_Retention[Semester],'Report - GR'!$C134,Program_Retention[At_years],$AR$128)/$D134,"-") -> 0 | AP134: =IFERROR(SUMIFS(Program_Retention[WCU_Grad],Program_Retention[program_code],'Report - GR'!$Z$1,Program_Retention[Year],'Report - GR'!$B134,Program_Retention[Semester],'Report - GR'!$C134,Program_Retention[At_years],$AR$128)/$D134,"-") -> 0 | AQ134: =IFERROR(SUMIFS(Program_Retention[Not_Retained],Program_Retention[program_code],'Report - GR'!$Z$1,Program_Retention[Year],'Report - GR'!$B134,Program_Retention[Semester],'Report - GR'!$C134,Program_Retention[At_years],$AR$128)/$D134,"-") -> 0.25 | AR134: =SUM(AM134:AQ134) -> 1
B136: 1998 | C136: Fall | D136: =SUMIFS(Program_Retention[Cohort_Count],Program_Retention[program_code],'Report - GR'!$Z$1,Program_Retention[Year],'Report - GR'!$B136,Program_Retention[Semester],'Report - GR'!$C136,Program_Retention[At_years],$D$128) -> 15 | G136: =IFERROR(SUMIFS(Program_Retention[Program_Retain],Program_Retention[program_code],'Report - GR'!$Z$1,Program_Retention[Year],'Report - GR'!$B136,Program_Retention[Semester],'Report - GR'!$C136,Program_Retention[At_years],$L$128)/$D136,"-") -> 0.8 | H136: =IFERROR(SUMIFS(Program_Retention[Program_Grad],Program_Retention[program_code],'Report - GR'!$Z$1,Program_Retention[Year],'Report - GR'!$B136,Program_Retention[Semester],'Report - GR'!$C136,Program_Retention[At_years],$L$128)/$D136,"-") -> 0.06666666667 | I136: =IFERROR(SUMIFS(Program_Retention[WCU_Retain],Program_Retention[program_code],'Report - GR'!$Z$1,Program_Retention[Year],'Report - GR'!$B136,Program_Retention[Semester],'Report - GR'!$C136,Program_Retention[At_years],$L$128)/$D136,"-") -> 0 | J136: =IFERROR(SUMIFS(Program_Retention[WCU_Grad],Program_Retention[program_code],'Report - GR'!$Z$1,Program_Retention[Year],'Report - GR'!$B136,Program_Retention[Semester],'Report - GR'!$C136,Program_Retention[At_years],$L$128)/$D136,"-") -> 0 | K136: =IFERROR(SUMIFS(Program_Retention[Not_Retained],Program_Retention[program_code],'Report - GR'!$Z$1,Program_Retention[Year],'Report - GR'!$B136,Program_Retention[Semester],'Report - GR'!$C136,Program_Retention[At_years],$L$128)/$D136,"-") -> 0.1333333333 | L136: =SUM(G136:K136) -> 1 | O136: =IFERROR(SUMIFS(Program_Retention[Program_Retain],Program_Retention[program_code],'Report - GR'!$Z$1,Program_Retention[Year],'Report - GR'!$B136,Program_Retention[Semester],'Report - GR'!$C136,Program_Retention[At_years],$T$128)/$D136,"-") -> 0.4666666667 | P136: =IFERROR(SUMIFS(Program_Retention[Program_Grad],Program_Retention[program_code],'Report - GR'!$Z$1,Program_Retention[Year],'Report - GR'!$B136,Program_Retention[Semester],'Report - GR'!$C136,Program_Retention[At_years],$T$128)/$D136,"-") -> 0.4 | Q136: =IFERROR(SUMIFS(Program_Retention[WCU_Retain],Program_Retention[program_code],'Report - GR'!$Z$1,Program_Retention[Year],'Report - GR'!$B136,Program_Retention[Semester],'Report - GR'!$C136,Program_Retention[At_years],$T$128)/$D136,"-") -> 0 | R136: =IFERROR(SUMIFS(Program_Retention[WCU_Grad],Program_Retention[program_code],'Report - GR'!$Z$1,Program_Retention[Year],'Report - GR'!$B136,Program_Retention[Semester],'Report - GR'!$C136,Program_Retention[At_years],$T$128)/$D136,"-") -> 0 | S136: =IFERROR(SUMIFS(Program_Retention[Not_Retained],Program_Retention[program_code],'Report - GR'!$Z$1,Program_Retention[Year],'Report - GR'!$B136,Program_Retention[Semester],'Report - GR'!$C136,Program_Retention[At_years],$T$128)/$D136,"-") -> 0.1333333333 | T136: =SUM(O136:S136) -> 1 | W136: =IFERROR(SUMIFS(Program_Retention[Program_Retain],Program_Retention[program_code],'Report - GR'!$Z$1,Program_Retention[Year],'Report - GR'!$B136,Program_Retention[Semester],'Report - GR'!$C136,Program_Retention[At_years],$AB$128)/$D136,"-") -> 0.1333333333 | X136: =IFERROR(SUMIFS(Program_Retention[Program_Grad],Program_Retention[program_code],'Report - GR'!$Z$1,Program_Retention[Year],'Report - GR'!$B136,Program_Retention[Semester],'Report - GR'!$C136,Program_Retention[At_years],$AB$128)/$D136,"-") -> 0.5333333333 | Y136: =IFERROR(SUMIFS(Program_Retention[WCU_Retain],Program_Retention[program_code],'Report - GR'!$Z$1,Program_Retention[Year],'Report - GR'!$B136,Program_Retention[Semester],'Report - GR'!$C136,Program_Retention[At_years],$AB$128)/$D136,"-") -> 0 | Z136: =IFERROR(SUMIFS(Program_Retention[WCU_Grad],Program_Retention[program_code],'Report - GR'!$Z$1,Program_Retention[Year],'Report - GR'!$B136,Program_Retention[Semester],'Report - GR'!$C136,Program_Retention[At_years],$AB$128)/$D136,"-") -> 0 | AA136: =IFERROR(SUMIFS(Program_Retention[Not_Retained],Program_Retention[program_code],'Report - GR'!$Z$1,Program_Retention[Year],'Report - GR'!$B136,Program_Retention[Semester],'Report - GR'!$C136,Program_Retention[At_years],$AB$128)/$D136,"-") -> 0.3333333333 | AB136: =SUM(W136:AA136) -> 1 | AE136: =IFERROR(SUMIFS(Program_Retention[Program_Retain],Program_Retention[program_code],'Report - GR'!$Z$1,Program_Retention[Year],'Report - GR'!$B136,Program_Retention[Semester],'Report - GR'!$C136,Program_Retention[At_years],$AJ$128)/$D136,"-") -> 0.1333333333 | AF136: =IFERROR(SUMIFS(Program_Retention[Program_Grad],Program_Retention[program_code],'Report - GR'!$Z$1,Program_Retention[Year],'Report - GR'!$B136,Program_Retention[Semester],'Report - GR'!$C136,Program_Retention[At_years],$AJ$128)/$D136,"-") -> 0.6 | AG136: =IFERROR(SUMIFS(Program_Retention[WCU_Retain],Program_Retention[program_code],'Report - GR'!$Z$1,Program_Retention[Year],'Report - GR'!$B136,Program_Retention[Semester],'Report - GR'!$C136,Program_Retention[At_years],$AJ$128)/$D136,"-") -> 0 | AH136: =IFERROR(SUMIFS(Program_Retention[WCU_Grad],Program_Retention[program_code],'Report - GR'!$Z$1,Program_Retention[Year],'Report - GR'!$B136,Program_Retention[Semester],'Report - GR'!$C136,Program_Retention[At_years],$AJ$128)/$D136,"-") -> 0 | AI136: =IFERROR(SUMIFS(Program_Retention[Not_Retained],Program_Retention[program_code],'Report - GR'!$Z$1,Program_Retention[Year],'Report - GR'!$B136,Program_Retention[Semester],'Report - GR'!$C136,Program_Retention[At_years],$AJ$128)/$D136,"-") -> 0.2666666667 | AJ136: =SUM(AE136:AI136) -> 1 | AM136: =IFERROR(SUMIFS(Program_Retention[Program_Retain],Program_Retention[program_code],'Report - GR'!$Z$1,Program_Retention[Year],'Report - GR'!$B136,Program_Retention[Semester],'Report - GR'!$C136,Program_Retention[At_years],$AR$128)/$D136,"-") -> 0.06666666667 | AN136: =IFERROR(SUMIFS(Program_Retention[Program_Grad],Program_Retention[program_code],'Report - GR'!$Z$1,Program_Retention[Year],'Report - GR'!$B136,Program_Retention[Semester],'Report - GR'!$C136,Program_Retention[At_years],$AR$128)/$D136,"-") -> 0.6666666667 | AO136: =IFERROR(SUMIFS(Program_Retention[WCU_Retain],Program_Retention[program_code],'Report - GR'!$Z$1,Program_Retention[Year],'Report - GR'!$B136,Program_Retention[Semester],'Report - GR'!$C136,Program_Retention[At_years],$AR$128)/$D136,"-") -> 0 | AP136: =IFERROR(SUMIFS(Program_Retention[WCU_Grad],Program_Retention[program_code],'Report - GR'!$Z$1,Program_Retention[Year],'Report - GR'!$B136,Program_Retention[Semester],'Report - GR'!$C136,Program_Retention[At_years],$AR$128)/$D136,"-") -> 0 | AQ136: =IFERROR(SUMIFS(Program_Retention[Not_Retained],Program_Retention[program_code],'Report - GR'!$Z$1,Program_Retention[Year],'Report - GR'!$B136,Program_Retention[Semester],'Report - GR'!$C136,Program_Retention[At_years],$AR$128)/$D136,"-") -> 0.2666666667 | AR136: =SUM(AM136:AQ136) -> 1
B137: 1999 | C137: Spring | D137: =SUMIFS(Program_Retention[Cohort_Count],Program_Retention[program_code],'Report - GR'!$Z$1,Program_Retention[Year],'Report - GR'!$B137,Program_Retention[Semester],'Report - GR'!$C137,Program_Retention[At_years],$D$128) -> 5 | G137: =IFERROR(SUMIFS(Program_Retention[Program_Retain],Program_Retention[program_code],'Report - GR'!$Z$1,Program_Retention[Year],'Report - GR'!$B137,Program_Retention[Semester],'Report - GR'!$C137,Program_Retention[At_years],$L$128)/$D137,"-") -> 0.6 | H137: =IFERROR(SUMIFS(Program_Retention[Program_Grad],Program_Retention[program_code],'Report - GR'!$Z$1,Program_Retention[Year],'Report - GR'!$B137,Program_Retention[Semester],'Report - GR'!$C137,Program_Retention[At_years],$L$128)/$D137,"-") -> 0 | I137: =IFERROR(SUMIFS(Program_Retention[WCU_Retain],Program_Retention[program_code],'Report - GR'!$Z$1,Program_Retention[Year],'Report - GR'!$B137,Program_Retention[Semester],'Report - GR'!$C137,Program_Retention[At_years],$L$128)/$D137,"-") -> 0.2 | J137: =IFERROR(SUMIFS(Program_Retention[WCU_Grad],Program_Retention[program_code],'Report - GR'!$Z$1,Program_Retention[Year],'Report - GR'!$B137,Program_Retention[Semester],'Report - GR'!$C137,Program_Retention[At_years],$L$128)/$D137,"-") -> 0 | K137: =IFERROR(SUMIFS(Program_Retention[Not_Retained],Program_Retention[program_code],'Report - GR'!$Z$1,Program_Retention[Year],'Report - GR'!$B137,Program_Retention[Semester],'Report - GR'!$C137,Program_Retention[At_years],$L$128)/$D137,"-") -> 0.2 | L137: =SUM(G137:K137) -> 1 | O137: =IFERROR(SUMIFS(Program_Retention[Program_Retain],Program_Retention[program_code],'Report - GR'!$Z$1,Program_Retention[Year],'Report - GR'!$B137,Program_Retention[Semester],'Report - GR'!$C137,Program_Retention[At_years],$T$128)/$D137,"-") -> 0.4 | P137: =IFERROR(SUMIFS(Program_Retention[Program_Grad],Program_Retention[program_code],'Report - GR'!$Z$1,Program_Retention[Year],'Report - GR'!$B137,Program_Retention[Semester],'Report - GR'!$C137,Program_Retention[At_years],$T$128)/$D137,"-") -> 0 | Q137: =IFERROR(SUMIFS(Program_Retention[WCU_Retain],Program_Retention[program_code],'Report - GR'!$Z$1,Program_Retention[Year],'Report - GR'!$B137,Program_Retention[Semester],'Report - GR'!$C137,Program_Retention[At_years],$T$128)/$D137,"-") -> 0 | R137: =IFERROR(SUMIFS(Program_Retention[WCU_Grad],Program_Retention[program_code],'Report - GR'!$Z$1,Program_Retention[Year],'Report - GR'!$B137,Program_Retention[Semester],'Report - GR'!$C137,Program_Retention[At_years],$T$128)/$D137,"-") -> 0.2 | S137: =IFERROR(SUMIFS(Program_Retention[Not_Retained],Program_Retention[program_code],'Report - GR'!$Z$1,Program_Retention[Year],'Report - GR'!$B137,Program_Retention[Semester],'Report - GR'!$C137,Program_Retention[At_years],$T$128)/$D137,"-") -> 0.4 | T137: =SUM(O137:S137) -> 1 | W137: =IFERROR(SUMIFS(Program_Retention[Program_Retain],Program_Retention[program_code],'Report - GR'!$Z$1,Program_Retention[Year],'Report - GR'!$B137,Program_Retention[Semester],'Report - GR'!$C137,Program_Retention[At_years],$AB$128)/$D137,"-") -> 0 | X137: =IFERROR(SUMIFS(Program_Retention[Program_Grad],Program_Retention[program_code],'Report - GR'!$Z$1,Program_Retention[Year],'Report - GR'!$B137,Program_Retention[Semester],'Report - GR'!$C137,Program_Retention[At_years],$AB$128)/$D137,"-") -> 0.4 | Y137: =IFERROR(SUMIFS(Program_Retention[WCU_Retain],Program_Retention[program_code],'Report - GR'!$Z$1,Program_Retention[Year],'Report - GR'!$B137,Program_Retention[Semester],'Report - GR'!$C137,Program_Retention[At_years],$AB$128)/$D137,"-") -> 0 | Z137: =IFERROR(SUMIFS(Program_Retention[WCU_Grad],Program_Retention[program_code],'Report - GR'!$Z$1,Program_Retention[Year],'Report - GR'!$B137,Program_Retention[Semester],'Report - GR'!$C137,Program_Retention[At_years],$AB$128)/$D137,"-") -> 0.2 | AA137: =IFERROR(SUMIFS(Program_Retention[Not_Retained],Program_Retention[program_code],'Report - GR'!$Z$1,Program_Retention[Year],'Report - GR'!$B137,Program_Retention[Semester],'Report - GR'!$C137,Program_Retention[At_years],$AB$128)/$D137,"-") -> 0.4 | AB137: =SUM(W137:AA137) -> 1 | AE137: =IFERROR(SUMIFS(Program_Retention[Program_Retain],Program_Retention[program_code],'Report - GR'!$Z$1,Program_Retention[Year],'Report - GR'!$B137,Program_Retention[Semester],'Report - GR'!$C137,Program_Retention[At_years],$AJ$128)/$D137,"-") -> 0 | AF137: =IFERROR(SUMIFS(Program_Retention[Program_Grad],Program_Retention[program_code],'Report - GR'!$Z$1,Program_Retention[Year],'Report - GR'!$B137,Program_Retention[Semester],'Report - GR'!$C137,Program_Retention[At_years],$AJ$128)/$D137,"-") -> 0.4 | AG137: =IFERROR(SUMIFS(Program_Retention[WCU_Retain],Program_Retention[program_code],'Report - GR'!$Z$1,Program_Retention[Year],'Report - GR'!$B137,Program_Retention[Semester],'Report - GR'!$C137,Program_Retention[At_years],$AJ$128)/$D137,"-") -> 0 | AH137: =IFERROR(SUMIFS(Program_Retention[WCU_Grad],Program_Retention[program_code],'Report - GR'!$Z$1,Program_Retention[Year],'Report - GR'!$B137,Program_Retention[Semester],'Report - GR'!$C137,Program_Retention[At_years],$AJ$128)/$D137,"-") -> 0.2 | AI137: =IFERROR(SUMIFS(Program_Retention[Not_Retained],Program_Retention[program_code],'Report - GR'!$Z$1,Program_Retention[Year],'Report - GR'!$B137,Program_Retention[Semester],'Report - GR'!$C137,Program_Retention[At_years],$AJ$128)/$D137,"-") -> 0.4 | AJ137: =SUM(AE137:AI137) -> 1 | AM137: =IFERROR(SUMIFS(Program_Retention[Program_Retain],Program_Retention[program_code],'Report - GR'!$Z$1,Program_Retention[Year],'Report - GR'!$B137,Program_Retention[Semester],'Report - GR'!$C137,Program_Retention[At_years],$AR$128)/$D137,"-") -> 0 | AN137: =IFERROR(SUMIFS(Program_Retention[Program_Grad],Program_Retention[program_code],'Report - GR'!$Z$1,Program_Retention[Year],'Report - GR'!$B137,Program_Retention[Semester],'Report - GR'!$C137,Program_Retention[At_years],$AR$128)/$D137,"-") -> 0.4 | AO137: =IFERROR(SUMIFS(Program_Retention[WCU_Retain],Program_Retention[program_code],'Report - GR'!$Z$1,Program_Retention[Year],'Report - GR'!$B137,Program_Retention[Semester],'Report - GR'!$C137,Program_Retention[At_years],$AR$128)/$D137,"-") -> 0 | AP137: =IFERROR(SUMIFS(Program_Retention[WCU_Grad],Program_Retention[program_code],'Report - GR'!$Z$1,Program_Retention[Year],'Report - GR'!$B137,Program_Retention[Semester],'Report - GR'!$C137,Program_Retention[At_years],$AR$128)/$D137,"-") -> 0.2 | AQ137: =IFERROR(SUMIFS(Program_Retention[Not_Retained],Program_Retention[program_code],'Report - GR'!$Z$1,Program_Retention[Year],'Report - GR'!$B137,Program_Retention[Semester],'Report - GR'!$C137,Program_Retention[At_years],$AR$128)/$D137,"-") -> 0.4 | AR137: =SUM(AM137:AQ137) -> 1
B139: 1999 | C139: Fall | D139: =SUMIFS(Program_Retention[Cohort_Count],Program_Retention[program_code],'Report - GR'!$Z$1,Program_Retention[Year],'Report - GR'!$B139,Program_Retention[Semester],'Report - GR'!$C139,Program_Retention[At_years],$D$128) -> 4 | G139: =IFERROR(SUMIFS(Program_Retention[Program_Retain],Program_Retention[program_code],'Report - GR'!$Z$1,Program_Retention[Year],'Report - GR'!$B139,Program_Retention[Semester],'Report - GR'!$C139,Program_Retention[At_years],$L$128)/$D139,"-") -> 0.75 | H139: =IFERROR(SUMIFS(Program_Retention[Program_Grad],Program_Retention[program_code],'Report - GR'!$Z$1,Program_Retention[Year],'Report - GR'!$B139,Program_Retention[Semester],'Report - GR'!$C139,Program_Retention[At_years],$L$128)/$D139,"-") -> 0 | I139: =IFERROR(SUMIFS(Program_Retention[WCU_Retain],Program_Retention[program_code],'Report - GR'!$Z$1,Program_Retention[Year],'Report - GR'!$B139,Program_Retention[Semester],'Report - GR'!$C139,Program_Retention[At_years],$L$128)/$D139,"-") -> 0 | J139: =IFERROR(SUMIFS(Program_Retention[WCU_Grad],Program_Retention[program_code],'Report - GR'!$Z$1,Program_Retention[Year],'Report - GR'!$B139,Program_Retention[Semester],'Report - GR'!$C139,Program_Retention[At_years],$L$128)/$D139,"-") -> 0 | K139: =IFERROR(SUMIFS(Program_Retention[Not_Retained],Program_Retention[program_code],'Report - GR'!$Z$1,Program_Retention[Year],'Report - GR'!$B139,Program_Retention[Semester],'Report - GR'!$C139,Program_Retention[At_years],$L$128)/$D139,"-") -> 0.25 | L139: =SUM(G139:K139) -> 1 | O139: =IFERROR(SUMIFS(Program_Retention[Program_Retain],Program_Retention[program_code],'Report - GR'!$Z$1,Program_Retention[Year],'Report - GR'!$B139,Program_Retention[Semester],'Report - GR'!$C139,Program_Retention[At_years],$T$128)/$D139,"-") -> 0.25 | P139: =IFERROR(SUMIFS(Program_Retention[Program_Grad],Program_Retention[program_code],'Report - GR'!$Z$1,Program_Retention[Year],'Report - GR'!$B139,Program_Retention[Semester],'Report - GR'!$C139,Program_Retention[At_years],$T$128)/$D139,"-") -> 0.25 | Q139: =IFERROR(SUMIFS(Program_Retention[WCU_Retain],Program_Retention[program_code],'Report - GR'!$Z$1,Program_Retention[Year],'Report - GR'!$B139,Program_Retention[Semester],'Report - GR'!$C139,Program_Retention[At_years],$T$128)/$D139,"-") -> 0 | R139: =IFERROR(SUMIFS(Program_Retention[WCU_Grad],Program_Retention[program_code],'Report - GR'!$Z$1,Program_Retention[Year],'Report - GR'!$B139,Program_Retention[Semester],'Report - GR'!$C139,Program_Retention[At_years],$T$128)/$D139,"-") -> 0 | S139: =IFERROR(SUMIFS(Program_Retention[Not_Retained],Program_Retention[program_code],'Report - GR'!$Z$1,Program_Retention[Year],'Report - GR'!$B139,Program_Retention[Semester],'Report - GR'!$C139,Program_Retention[At_years],$T$128)/$D139,"-") -> 0.5 | T139: =SUM(O139:S139) -> 1 | W139: =IFERROR(SUMIFS(Program_Retention[Program_Retain],Program_Retention[program_code],'Report - GR'!$Z$1,Program_Retention[Year],'Report - GR'!$B139,Program_Retention[Semester],'Report - GR'!$C139,Program_Retention[At_years],$AB$128)/$D139,"-") -> 0 | X139: =IFERROR(SUMIFS(Program_Retention[Program_Grad],Program_Retention[program_code],'Report - GR'!$Z$1,Program_Retention[Year],'Report - GR'!$B139,Program_Retention[Semester],'Report - GR'!$C139,Program_Retention[At_years],$AB$128)/$D139,"-") -> 0.5 | Y139: =IFERROR(SUMIFS(Program_Retention[WCU_Retain],Program_Retention[program_code],'Report - GR'!$Z$1,Program_Retention[Year],'Report - GR'!$B139,Program_Retention[Semester],'Report - GR'!$C139,Program_Retention[At_years],$AB$128)/$D139,"-") -> 0 | Z139: =IFERROR(SUMIFS(Program_Retention[WCU_Grad],Program_Retention[program_code],'Report - GR'!$Z$1,Program_Retention[Year],'Report - GR'!$B139,Program_Retention[Semester],'Report - GR'!$C139,Program_Retention[At_years],$AB$128)/$D139,"-") -> 0 | AA139: =IFERROR(SUMIFS(Program_Retention[Not_Retained],Program_Retention[program_code],'Report - GR'!$Z$1,Program_Retention[Year],'Report - GR'!$B139,Program_Retention[Semester],'Report - GR'!$C139,Program_Retention[At_years],$AB$128)/$D139,"-") -> 0.5 | AB139: =SUM(W139:AA139) -> 1 | AE139: =IFERROR(SUMIFS(Program_Retention[Program_Retain],Program_Retention[program_code],'Report - GR'!$Z$1,Program_Retention[Year],'Report - GR'!$B139,Program_Retention[Semester],'Report - GR'!$C139,Program_Retention[At_years],$AJ$128)/$D139,"-") -> 0 | AF139: =IFERROR(SUMIFS(Program_Retention[Program_Grad],Program_Retention[program_code],'Report - GR'!$Z$1,Program_Retention[Year],'Report - GR'!$B139,Program_Retention[Semester],'Report - GR'!$C139,Program_Retention[At_years],$AJ$128)/$D139,"-") -> 0.5 | AG139: =IFERROR(SUMIFS(Program_Retention[WCU_Retain],Program_Retention[program_code],'Report - GR'!$Z$1,Program_Retention[Year],'Report - GR'!$B139,Program_Retention[Semester],'Report - GR'!$C139,Program_Retention[At_years],$AJ$128)/$D139,"-") -> 0 | AH139: =IFERROR(SUMIFS(Program_Retention[WCU_Grad],Program_Retention[program_code],'Report - GR'!$Z$1,Program_Retention[Year],'Report - GR'!$B139,Program_Retention[Semester],'Report - GR'!$C139,Program_Retention[At_years],$AJ$128)/$D139,"-") -> 0 | AI139: =IFERROR(SUMIFS(Program_Retention[Not_Retained],Program_Retention[program_code],'Report - GR'!$Z$1,Program_Retention[Year],'Report - GR'!$B139,Program_Retention[Semester],'Report - GR'!$C139,Program_Retention[At_years],$AJ$128)/$D139,"-") -> 0.5 | AJ139: =SUM(AE139:AI139) -> 1 | AM139: =IFERROR(SUMIFS(Program_Retention[Program_Retain],Program_Retention[program_code],'Report - GR'!$Z$1,Program_Retention[Year],'Report - GR'!$B139,Program_Retention[Semester],'Report - GR'!$C139,Program_Retention[At_years],$AR$128)/$D139,"-") -> 0 | AN139: =IFERROR(SUMIFS(Program_Retention[Program_Grad],Program_Retention[program_code],'Report - GR'!$Z$1,Program_Retention[Year],'Report - GR'!$B139,Program_Retention[Semester],'Report - GR'!$C139,Program_Retention[At_years],$AR$128)/$D139,"-") -> 0.5 | AO139: =IFERROR(SUMIFS(Program_Retention[WCU_Retain],Program_Retention[program_code],'Report - GR'!$Z$1,Program_Retention[Year],'Report - GR'!$B139,Program_Retention[Semester],'Report - GR'!$C139,Program_Retention[At_years],$AR$128)/$D139,"-") -> 0 | AP139: =IFERROR(SUMIFS(Program_Retention[WCU_Grad],Program_Retention[program_code],'Report - GR'!$Z$1,Program_Retention[Year],'Report - GR'!$B139,Program_Retention[Semester],'Report - GR'!$C139,Program_Retention[At_years],$AR$128)/$D139,"-") -> 0 | AQ139: =IFERROR(SUMIFS(Program_Retention[Not_Retained],Program_Retention[program_code],'Report - GR'!$Z$1,Program_Retention[Year],'Report - GR'!$B139,Program_Retention[Semester],'Report - GR'!$C139,Program_Retention[At_years],$AR$128)/$D139,"-") -> 0.5 | AR139: =SUM(AM139:AQ139) -> 1
B140: 2000 | C140: Spring | D140: =SUMIFS(Program_Retention[Cohort_Count],Program_Retention[program_code],'Report - GR'!$Z$1,Program_Retention[Year],'Report - GR'!$B140,Program_Retention[Semester],'Report - GR'!$C140,Program_Retention[At_years],$D$128) -> 4 | G140: =IFERROR(SUMIFS(Program_Retention[Program_Retain],Program_Retention[program_code],'Report - GR'!$Z$1,Program_Retention[Year],'Report - GR'!$B140,Program_Retention[Semester],'Report - GR'!$C140,Program_Retention[At_years],$L$128)/$D140,"-") -> 0.75 | H140: =IFERROR(SUMIFS(Program_Retention[Program_Grad],Program_Retention[program_code],'Report - GR'!$Z$1,Program_Retention[Year],'Report - GR'!$B140,Program_Retention[Semester],'Report - GR'!$C140,Program_Retention[At_years],$L$128)/$D140,"-") -> 0 | I140: =IFERROR(SUMIFS(Program_Retention[WCU_Retain],Program_Retention[program_code],'Report - GR'!$Z$1,Program_Retention[Year],'Report - GR'!$B140,Program_Retention[Semester],'Report - GR'!$C140,Program_Retention[At_years],$L$128)/$D140,"-") -> 0 | J140: =IFERROR(SUMIFS(Program_Retention[WCU_Grad],Program_Retention[program_code],'Report - GR'!$Z$1,Program_Retention[Year],'Report - GR'!$B140,Program_Retention[Semester],'Report - GR'!$C140,Program_Retention[At_years],$L$128)/$D140,"-") -> 0 | K140: =IFERROR(SUMIFS(Program_Retention[Not_Retained],Program_Retention[program_code],'Report - GR'!$Z$1,Program_Retention[Year],'Report - GR'!$B140,Program_Retention[Semester],'Report - GR'!$C140,Program_Retention[At_years],$L$128)/$D140,"-") -> 0.25 | L140: =SUM(G140:K140) -> 1 | O140: =IFERROR(SUMIFS(Program_Retention[Program_Retain],Program_Retention[program_code],'Report - GR'!$Z$1,Program_Retention[Year],'Report - GR'!$B140,Program_Retention[Semester],'Report - GR'!$C140,Program_Retention[At_years],$T$128)/$D140,"-") -> 0.25 | P140: =IFERROR(SUMIFS(Program_Retention[Program_Grad],Program_Retention[program_code],'Report - GR'!$Z$1,Program_Retention[Year],'Report - GR'!$B140,Program_Retention[Semester],'Report - GR'!$C140,Program_Retention[At_years],$T$128)/$D140,"-") -> 0.25 | Q140: =IFERROR(SUMIFS(Program_Retention[WCU_Retain],Program_Retention[program_code],'Report - GR'!$Z$1,Program_Retention[Year],'Report - GR'!$B140,Program_Retention[Semester],'Report - GR'!$C140,Program_Retention[At_years],$T$128)/$D140,"-") -> 0 | R140: =IFERROR(SUMIFS(Program_Retention[WCU_Grad],Program_Retention[program_code],'Report - GR'!$Z$1,Program_Retention[Year],'Report - GR'!$B140,Program_Retention[Semester],'Report - GR'!$C140,Program_Retention[At_years],$T$128)/$D140,"-") -> 0 | S140: =IFERROR(SUMIFS(Program_Retention[Not_Retained],Program_Retention[program_code],'Report - GR'!$Z$1,Program_Retention[Year],'Report - GR'!$B140,Program_Retention[Semester],'Report - GR'!$C140,Program_Retention[At_years],$T$128)/$D140,"-") -> 0.5 | T140: =SUM(O140:S140) -> 1 | W140: =IFERROR(SUMIFS(Program_Retention[Program_Retain],Program_Retention[program_code],'Report - GR'!$Z$1,Program_Retention[Year],'Report - GR'!$B140,Program_Retention[Semester],'Report - GR'!$C140,Program_Retention[At_years],$AB$128)/$D140,"-") -> 0.25 | X140: =IFERROR(SUMIFS(Program_Retention[Program_Grad],Program_Retention[program_code],'Report - GR'!$Z$1,Program_Retention[Year],'Report - GR'!$B140,Program_Retention[Semester],'Report - GR'!$C140,Program_Retention[At_years],$AB$128)/$D140,"-") -> 0.25 | Y140: =IFERROR(SUMIFS(Program_Retention[WCU_Retain],Program_Retention[program_code],'Report - GR'!$Z$1,Program_Retention[Year],'Report - GR'!$B140,Program_Retention[Semester],'Report - GR'!$C140,Program_Retention[At_years],$AB$128)/$D140,"-") -> 0 | Z140: =IFERROR(SUMIFS(Program_Retention[WCU_Grad],Program_Retention[program_code],'Report - GR'!$Z$1,Program_Retention[Year],'Report - GR'!$B140,Program_Retention[Semester],'Report - GR'!$C140,Program_Retention[At_years],$AB$128)/$D140,"-") -> 0 | AA140: =IFERROR(SUMIFS(Program_Retention[Not_Retained],Program_Retention[program_code],'Report - GR'!$Z$1,Program_Retention[Year],'Report - GR'!$B140,Program_Retention[Semester],'Report - GR'!$C140,Program_Retention[At_years],$AB$128)/$D140,"-") -> 0.5 | AB140: =SUM(W140:AA140) -> 1 | AE140: =IFERROR(SUMIFS(Program_Retention[Program_Retain],Program_Retention[program_code],'Report - GR'!$Z$1,Program_Retention[Year],'Report - GR'!$B140,Program_Retention[Semester],'Report - GR'!$C140,Program_Retention[At_years],$AJ$128)/$D140,"-") -> 0 | AF140: =IFERROR(SUMIFS(Program_Retention[Program_Grad],Program_Retention[program_code],'Report - GR'!$Z$1,Program_Retention[Year],'Report - GR'!$B140,Program_Retention[Semester],'Report - GR'!$C140,Program_Retention[At_years],$AJ$128)/$D140,"-") -> 0.5 | AG140: =IFERROR(SUMIFS(Program_Retention[WCU_Retain],Program_Retention[program_code],'Report - GR'!$Z$1,Program_Retention[Year],'Report - GR'!$B140,Program_Retention[Semester],'Report - GR'!$C140,Program_Retention[At_years],$AJ$128)/$D140,"-") -> 0 | AH140: =IFERROR(SUMIFS(Program_Retention[WCU_Grad],Program_Retention[program_code],'Report - GR'!$Z$1,Program_Retention[Year],'Report - GR'!$B140,Program_Retention[Semester],'Report - GR'!$C140,Program_Retention[At_years],$AJ$128)/$D140,"-") -> 0 | AI140: =IFERROR(SUMIFS(Program_Retention[Not_Retained],Program_Retention[program_code],'Report - GR'!$Z$1,Program_Retention[Year],'Report - GR'!$B140,Program_Retention[Semester],'Report - GR'!$C140,Program_Retention[At_years],$AJ$128)/$D140,"-") -> 0.5 | AJ140: =SUM(AE140:AI140) -> 1 | AM140: =IFERROR(SUMIFS(Program_Retention[Program_Retain],Program_Retention[program_code],'Report - GR'!$Z$1,Program_Retention[Year],'Report - GR'!$B140,Program_Retention[Semester],'Report - GR'!$C140,Program_Retention[At_years],$AR$128)/$D140,"-") -> 0 | AN140: =IFERROR(SUMIFS(Program_Retention[Program_Grad],Program_Retention[program_code],'Report - GR'!$Z$1,Program_Retention[Year],'Report - GR'!$B140,Program_Retention[Semester],'Report - GR'!$C140,Program_Retention[At_years],$AR$128)/$D140,"-") -> 0.5 | AO140: =IFERROR(SUMIFS(Program_Retention[WCU_Retain],Program_Retention[program_code],'Report - GR'!$Z$1,Program_Retention[Year],'Report - GR'!$B140,Program_Retention[Semester],'Report - GR'!$C140,Program_Retention[At_years],$AR$128)/$D140,"-") -> 0 | AP140: =IFERROR(SUMIFS(Program_Retention[WCU_Grad],Program_Retention[program_code],'Report - GR'!$Z$1,Program_Retention[Year],'Report - GR'!$B140,Program_Retention[Semester],'Report - GR'!$C140,Program_Retention[At_years],$AR$128)/$D140,"-") -> 0 | AQ140: =IFERROR(SUMIFS(Program_Retention[Not_Retained],Program_Retention[program_code],'Report - GR'!$Z$1,Program_Retention[Year],'Report - GR'!$B140,Program_Retention[Semester],'Report - GR'!$C140,Program_Retention[At_years],$AR$128)/$D140,"-") -> 0.5 | AR140: =SUM(AM140:AQ140) -> 1
B142: 2000 | C142: Fall | D142: =SUMIFS(Program_Retention[Cohort_Count],Program_Retention[program_code],'Report - GR'!$Z$1,Program_Retention[Year],'Report - GR'!$B142,Program_Retention[Semester],'Report - GR'!$C142,Program_Retention[At_years],$D$128) -> 3 | G142: =IFERROR(SUMIFS(Program_Retention[Program_Retain],Program_Retention[program_code],'Report - GR'!$Z$1,Program_Retention[Year],'Report - GR'!$B142,Program_Retention[Semester],'Report - GR'!$C142,Program_Retention[At_years],$L$128)/$D142,"-") -> 0.6666666667 | H142: =IFERROR(SUMIFS(Program_Retention[Program_Grad],Program_Retention[program_code],'Report - GR'!$Z$1,Program_Retention[Year],'Report - GR'!$B142,Program_Retention[Semester],'Report - GR'!$C142,Program_Retention[At_years],$L$128)/$D142,"-") -> 0 | I142: =IFERROR(SUMIFS(Program_Retention[WCU_Retain],Program_Retention[program_code],'Report - GR'!$Z$1,Program_Retention[Year],'Report - GR'!$B142,Program_Retention[Semester],'Report - GR'!$C142,Program_Retention[At_years],$L$128)/$D142,"-") -> 0 | J142: =IFERROR(SUMIFS(Program_Retention[WCU_Grad],Program_Retention[program_code],'Report - GR'!$Z$1,Program_Retention[Year],'Report - GR'!$B142,Program_Retention[Semester],'Report - GR'!$C142,Program_Retention[At_years],$L$128)/$D142,"-") -> 0 | K142: =IFERROR(SUMIFS(Program_Retention[Not_Retained],Program_Retention[program_code],'Report - GR'!$Z$1,Program_Retention[Year],'Report - GR'!$B142,Program_Retention[Semester],'Report - GR'!$C142,Program_Retention[At_years],$L$128)/$D142,"-") -> 0.3333333333 | L142: =SUM(G142:K142) -> 1 | O142: =IFERROR(SUMIFS(Program_Retention[Program_Retain],Program_Retention[program_code],'Report - GR'!$Z$1,Program_Retention[Year],'Report - GR'!$B142,Program_Retention[Semester],'Report - GR'!$C142,Program_Retention[At_years],$T$128)/$D142,"-") -> 0 | P142: =IFERROR(SUMIFS(Program_Retention[Program_Grad],Program_Retention[program_code],'Report - GR'!$Z$1,Program_Retention[Year],'Report - GR'!$B142,Program_Retention[Semester],'Report - GR'!$C142,Program_Retention[At_years],$T$128)/$D142,"-") -> 0 | Q142: =IFERROR(SUMIFS(Program_Retention[WCU_Retain],Program_Retention[program_code],'Report - GR'!$Z$1,Program_Retention[Year],'Report - GR'!$B142,Program_Retention[Semester],'Report - GR'!$C142,Program_Retention[At_years],$T$128)/$D142,"-") -> 0 | R142: =IFERROR(SUMIFS(Program_Retention[WCU_Grad],Program_Retention[program_code],'Report - GR'!$Z$1,Program_Retention[Year],'Report - GR'!$B142,Program_Retention[Semester],'Report - GR'!$C142,Program_Retention[At_years],$T$128)/$D142,"-") -> 0 | S142: =IFERROR(SUMIFS(Program_Retention[Not_Retained],Program_Retention[program_code],'Report - GR'!$Z$1,Program_Retention[Year],'Report - GR'!$B142,Program_Retention[Semester],'Report - GR'!$C142,Program_Retention[At_years],$T$128)/$D142,"-") -> 1 | T142: =SUM(O142:S142) -> 1 | W142: =IFERROR(SUMIFS(Program_Retention[Program_Retain],Program_Retention[program_code],'Report - GR'!$Z$1,Program_Retention[Year],'Report - GR'!$B142,Program_Retention[Semester],'Report - GR'!$C142,Program_Retention[At_years],$AB$128)/$D142,"-") -> 0.3333333333 | X142: =IFERROR(SUMIFS(Program_Retention[Program_Grad],Program_Retention[program_code],'Report - GR'!$Z$1,Program_Retention[Year],'Report - GR'!$B142,Program_Retention[Semester],'Report - GR'!$C142,Program_Retention[At_years],$AB$128)/$D142,"-") -> 0 | Y142: =IFERROR(SUMIFS(Program_Retention[WCU_Retain],Program_Retention[program_code],'Report - GR'!$Z$1,Program_Retention[Year],'Report - GR'!$B142,Program_Retention[Semester],'Report - GR'!$C142,Program_Retention[At_years],$AB$128)/$D142,"-") -> 0 | Z142: =IFERROR(SUMIFS(Program_Retention[WCU_Grad],Program_Retention[program_code],'Report - GR'!$Z$1,Program_Retention[Year],'Report - GR'!$B142,Program_Retention[Semester],'Report - GR'!$C142,Program_Retention[At_years],$AB$128)/$D142,"-") -> 0 | AA142: =IFERROR(SUMIFS(Program_Retention[Not_Retained],Program_Retention[program_code],'Report - GR'!$Z$1,Program_Retention[Year],'Report - GR'!$B142,Program_Retention[Semester],'Report - GR'!$C142,Program_Retention[At_years],$AB$128)/$D142,"-") -> 0.6666666667 | AB142: =SUM(W142:AA142) -> 1 | AE142: =IFERROR(SUMIFS(Program_Retention[Program_Retain],Program_Retention[program_code],'Report - GR'!$Z$1,Program_Retention[Year],'Report - GR'!$B142,Program_Retention[Semester],'Report - GR'!$C142,Program_Retention[At_years],$AJ$128)/$D142,"-") -> 0 | AF142: =IFERROR(SUMIFS(Program_Retention[Program_Grad],Program_Retention[program_code],'Report - GR'!$Z$1,Program_Retention[Year],'Report - GR'!$B142,Program_Retention[Semester],'Report - GR'!$C142,Program_Retention[At_years],$AJ$128)/$D142,"-") -> 0.3333333333 | AG142: =IFERROR(SUMIFS(Program_Retention[WCU_Retain],Program_Retention[program_code],'Report - GR'!$Z$1,Program_Retention[Year],'Report - GR'!$B142,Program_Retention[Semester],'Report - GR'!$C142,Program_Retention[At_years],$AJ$128)/$D142,"-") -> 0 | AH142: =IFERROR(SUMIFS(Program_Retention[WCU_Grad],Program_Retention[program_code],'Report - GR'!$Z$1,Program_Retention[Year],'Report - GR'!$B142,Program_Retention[Semester],'Report - GR'!$C142,Program_Retention[At_years],$AJ$128)/$D142,"-") -> 0 | AI142: =IFERROR(SUMIFS(Program_Retention[Not_Retained],Program_Retention[program_code],'Report - GR'!$Z$1,Program_Retention[Year],'Report - GR'!$B142,Program_Retention[Semester],'Report - GR'!$C142,Program_Retention[At_years],$AJ$128)/$D142,"-") -> 0.6666666667 | AJ142: =SUM(AE142:AI142) -> 1 | AM142: =IFERROR(SUMIFS(Program_Retention[Program_Retain],Program_Retention[program_code],'Report - GR'!$Z$1,Program_Retention[Year],'Report - GR'!$B142,Program_Retention[Semester],'Report - GR'!$C142,Program_Retention[At_years],$AR$128)/$D142,"-") -> 0 | AN142: =IFERROR(SUMIFS(Program_Retention[Program_Grad],Program_Retention[program_code],'Report - GR'!$Z$1,Program_Retention[Year],'Report - GR'!$B142,Program_Retention[Semester],'Report - GR'!$C142,Program_Retention[At_years],$AR$128)/$D142,"-") -> 0.3333333333 | AO142: =IFERROR(SUMIFS(Program_Retention[WCU_Retain],Program_Retention[program_code],'Report - GR'!$Z$1,Program_Retention[Year],'Report - GR'!$B142,Program_Retention[Semester],'Report - GR'!$C142,Program_Retention[At_years],$AR$128)/$D142,"-") -> 0 | AP142: =IFERROR(SUMIFS(Program_Retention[WCU_Grad],Program_Retention[program_code],'Report - GR'!$Z$1,Program_Retention[Year],'Report - GR'!$B142,Program_Retention[Semester],'Report - GR'!$C142,Program_Retention[At_years],$AR$128)/$D142,"-") -> 0 | AQ142: =IFERROR(SUMIFS(Program_Retention[Not_Retained],Program_Retention[program_code],'Report - GR'!$Z$1,Program_Retention[Year],'Report - GR'!$B142,Program_Retention[Semester],'Report - GR'!$C142,Program_Retention[At_years],$AR$128)/$D142,"-") -> 0.6666666667 | AR142: =SUM(AM142:AQ142) -> 1
B143: 2001 | C143: Spring | D143: =SUMIFS(Program_Retention[Cohort_Count],Program_Retention[program_code],'Report - GR'!$Z$1,Program_Retention[Year],'Report - GR'!$B143,Program_Retention[Semester],'Report - GR'!$C143,Program_Retention[At_years],$D$128) -> 5 | G143: =IFERROR(SUMIFS(Program_Retention[Program_Retain],Program_Retention[program_code],'Report - GR'!$Z$1,Program_Retention[Year],'Report - GR'!$B143,Program_Retention[Semester],'Report - GR'!$C143,Program_Retention[At_years],$L$128)/$D143,"-") -> 0.4 | H143: =IFERROR(SUMIFS(Program_Retention[Program_Grad],Program_Retention[program_code],'Report - GR'!$Z$1,Program_Retention[Year],'Report - GR'!$B143,Program_Retention[Semester],'Report - GR'!$C143,Program_Retention[At_years],$L$128)/$D143,"-") -> 0 | I143: =IFERROR(SUMIFS(Program_Retention[WCU_Retain],Program_Retention[program_code],'Report - GR'!$Z$1,Program_Retention[Year],'Report - GR'!$B143,Program_Retention[Semester],'Report - GR'!$C143,Program_Retention[At_years],$L$128)/$D143,"-") -> 0 | J143: =IFERROR(SUMIFS(Program_Retention[WCU_Grad],Program_Retention[program_code],'Report - GR'!$Z$1,Program_Retention[Year],'Report - GR'!$B143,Program_Retention[Semester],'Report - GR'!$C143,Program_Retention[At_years],$L$128)/$D143,"-") -> 0 | K143: =IFERROR(SUMIFS(Program_Retention[Not_Retained],Program_Retention[program_code],'Report - GR'!$Z$1,Program_Retention[Year],'Report - GR'!$B143,Program_Retention[Semester],'Report - GR'!$C143,Program_Retention[At_years],$L$128)/$D143,"-") -> 0.6 | L143: =SUM(G143:K143) -> 1 | O143: =IFERROR(SUMIFS(Program_Retention[Program_Retain],Program_Retention[program_code],'Report - GR'!$Z$1,Program_Retention[Year],'Report - GR'!$B143,Program_Retention[Semester],'Report - GR'!$C143,Program_Retention[At_years],$T$128)/$D143,"-") -> 0.2 | P143: =IFERROR(SUMIFS(Program_Retention[Program_Grad],Program_Retention[program_code],'Report - GR'!$Z$1,Program_Retention[Year],'Report - GR'!$B143,Program_Retention[Semester],'Report - GR'!$C143,Program_Retention[At_years],$T$128)/$D143,"-") -> 0.2 | Q143: =IFERROR(SUMIFS(Program_Retention[WCU_Retain],Program_Retention[program_code],'Report - GR'!$Z$1,Program_Retention[Year],'Report - GR'!$B143,Program_Retention[Semester],'Report - GR'!$C143,Program_Retention[At_years],$T$128)/$D143,"-") -> 0 | R143: =IFERROR(SUMIFS(Program_Retention[WCU_Grad],Program_Retention[program_code],'Report - GR'!$Z$1,Program_Retention[Year],'Report - GR'!$B143,Program_Retention[Semester],'Report - GR'!$C143,Program_Retention[At_years],$T$128)/$D143,"-") -> 0 | S143: =IFERROR(SUMIFS(Program_Retention[Not_Retained],Program_Retention[program_code],'Report - GR'!$Z$1,Program_Retention[Year],'Report - GR'!$B143,Program_Retention[Semester],'Report - GR'!$C143,Program_Retention[At_years],$T$128)/$D143,"-") -> 0.6 | T143: =SUM(O143:S143) -> 1 | W143: =IFERROR(SUMIFS(Program_Retention[Program_Retain],Program_Retention[program_code],'Report - GR'!$Z$1,Program_Retention[Year],'Report - GR'!$B143,Program_Retention[Semester],'Report - GR'!$C143,Program_Retention[At_years],$AB$128)/$D143,"-") -> 0.2 | X143: =IFERROR(SUMIFS(Program_Retention[Program_Grad],Program_Retention[program_code],'Report - GR'!$Z$1,Program_Retention[Year],'Report - GR'!$B143,Program_Retention[Semester],'Report - GR'!$C143,Program_Retention[At_years],$AB$128)/$D143,"-") -> 0.2 | Y143: =IFERROR(SUMIFS(Program_Retention[WCU_Retain],Program_Retention[program_code],'Report - GR'!$Z$1,Program_Retention[Year],'Report - GR'!$B143,Program_Retention[Semester],'Report - GR'!$C143,Program_Retention[At_years],$AB$128)/$D143,"-") -> 0 | Z143: =IFERROR(SUMIFS(Program_Retention[WCU_Grad],Program_Retention[program_code],'Report - GR'!$Z$1,Program_Retention[Year],'Report - GR'!$B143,Program_Retention[Semester],'Report - GR'!$C143,Program_Retention[At_years],$AB$128)/$D143,"-") -> 0 | AA143: =IFERROR(SUMIFS(Program_Retention[Not_Retained],Program_Retention[program_code],'Report - GR'!$Z$1,Program_Retention[Year],'Report - GR'!$B143,Program_Retention[Semester],'Report - GR'!$C143,Program_Retention[At_years],$AB$128)/$D143,"-") -> 0.6 | AB143: =SUM(W143:AA143) -> 1 | AE143: =IFERROR(SUMIFS(Program_Retention[Program_Retain],Program_Retention[program_code],'Report - GR'!$Z$1,Program_Retention[Year],'Report - GR'!$B143,Program_Retention[Semester],'Report - GR'!$C143,Program_Retention[At_years],$AJ$128)/$D143,"-") -> 0 | AF143: =IFERROR(SUMIFS(Program_Retention[Program_Grad],Program_Retention[program_code],'Report - GR'!$Z$1,Program_Retention[Year],'Report - GR'!$B143,Program_Retention[Semester],'Report - GR'!$C143,Program_Retention[At_years],$AJ$128)/$D143,"-") -> 0.4 | AG143: =IFERROR(SUMIFS(Program_Retention[WCU_Retain],Program_Retention[program_code],'Report - GR'!$Z$1,Program_Retention[Year],'Report - GR'!$B143,Program_Retention[Semester],'Report - GR'!$C143,Program_Retention[At_years],$AJ$128)/$D143,"-") -> 0 | AH143: =IFERROR(SUMIFS(Program_Retention[WCU_Grad],Program_Retention[program_code],'Report - GR'!$Z$1,Program_Retention[Year],'Report - GR'!$B143,Program_Retention[Semester],'Report - GR'!$C143,Program_Retention[At_years],$AJ$128)/$D143,"-") -> 0 | AI143: =IFERROR(SUMIFS(Program_Retention[Not_Retained],Program_Retention[program_code],'Report - GR'!$Z$1,Program_Retention[Year],'Report - GR'!$B143,Program_Retention[Semester],'Report - GR'!$C143,Program_Retention[At_years],$AJ$128)/$D143,"-") -> 0.6 | AJ143: =SUM(AE143:AI143) -> 1 | AM143: =IFERROR(SUMIFS(Program_Retention[Program_Retain],Program_Retention[program_code],'Report - GR'!$Z$1,Program_Retention[Year],'Report - GR'!$B143,Program_Retention[Semester],'Report - GR'!$C143,Program_Retention[At_years],$AR$128)/$D143,"-") -> 0 | AN143: =IFERROR(SUMIFS(Program_Retention[Program_Grad],Program_Retention[program_code],'Report - GR'!$Z$1,Program_Retention[Year],'Report - GR'!$B143,Program_Retention[Semester],'Report - GR'!$C143,Program_Retention[At_years],$AR$128)/$D143,"-") -> 0.4 | AO143: =IFERROR(SUMIFS(Program_Retention[WCU_Retain],Program_Retention[program_code],'Report - GR'!$Z$1,Program_Retention[Year],'Report - GR'!$B143,Program_Retention[Semester],'Report - GR'!$C143,Program_Retention[At_years],$AR$128)/$D143,"-") -> 0 | AP143: =IFERROR(SUMIFS(Program_Retention[WCU_Grad],Program_Retention[program_code],'Report - GR'!$Z$1,Program_Retention[Year],'Report - GR'!$B143,Program_Retention[Semester],'Report - GR'!$C143,Program_Retention[At_years],$AR$128)/$D143,"-") -> 0 | AQ143: =IFERROR(SUMIFS(Program_Retention[Not_Retained],Program_Retention[program_code],'Report - GR'!$Z$1,Program_Retention[Year],'Report - GR'!$B143,Program_Retention[Semester],'Report - GR'!$C143,Program_Retention[At_years],$AR$128)/$D143,"-") -> 0.6 | AR143: =SUM(AM143:AQ143) -> 1
B145: 2001 | C145: Fall | D145: =SUMIFS(Program_Retention[Cohort_Count],Program_Retention[program_code],'Report - GR'!$Z$1,Program_Retention[Year],'Report - GR'!$B145,Program_Retention[Semester],'Report - GR'!$C145,Program_Retention[At_years],$D$128) -> 9 | G145: =IFERROR(SUMIFS(Program_Retention[Program_Retain],Program_Retention[program_code],'Report - GR'!$Z$1,Program_Retention[Year],'Report - GR'!$B145,Program_Retention[Semester],'Report - GR'!$C145,Program_Retention[At_years],$L$128)/$D145,"-") -> 0.5555555556 | H145: =IFERROR(SUMIFS(Program_Retention[Program_Grad],Program_Retention[program_code],'Report - GR'!$Z$1,Program_Retention[Year],'Report - GR'!$B145,Program_Retention[Semester],'Report - GR'!$C145,Program_Retention[At_years],$L$128)/$D145,"-") -> 0.2222222222 | I145: =IFERROR(SUMIFS(Program_Retention[WCU_Retain],Program_Retention[program_code],'Report - GR'!$Z$1,Program_Retention[Year],'Report - GR'!$B145,Program_Retention[Semester],'Report - GR'!$C145,Program_Retention[At_years],$L$128)/$D145,"-") -> 0.1111111111 | J145: =IFERROR(SUMIFS(Program_Retention[WCU_Grad],Program_Retention[program_code],'Report - GR'!$Z$1,Program_Retention[Year],'Report - GR'!$B145,Program_Retention[Semester],'Report - GR'!$C145,Program_Retention[At_years],$L$128)/$D145,"-") -> 0 | K145: =IFERROR(SUMIFS(Program_Retention[Not_Retained],Program_Retention[program_code],'Report - GR'!$Z$1,Program_Retention[Year],'Report - GR'!$B145,Program_Retention[Semester],'Report - GR'!$C145,Program_Retention[At_years],$L$128)/$D145,"-") -> 0.1111111111 | L145: =SUM(G145:K145) -> 1 | O145: =IFERROR(SUMIFS(Program_Retention[Program_Retain],Program_Retention[program_code],'Report - GR'!$Z$1,Program_Retention[Year],'Report - GR'!$B145,Program_Retention[Semester],'Report - GR'!$C145,Program_Retention[At_years],$T$128)/$D145,"-") -> 0.2222222222 | P145: =IFERROR(SUMIFS(Program_Retention[Program_Grad],Program_Retention[program_code],'Report - GR'!$Z$1,Program_Retention[Year],'Report - GR'!$B145,Program_Retention[Semester],'Report - GR'!$C145,Program_Retention[At_years],$T$128)/$D145,"-") -> 0.5555555556 | Q145: =IFERROR(SUMIFS(Program_Retention[WCU_Retain],Program_Retention[program_code],'Report - GR'!$Z$1,Program_Retention[Year],'Report - GR'!$B145,Program_Retention[Semester],'Report - GR'!$C145,Program_Retention[At_years],$T$128)/$D145,"-") -> 0.1111111111 | R145: =IFERROR(SUMIFS(Program_Retention[WCU_Grad],Program_Retention[program_code],'Report - GR'!$Z$1,Program_Retention[Year],'Report - GR'!$B145,Program_Retention[Semester],'Report - GR'!$C145,Program_Retention[At_years],$T$128)/$D145,"-") -> 0 | S145: =IFERROR(SUMIFS(Program_Retention[Not_Retained],Program_Retention[program_code],'Report - GR'!$Z$1,Program_Retention[Year],'Report - GR'!$B145,Program_Retention[Semester],'Report - GR'!$C145,Program_Retention[At_years],$T$128)/$D145,"-") -> 0.1111111111 | T145: =SUM(O145:S145) -> 1 | W145: =IFERROR(SUMIFS(Program_Retention[Program_Retain],Program_Retention[program_code],'Report - GR'!$Z$1,Program_Retention[Year],'Report - GR'!$B145,Program_Retention[Semester],'Report - GR'!$C145,Program_Retention[At_years],$AB$128)/$D145,"-") -> 0.2222222222 | X145: =IFERROR(SUMIFS(Program_Retention[Program_Grad],Program_Retention[program_code],'Report - GR'!$Z$1,Program_Retention[Year],'Report - GR'!$B145,Program_Retention[Semester],'Report - GR'!$C145,Program_Retention[At_years],$AB$128)/$D145,"-") -> 0.5555555556 | Y145: =IFERROR(SUMIFS(Program_Retention[WCU_Retain],Program_Retention[program_code],'Report - GR'!$Z$1,Program_Retention[Year],'Report - GR'!$B145,Program_Retention[Semester],'Report - GR'!$C145,Program_Retention[At_years],$AB$128)/$D145,"-") -> 0 | Z145: =IFERROR(SUMIFS(Program_Retention[WCU_Grad],Program_Retention[program_code],'Report - GR'!$Z$1,Program_Retention[Year],'Report - GR'!$B145,Program_Retention[Semester],'Report - GR'!$C145,Program_Retention[At_years],$AB$128)/$D145,"-") -> 0.1111111111 | AA145: =IFERROR(SUMIFS(Program_Retention[Not_Retained],Program_Retention[program_code],'Report - GR'!$Z$1,Program_Retention[Year],'Report - GR'!$B145,Program_Retention[Semester],'Report - GR'!$C145,Program_Retention[At_years],$AB$128)/$D145,"-") -> 0.1111111111 | AB145: =SUM(W145:AA145) -> 1 | AE145: =IFERROR(SUMIFS(Program_Retention[Program_Retain],Program_Retention[program_code],'Report - GR'!$Z$1,Program_Retention[Year],'Report - GR'!$B145,Program_Retention[Semester],'Report - GR'!$C145,Program_Retention[At_years],$AJ$128)/$D145,"-") -> 0 | AF145: =IFERROR(SUMIFS(Program_Retention[Program_Grad],Program_Retention[program_code],'Report - GR'!$Z$1,Program_Retention[Year],'Report - GR'!$B145,Program_Retention[Semester],'Report - GR'!$C145,Program_Retention[At_years],$AJ$128)/$D145,"-") -> 0.7777777778 | AG145: =IFERROR(SUMIFS(Program_Retention[WCU_Retain],Program_Retention[program_code],'Report - GR'!$Z$1,Program_Retention[Year],'Report - GR'!$B145,Program_Retention[Semester],'Report - GR'!$C145,Program_Retention[At_years],$AJ$128)/$D145,"-") -> 0 | AH145: =IFERROR(SUMIFS(Program_Retention[WCU_Grad],Program_Retention[program_code],'Report - GR'!$Z$1,Program_Retention[Year],'Report - GR'!$B145,Program_Retention[Semester],'Report - GR'!$C145,Program_Retention[At_years],$AJ$128)/$D145,"-") -> 0.1111111111 | AI145: =IFERROR(SUMIFS(Program_Retention[Not_Retained],Program_Retention[program_code],'Report - GR'!$Z$1,Program_Retention[Year],'Report - GR'!$B145,Program_Retention[Semester],'Report - GR'!$C145,Program_Retention[At_years],$AJ$128)/$D145,"-") -> 0.1111111111 | AJ145: =SUM(AE145:AI145) -> 1 | AM145: =IFERROR(SUMIFS(Program_Retention[Program_Retain],Program_Retention[program_code],'Report - GR'!$Z$1,Program_Retention[Year],'Report - GR'!$B145,Program_Retention[Semester],'Report - GR'!$C145,Program_Retention[At_years],$AR$128)/$D145,"-") -> 0 | AN145: =IFERROR(SUMIFS(Program_Retention[Program_Grad],Program_Retention[program_code],'Report - GR'!$Z$1,Program_Retention[Year],'Report - GR'!$B145,Program_Retention[Semester],'Report - GR'!$C145,Program_Retention[At_years],$AR$128)/$D145,"-") -> 0.7777777778 | AO145: =IFERROR(SUMIFS(Program_Retention[WCU_Retain],Program_Retention[program_code],'Report - GR'!$Z$1,Program_Retention[Year],'Report - GR'!$B145,Program_Retention[Semester],'Report - GR'!$C145,Program_Retention[At_years],$AR$128)/$D145,"-") -> 0 | AP145: =IFERROR(SUMIFS(Program_Retention[WCU_Grad],Program_Retention[program_code],'Report - GR'!$Z$1,Program_Retention[Year],'Report - GR'!$B145,Program_Retention[Semester],'Report - GR'!$C145,Program_Retention[At_years],$AR$128)/$D145,"-") -> 0.1111111111 | AQ145: =IFERROR(SUMIFS(Program_Retention[Not_Retained],Program_Retention[program_code],'Report - GR'!$Z$1,Program_Retention[Year],'Report - GR'!$B145,Program_Retention[Semester],'Report - GR'!$C145,Program_Retention[At_years],$AR$128)/$D145,"-") -> 0.1111111111 | AR145: =SUM(AM145:AQ145) -> 1
B146: 2002 | C146: Spring | D146: =SUMIFS(Program_Retention[Cohort_Count],Program_Retention[program_code],'Report - GR'!$Z$1,Program_Retention[Year],'Report - GR'!$B146,Program_Retention[Semester],'Report - GR'!$C146,Program_Retention[At_years],$D$128) -> 5 | G146: =IFERROR(SUMIFS(Program_Retention[Program_Retain],Program_Retention[program_code],'Report - GR'!$Z$1,Program_Retention[Year],'Report - GR'!$B146,Program_Retention[Semester],'Report - GR'!$C146,Program_Retention[At_years],$L$128)/$D146,"-") -> 0.6 | H146: =IFERROR(SUMIFS(Program_Retention[Program_Grad],Program_Retention[program_code],'Report - GR'!$Z$1,Program_Retention[Year],'Report - GR'!$B146,Program_Retention[Semester],'Report - GR'!$C146,Program_Retention[At_years],$L$128)/$D146,"-") -> 0 | I146: =IFERROR(SUMIFS(Program_Retention[WCU_Retain],Program_Retention[program_code],'Report - GR'!$Z$1,Program_Retention[Year],'Report - GR'!$B146,Program_Retention[Semester],'Report - GR'!$C146,Program_Retention[At_years],$L$128)/$D146,"-") -> 0 | J146: =IFERROR(SUMIFS(Program_Retention[WCU_Grad],Program_Retention[program_code],'Report - GR'!$Z$1,Program_Retention[Year],'Report - GR'!$B146,Program_Retention[Semester],'Report - GR'!$C146,Program_Retention[At_years],$L$128)/$D146,"-") -> 0 | K146: =IFERROR(SUMIFS(Program_Retention[Not_Retained],Program_Retention[program_code],'Report - GR'!$Z$1,Program_Retention[Year],'Report - GR'!$B146,Program_Retention[Semester],'Report - GR'!$C146,Program_Retention[At_years],$L$128)/$D146,"-") -> 0.4 | L146: =SUM(G146:K146) -> 1 | O146: =IFERROR(SUMIFS(Program_Retention[Program_Retain],Program_Retention[program_code],'Report - GR'!$Z$1,Program_Retention[Year],'Report - GR'!$B146,Program_Retention[Semester],'Report - GR'!$C146,Program_Retention[At_years],$T$128)/$D146,"-") -> 0.6 | P146: =IFERROR(SUMIFS(Program_Retention[Program_Grad],Program_Retention[program_code],'Report - GR'!$Z$1,Program_Retention[Year],'Report - GR'!$B146,Program_Retention[Semester],'Report - GR'!$C146,Program_Retention[At_years],$T$128)/$D146,"-") -> 0 | Q146: =IFERROR(SUMIFS(Program_Retention[WCU_Retain],Program_Retention[program_code],'Report - GR'!$Z$1,Program_Retention[Year],'Report - GR'!$B146,Program_Retention[Semester],'Report - GR'!$C146,Program_Retention[At_years],$T$128)/$D146,"-") -> 0 | R146: =IFERROR(SUMIFS(Program_Retention[WCU_Grad],Program_Retention[program_code],'Report - GR'!$Z$1,Program_Retention[Year],'Report - GR'!$B146,Program_Retention[Semester],'Report - GR'!$C146,Program_Retention[At_years],$T$128)/$D146,"-") -> 0 | S146: =IFERROR(SUMIFS(Program_Retention[Not_Retained],Program_Retention[program_code],'Report - GR'!$Z$1,Program_Retention[Year],'Report - GR'!$B146,Program_Retention[Semester],'Report - GR'!$C146,Program_Retention[At_years],$T$128)/$D146,"-") -> 0.4 | T146: =SUM(O146:S146) -> 1 | W146: =IFERROR(SUMIFS(Program_Retention[Program_Retain],Program_Retention[program_code],'Report - GR'!$Z$1,Program_Retention[Year],'Report - GR'!$B146,Program_Retention[Semester],'Report - GR'!$C146,Program_Retention[At_years],$AB$128)/$D146,"-") -> 0 | X146: =IFERROR(SUMIFS(Program_Retention[Program_Grad],Program_Retention[program_code],'Report - GR'!$Z$1,Program_Retention[Year],'Report - GR'!$B146,Program_Retention[Semester],'Report - GR'!$C146,Program_Retention[At_years],$AB$128)/$D146,"-") -> 0 | Y146: =IFERROR(SUMIFS(Program_Retention[WCU_Retain],Program_Retention[program_code],'Report - GR'!$Z$1,Program_Retention[Year],'Report - GR'!$B146,Program_Retention[Semester],'Report - GR'!$C146,Program_Retention[At_years],$AB$128)/$D146,"-") -> 0 | Z146: =IFERROR(SUMIFS(Program_Retention[WCU_Grad],Program_Retention[program_code],'Report - GR'!$Z$1,Program_Retention[Year],'Report - GR'!$B146,Program_Retention[Semester],'Report - GR'!$C146,Program_Retention[At_years],$AB$128)/$D146,"-") -> 0 | AA146: =IFERROR(SUMIFS(Program_Retention[Not_Retained],Program_Retention[program_code],'Report - GR'!$Z$1,Program_Retention[Year],'Report - GR'!$B146,Program_Retention[Semester],'Report - GR'!$C146,Program_Retention[At_years],$AB$128)/$D146,"-") -> 1 | AB146: =SUM(W146:AA146) -> 1 | AE146: =IFERROR(SUMIFS(Program_Retention[Program_Retain],Program_Retention[program_code],'Report - GR'!$Z$1,Program_Retention[Year],'Report - GR'!$B146,Program_Retention[Semester],'Report - GR'!$C146,Program_Retention[At_years],$AJ$128)/$D146,"-") -> 0 | AF146: =IFERROR(SUMIFS(Program_Retention[Program_Grad],Program_Retention[program_code],'Report - GR'!$Z$1,Program_Retention[Year],'Report - GR'!$B146,Program_Retention[Semester],'Report - GR'!$C146,Program_Retention[At_years],$AJ$128)/$D146,"-") -> 0 | AG146: =IFERROR(SUMIFS(Program_Retention[WCU_Retain],Program_Retention[program_code],'Report - GR'!$Z$1,Program_Retention[Year],'Report - GR'!$B146,Program_Retention[Semester],'Report - GR'!$C146,Program_Retention[At_years],$AJ$128)/$D146,"-") -> 0 | AH146: =IFERROR(SUMIFS(Program_Retention[WCU_Grad],Program_Retention[program_code],'Report - GR'!$Z$1,Program_Retention[Year],'Report - GR'!$B146,Program_Retention[Semester],'Report - GR'!$C146,Program_Retention[At_years],$AJ$128)/$D146,"-") -> 0 | AI146: =IFERROR(SUMIFS(Program_Retention[Not_Retained],Program_Retention[program_code],'Report - GR'!$Z$1,Program_Retention[Year],'Report - GR'!$B146,Program_Retention[Semester],'Report - GR'!$C146,Program_Retention[At_years],$AJ$128)/$D146,"-") -> 1 | AJ146: =SUM(AE146:AI146) -> 1 | AM146: =IFERROR(SUMIFS(Program_Retention[Program_Retain],Program_Retention[program_code],'Report - GR'!$Z$1,Program_Retention[Year],'Report - GR'!$B146,Program_Retention[Semester],'Report - GR'!$C146,Program_Retention[At_years],$AR$128)/$D146,"-") -> 0.2 | AN146: =IFERROR(SUMIFS(Program_Retention[Program_Grad],Program_Retention[program_code],'Report - GR'!$Z$1,Program_Retention[Year],'Report - GR'!$B146,Program_Retention[Semester],'Report - GR'!$C146,Program_Retention[At_years],$AR$128)/$D146,"-") -> 0 | AO146: =IFERROR(SUMIFS(Program_Retention[WCU_Retain],Program_Retention[program_code],'Report - GR'!$Z$1,Program_Retention[Year],'Report - GR'!$B146,Program_Retention[Semester],'Report - GR'!$C146,Program_Retention[At_years],$AR$128)/$D146,"-") -> 0 | AP146: =IFERROR(SUMIFS(Program_Retention[WCU_Grad],Program_Retention[program_code],'Report - GR'!$Z$1,Program_Retention[Year],'Report - GR'!$B146,Program_Retention[Semester],'Report - GR'!$C146,Program_Retention[At_years],$AR$128)/$D146,"-") -> 0 | AQ146: =IFERROR(SUMIFS(Program_Retention[Not_Retained],Program_Retention[program_code],'Report - GR'!$Z$1,Program_Retention[Year],'Report - GR'!$B146,Program_Retention[Semester],'Report - GR'!$C146,Program_Retention[At_years],$AR$128)/$D146,"-") -> 0.8 | AR146: =SUM(AM146:AQ146) -> 1
B148: 2002 | C148: Fall | D148: =SUMIFS(Program_Retention[Cohort_Count],Program_Retention[program_code],'Report - GR'!$Z$1,Program_Retention[Year],'Report - GR'!$B148,Program_Retention[Semester],'Report - GR'!$C148,Program_Retention[At_years],$D$128) -> 10 | G148: =IFERROR(SUMIFS(Program_Retention[Program_Retain],Program_Retention[program_code],'Report - GR'!$Z$1,Program_Retention[Year],'Report - GR'!$B148,Program_Retention[Semester],'Report - GR'!$C148,Program_Retention[At_years],$L$128)/$D148,"-") -> 0.6 | H148: =IFERROR(SUMIFS(Program_Retention[Program_Grad],Program_Retention[program_code],'Report - GR'!$Z$1,Program_Retention[Year],'Report - GR'!$B148,Program_Retention[Semester],'Report - GR'!$C148,Program_Retention[At_years],$L$128)/$D148,"-") -> 0.1 | I148: =IFERROR(SUMIFS(Program_Retention[WCU_Retain],Program_Retention[program_code],'Report - GR'!$Z$1,Program_Retention[Year],'Report - GR'!$B148,Program_Retention[Semester],'Report - GR'!$C148,Program_Retention[At_years],$L$128)/$D148,"-") -> 0.1 | J148: =IFERROR(SUMIFS(Program_Retention[WCU_Grad],Program_Retention[program_code],'Report - GR'!$Z$1,Program_Retention[Year],'Report - GR'!$B148,Program_Retention[Semester],'Report - GR'!$C148,Program_Retention[At_years],$L$128)/$D148,"-") -> 0 | K148: =IFERROR(SUMIFS(Program_Retention[Not_Retained],Program_Retention[program_code],'Report - GR'!$Z$1,Program_Retention[Year],'Report - GR'!$B148,Program_Retention[Semester],'Report - GR'!$C148,Program_Retention[At_years],$L$128)/$D148,"-") -> 0.2 | L148: =SUM(G148:K148) -> 1 | O148: =IFERROR(SUMIFS(Program_Retention[Program_Retain],Program_Retention[program_code],'Report - GR'!$Z$1,Program_Retention[Year],'Report - GR'!$B148,Program_Retention[Semester],'Report - GR'!$C148,Program_Retention[At_years],$T$128)/$D148,"-") -> 0.2 | P148: =IFERROR(SUMIFS(Program_Retention[Program_Grad],Program_Retention[program_code],'Report - GR'!$Z$1,Program_Retention[Year],'Report - GR'!$B148,Program_Retention[Semester],'Report - GR'!$C148,Program_Retention[At_years],$T$128)/$D148,"-") -> 0.4 | Q148: =IFERROR(SUMIFS(Program_Retention[WCU_Retain],Program_Retention[program_code],'Report - GR'!$Z$1,Program_Retention[Year],'Report - GR'!$B148,Program_Retention[Semester],'Report - GR'!$C148,Program_Retention[At_years],$T$128)/$D148,"-") -> 0 | R148: =IFERROR(SUMIFS(Program_Retention[WCU_Grad],Program_Retention[program_code],'Report - GR'!$Z$1,Program_Retention[Year],'Report - GR'!$B148,Program_Retention[Semester],'Report - GR'!$C148,Program_Retention[At_years],$T$128)/$D148,"-") -> 0.1 | S148: =IFERROR(SUMIFS(Program_Retention[Not_Retained],Program_Retention[program_code],'Report - GR'!$Z$1,Program_Retention[Year],'Report - GR'!$B148,Program_Retention[Semester],'Report - GR'!$C148,Program_Retention[At_years],$T$128)/$D148,"-") -> 0.3 | T148: =SUM(O148:S148) -> 1 | W148: =IFERROR(SUMIFS(Program_Retention[Program_Retain],Program_Retention[program_code],'Report - GR'!$Z$1,Program_Retention[Year],'Report - GR'!$B148,Program_Retention[Semester],'Report - GR'!$C148,Program_Retention[At_years],$AB$128)/$D148,"-") -> 0.1 | X148: =IFERROR(SUMIFS(Program_Retention[Program_Grad],Program_Retention[program_code],'Report - GR'!$Z$1,Program_Retention[Year],'Report - GR'!$B148,Program_Retention[Semester],'Report - GR'!$C148,Program_Retention[At_years],$AB$128)/$D148,"-") -> 0.5 | Y148: =IFERROR(SUMIFS(Program_Retention[WCU_Retain],Program_Retention[program_code],'Report - GR'!$Z$1,Program_Retention[Year],'Report - GR'!$B148,Program_Retention[Semester],'Report - GR'!$C148,Program_Retention[At_years],$AB$128)/$D148,"-") -> 0.1 | Z148: =IFERROR(SUMIFS(Program_Retention[WCU_Grad],Program_Retention[program_code],'Report - GR'!$Z$1,Program_Retention[Year],'Report - GR'!$B148,Program_Retention[Semester],'Report - GR'!$C148,Program_Retention[At_years],$AB$128)/$D148,"-") -> 0.1 | AA148: =IFERROR(SUMIFS(Program_Retention[Not_Retained],Program_Retention[program_code],'Report - GR'!$Z$1,Program_Retention[Year],'Report - GR'!$B148,Program_Retention[Semester],'Report - GR'!$C148,Program_Retention[At_years],$AB$128)/$D148,"-") -> 0.2 | AB148: =SUM(W148:AA148) -> 1 | AE148: =IFERROR(SUMIFS(Program_Retention[Program_Retain],Program_Retention[program_code],'Report - GR'!$Z$1,Program_Retention[Year],'Report - GR'!$B148,Program_Retention[Semester],'Report - GR'!$C148,Program_Retention[At_years],$AJ$128)/$D148,"-") -> 0.1 | AF148: =IFERROR(SUMIFS(Program_Retention[Program_Grad],Program_Retention[program_code],'Report - GR'!$Z$1,Program_Retention[Year],'Report - GR'!$B148,Program_Retention[Semester],'Report - GR'!$C148,Program_Retention[At_years],$AJ$128)/$D148,"-") -> 0.5 | AG148: =IFERROR(SUMIFS(Program_Retention[WCU_Retain],Program_Retention[program_code],'Report - GR'!$Z$1,Program_Retention[Year],'Report - GR'!$B148,Program_Retention[Semester],'Report - GR'!$C148,Program_Retention[At_years],$AJ$128)/$D148,"-") -> 0 | AH148: =IFERROR(SUMIFS(Program_Retention[WCU_Grad],Program_Retention[program_code],'Report - GR'!$Z$1,Program_Retention[Year],'Report - GR'!$B148,Program_Retention[Semester],'Report - GR'!$C148,Program_Retention[At_years],$AJ$128)/$D148,"-") -> 0.1 | AI148: =IFERROR(SUMIFS(Program_Retention[Not_Retained],Program_Retention[program_code],'Report - GR'!$Z$1,Program_Retention[Year],'Report - GR'!$B148,Program_Retention[Semester],'Report - GR'!$C148,Program_Retention[At_years],$AJ$128)/$D148,"-") -> 0.3 | AJ148: =SUM(AE148:AI148) -> 1 | AM148: =IFERROR(SUMIFS(Program_Retention[Program_Retain],Program_Retention[program_code],'Report - GR'!$Z$1,Program_Retention[Year],'Report - GR'!$B148,Program_Retention[Semester],'Report - GR'!$C148,Program_Retention[At_years],$AR$128)/$D148,"-") -> 0 | AN148: =IFERROR(SUMIFS(Program_Retention[Program_Grad],Program_Retention[program_code],'Report - GR'!$Z$1,Program_Retention[Year],'Report - GR'!$B148,Program_Retention[Semester],'Report - GR'!$C148,Program_Retention[At_years],$AR$128)/$D148,"-") -> 0.6 | AO148: =IFERROR(SUMIFS(Program_Retention[WCU_Retain],Program_Retention[program_code],'Report - GR'!$Z$1,Program_Retention[Year],'Report - GR'!$B148,Program_Retention[Semester],'Report - GR'!$C148,Program_Retention[At_years],$AR$128)/$D148,"-") -> 0 | AP148: =IFERROR(SUMIFS(Program_Retention[WCU_Grad],Program_Retention[program_code],'Report - GR'!$Z$1,Program_Retention[Year],'Report - GR'!$B148,Program_Retention[Semester],'Report - GR'!$C148,Program_Retention[At_years],$AR$128)/$D148,"-") -> 0.1 | AQ148: =IFERROR(SUMIFS(Program_Retention[Not_Retained],Program_Retention[program_code],'Report - GR'!$Z$1,Program_Retention[Year],'Report - GR'!$B148,Program_Retention[Semester],'Report - GR'!$C148,Program_Retention[At_years],$AR$128)/$D148,"-") -> 0.3 | AR148: =SUM(AM148:AQ148) -> 1
B149: 2003 | C149: Spring | D149: =SUMIFS(Program_Retention[Cohort_Count],Program_Retention[program_code],'Report - GR'!$Z$1,Program_Retention[Year],'Report - GR'!$B149,Program_Retention[Semester],'Report - GR'!$C149,Program_Retention[At_years],$D$128) -> 6 | G149: =IFERROR(SUMIFS(Program_Retention[Program_Retain],Program_Retention[program_code],'Report - GR'!$Z$1,Program_Retention[Year],'Report - GR'!$B149,Program_Retention[Semester],'Report - GR'!$C149,Program_Retention[At_years],$L$128)/$D149,"-") -> 0.6666666667 | H149: =IFERROR(SUMIFS(Program_Retention[Program_Grad],Program_Retention[program_code],'Report - GR'!$Z$1,Program_Retention[Year],'Report - GR'!$B149,Program_Retention[Semester],'Report - GR'!$C149,Program_Retention[At_years],$L$128)/$D149,"-") -> 0 | I149: =IFERROR(SUMIFS(Program_Retention[WCU_Retain],Program_Retention[program_code],'Report - GR'!$Z$1,Program_Retention[Year],'Report - GR'!$B149,Program_Retention[Semester],'Report - GR'!$C149,Program_Retention[At_years],$L$128)/$D149,"-") -> 0 | J149: =IFERROR(SUMIFS(Program_Retention[WCU_Grad],Program_Retention[program_code],'Report - GR'!$Z$1,Program_Retention[Year],'Report - GR'!$B149,Program_Retention[Semester],'Report - GR'!$C149,Program_Retention[At_years],$L$128)/$D149,"-") -> 0 | K149: =IFERROR(SUMIFS(Program_Retention[Not_Retained],Program_Retention[program_code],'Report - GR'!$Z$1,Program_Retention[Year],'Report - GR'!$B149,Program_Retention[Semester],'Report - GR'!$C149,Program_Retention[At_years],$L$128)/$D149,"-") -> 0.3333333333 | L149: =SUM(G149:K149) -> 1 | O149: =IFERROR(SUMIFS(Program_Retention[Program_Retain],Program_Retention[program_code],'Report - GR'!$Z$1,Program_Retention[Year],'Report - GR'!$B149,Program_Retention[Semester],'Report - GR'!$C149,Program_Retention[At_years],$T$128)/$D149,"-") -> 0.3333333333 | P149: =IFERROR(SUMIFS(Program_Retention[Program_Grad],Program_Retention[program_code],'Report - GR'!$Z$1,Program_Retention[Year],'Report - GR'!$B149,Program_Retention[Semester],'Report - GR'!$C149,Program_Retention[At_years],$T$128)/$D149,"-") -> 0.3333333333 | Q149: =IFERROR(SUMIFS(Program_Retention[WCU_Retain],Program_Retention[program_code],'Report - GR'!$Z$1,Program_Retention[Year],'Report - GR'!$B149,Program_Retention[Semester],'Report - GR'!$C149,Program_Retention[At_years],$T$128)/$D149,"-") -> 0 | R149: =IFERROR(SUMIFS(Program_Retention[WCU_Grad],Program_Retention[program_code],'Report - GR'!$Z$1,Program_Retention[Year],'Report - GR'!$B149,Program_Retention[Semester],'Report - GR'!$C149,Program_Retention[At_years],$T$128)/$D149,"-") -> 0 | S149: =IFERROR(SUMIFS(Program_Retention[Not_Retained],Program_Retention[program_code],'Report - GR'!$Z$1,Program_Retention[Year],'Report - GR'!$B149,Program_Retention[Semester],'Report - GR'!$C149,Program_Retention[At_years],$T$128)/$D149,"-") -> 0.3333333333 | T149: =SUM(O149:S149) -> 1 | W149: =IFERROR(SUMIFS(Program_Retention[Program_Retain],Program_Retention[program_code],'Report - GR'!$Z$1,Program_Retention[Year],'Report - GR'!$B149,Program_Retention[Semester],'Report - GR'!$C149,Program_Retention[At_years],$AB$128)/$D149,"-") -> 0.1666666667 | X149: =IFERROR(SUMIFS(Program_Retention[Program_Grad],Program_Retention[program_code],'Report - GR'!$Z$1,Program_Retention[Year],'Report - GR'!$B149,Program_Retention[Semester],'Report - GR'!$C149,Program_Retention[At_years],$AB$128)/$D149,"-") -> 0.5 | Y149: =IFERROR(SUMIFS(Program_Retention[WCU_Retain],Program_Retention[program_code],'Report - GR'!$Z$1,Program_Retention[Year],'Report - GR'!$B149,Program_Retention[Semester],'Report - GR'!$C149,Program_Retention[At_years],$AB$128)/$D149,"-") -> 0 | Z149: =IFERROR(SUMIFS(Program_Retention[WCU_Grad],Program_Retention[program_code],'Report - GR'!$Z$1,Program_Retention[Year],'Report - GR'!$B149,Program_Retention[Semester],'Report - GR'!$C149,Program_Retention[At_years],$AB$128)/$D149,"-") -> 0 | AA149: =IFERROR(SUMIFS(Program_Retention[Not_Retained],Program_Retention[program_code],'Report - GR'!$Z$1,Program_Retention[Year],'Report - GR'!$B149,Program_Retention[Semester],'Report - GR'!$C149,Program_Retention[At_years],$AB$128)/$D149,"-") -> 0.3333333333 | AB149: =SUM(W149:AA149) -> 1 | AE149: =IFERROR(SUMIFS(Program_Retention[Program_Retain],Program_Retention[program_code],'Report - GR'!$Z$1,Program_Retention[Year],'Report - GR'!$B149,Program_Retention[Semester],'Report - GR'!$C149,Program_Retention[At_years],$AJ$128)/$D149,"-") -> 0 | AF149: =IFERROR(SUMIFS(Program_Retention[Program_Grad],Program_Retention[program_code],'Report - GR'!$Z$1,Program_Retention[Year],'Report - GR'!$B149,Program_Retention[Semester],'Report - GR'!$C149,Program_Retention[At_years],$AJ$128)/$D149,"-") -> 0.6666666667 | AG149: =IFERROR(SUMIFS(Program_Retention[WCU_Retain],Program_Retention[program_code],'Report - GR'!$Z$1,Program_Retention[Year],'Report - GR'!$B149,Program_Retention[Semester],'Report - GR'!$C149,Program_Retention[At_years],$AJ$128)/$D149,"-") -> 0 | AH149: =IFERROR(SUMIFS(Program_Retention[WCU_Grad],Program_Retention[program_code],'Report - GR'!$Z$1,Program_Retention[Year],'Report - GR'!$B149,Program_Retention[Semester],'Report - GR'!$C149,Program_Retention[At_years],$AJ$128)/$D149,"-") -> 0 | AI149: =IFERROR(SUMIFS(Program_Retention[Not_Retained],Program_Retention[program_code],'Report - GR'!$Z$1,Program_Retention[Year],'Report - GR'!$B149,Program_Retention[Semester],'Report - GR'!$C149,Program_Retention[At_years],$AJ$128)/$D149,"-") -> 0.3333333333 | AJ149: =SUM(AE149:AI149) -> 1 | AM149: =IFERROR(SUMIFS(Program_Retention[Program_Retain],Program_Retention[program_code],'Report - GR'!$Z$1,Program_Retention[Year],'Report - GR'!$B149,Program_Retention[Semester],'Report - GR'!$C149,Program_Retention[At_years],$AR$128)/$D149,"-") -> 0.1666666667 | AN149: =IFERROR(SUMIFS(Program_Retention[Program_Grad],Program_Retention[program_code],'Report - GR'!$Z$1,Program_Retention[Year],'Report - GR'!$B149,Program_Retention[Semester],'Report - GR'!$C149,Program_Retention[At_years],$AR$128)/$D149,"-") -> 0.6666666667 | AO149: =IFERROR(SUMIFS(Program_Retention[WCU_Retain],Program_Retention[program_code],'Report - GR'!$Z$1,Program_Retention[Year],'Report - GR'!$B149,Program_Retention[Semester],'Report - GR'!$C149,Program_Retention[At_years],$AR$128)/$D149,"-") -> 0 | AP149: =IFERROR(SUMIFS(Program_Retention[WCU_Grad],Program_Retention[program_code],'Report - GR'!$Z$1,Program_Retention[Year],'Report - GR'!$B149,Program_Retention[Semester],'Report - GR'!$C149,Program_Retention[At_years],$AR$128)/$D149,"-") -> 0 | AQ149: =IFERROR(SUMIFS(Program_Retention[Not_Retained],Program_Retention[program_code],'Report - GR'!$Z$1,Program_Retention[Year],'Report - GR'!$B149,Program_Retention[Semester],'Report - GR'!$C149,Program_Retention[At_years],$AR$128)/$D149,"-") -> 0.1666666667 | AR149: =SUM(AM149:AQ149) -> 1
B151: 2003 | C151: Fall | D151: =SUMIFS(Program_Retention[Cohort_Count],Program_Retention[program_code],'Report - GR'!$Z$1,Program_Retention[Year],'Report - GR'!$B151,Program_Retention[Semester],'Report - GR'!$C151,Program_Retention[At_years],$D$128) -> 11 | G151: =IFERROR(SUMIFS(Program_Retention[Program_Retain],Program_Retention[program_code],'Report - GR'!$Z$1,Program_Retention[Year],'Report - GR'!$B151,Program_Retention[Semester],'Report - GR'!$C151,Program_Retention[At_years],$L$128)/$D151,"-") -> 0.7272727273 | H151: =IFERROR(SUMIFS(Program_Retention[Program_Grad],Program_Retention[program_code],'Report - GR'!$Z$1,Program_Retention[Year],'Report - GR'!$B151,Program_Retention[Semester],'Report - GR'!$C151,Program_Retention[At_years],$L$128)/$D151,"-") -> 0.09090909091 | I151: =IFERROR(SUMIFS(Program_Retention[WCU_Retain],Program_Retention[program_code],'Report - GR'!$Z$1,Program_Retention[Year],'Report - GR'!$B151,Program_Retention[Semester],'Report - GR'!$C151,Program_Retention[At_years],$L$128)/$D151,"-") -> 0 | J151: =IFERROR(SUMIFS(Program_Retention[WCU_Grad],Program_Retention[program_code],'Report - GR'!$Z$1,Program_Retention[Year],'Report - GR'!$B151,Program_Retention[Semester],'Report - GR'!$C151,Program_Retention[At_years],$L$128)/$D151,"-") -> 0 | K151: =IFERROR(SUMIFS(Program_Retention[Not_Retained],Program_Retention[program_code],'Report - GR'!$Z$1,Program_Retention[Year],'Report - GR'!$B151,Program_Retention[Semester],'Report - GR'!$C151,Program_Retention[At_years],$L$128)/$D151,"-") -> 0.1818181818 | L151: =SUM(G151:K151) -> 1 | O151: =IFERROR(SUMIFS(Program_Retention[Program_Retain],Program_Retention[program_code],'Report - GR'!$Z$1,Program_Retention[Year],'Report - GR'!$B151,Program_Retention[Semester],'Report - GR'!$C151,Program_Retention[At_years],$T$128)/$D151,"-") -> 0.3636363636 | P151: =IFERROR(SUMIFS(Program_Retention[Program_Grad],Program_Retention[program_code],'Report - GR'!$Z$1,Program_Retention[Year],'Report - GR'!$B151,Program_Retention[Semester],'Report - GR'!$C151,Program_Retention[At_years],$T$128)/$D151,"-") -> 0.4545454545 | Q151: =IFERROR(SUMIFS(Program_Retention[WCU_Retain],Program_Retention[program_code],'Report - GR'!$Z$1,Program_Retention[Year],'Report - GR'!$B151,Program_Retention[Semester],'Report - GR'!$C151,Program_Retention[At_years],$T$128)/$D151,"-") -> 0 | R151: =IFERROR(SUMIFS(Program_Retention[WCU_Grad],Program_Retention[program_code],'Report - GR'!$Z$1,Program_Retention[Year],'Report - GR'!$B151,Program_Retention[Semester],'Report - GR'!$C151,Program_Retention[At_years],$T$128)/$D151,"-") -> 0 | S151: =IFERROR(SUMIFS(Program_Retention[Not_Retained],Program_Retention[program_code],'Report - GR'!$Z$1,Program_Retention[Year],'Report - GR'!$B151,Program_Retention[Semester],'Report - GR'!$C151,Program_Retention[At_years],$T$128)/$D151,"-") -> 0.1818181818 | T151: =SUM(O151:S151) -> 1 | W151: =IFERROR(SUMIFS(Program_Retention[Program_Retain],Program_Retention[program_code],'Report - GR'!$Z$1,Program_Retention[Year],'Report - GR'!$B151,Program_Retention[Semester],'Report - GR'!$C151,Program_Retention[At_years],$AB$128)/$D151,"-") -> 0.09090909091 | X151: =IFERROR(SUMIFS(Program_Retention[Program_Grad],Program_Retention[program_code],'Report - GR'!$Z$1,Program_Retention[Year],'Report - GR'!$B151,Program_Retention[Semester],'Report - GR'!$C151,Program_Retention[At_years],$AB$128)/$D151,"-") -> 0.7272727273 | Y151: =IFERROR(SUMIFS(Program_Retention[WCU_Retain],Program_Retention[program_code],'Report - GR'!$Z$1,Program_Retention[Year],'Report - GR'!$B151,Program_Retention[Semester],'Report - GR'!$C151,Program_Retention[At_years],$AB$128)/$D151,"-") -> 0 | Z151: =IFERROR(SUMIFS(Program_Retention[WCU_Grad],Program_Retention[program_code],'Report - GR'!$Z$1,Program_Retention[Year],'Report - GR'!$B151,Program_Retention[Semester],'Report - GR'!$C151,Program_Retention[At_years],$AB$128)/$D151,"-") -> 0 | AA151: =IFERROR(SUMIFS(Program_Retention[Not_Retained],Program_Retention[program_code],'Report - GR'!$Z$1,Program_Retention[Year],'Report - GR'!$B151,Program_Retention[Semester],'Report - GR'!$C151,Program_Retention[At_years],$AB$128)/$D151,"-") -> 0.1818181818 | AB151: =SUM(W151:AA151) -> 1 | AE151: =IFERROR(SUMIFS(Program_Retention[Program_Retain],Program_Retention[program_code],'Report - GR'!$Z$1,Program_Retention[Year],'Report - GR'!$B151,Program_Retention[Semester],'Report - GR'!$C151,Program_Retention[At_years],$AJ$128)/$D151,"-") -> 0 | AF151: =IFERROR(SUMIFS(Program_Retention[Program_Grad],Program_Retention[program_code],'Report - GR'!$Z$1,Program_Retention[Year],'Report - GR'!$B151,Program_Retention[Semester],'Report - GR'!$C151,Program_Retention[At_years],$AJ$128)/$D151,"-") -> 0.7272727273 | AG151: =IFERROR(SUMIFS(Program_Retention[WCU_Retain],Program_Retention[program_code],'Report - GR'!$Z$1,Program_Retention[Year],'Report - GR'!$B151,Program_Retention[Semester],'Report - GR'!$C151,Program_Retention[At_years],$AJ$128)/$D151,"-") -> 0.09090909091 | AH151: =IFERROR(SUMIFS(Program_Retention[WCU_Grad],Program_Retention[program_code],'Report - GR'!$Z$1,Program_Retention[Year],'Report - GR'!$B151,Program_Retention[Semester],'Report - GR'!$C151,Program_Retention[At_years],$AJ$128)/$D151,"-") -> 0 | AI151: =IFERROR(SUMIFS(Program_Retention[Not_Retained],Program_Retention[program_code],'Report - GR'!$Z$1,Program_Retention[Year],'Report - GR'!$B151,Program_Retention[Semester],'Report - GR'!$C151,Program_Retention[At_years],$AJ$128)/$D151,"-") -> 0.1818181818 | AJ151: =SUM(AE151:AI151) -> 1 | AM151: =IFERROR(SUMIFS(Program_Retention[Program_Retain],Program_Retention[program_code],'Report - GR'!$Z$1,Program_Retention[Year],'Report - GR'!$B151,Program_Retention[Semester],'Report - GR'!$C151,Program_Retention[At_years],$AR$128)/$D151,"-") -> 0 | AN151: =IFERROR(SUMIFS(Program_Retention[Program_Grad],Program_Retention[program_code],'Report - GR'!$Z$1,Program_Retention[Year],'Report - GR'!$B151,Program_Retention[Semester],'Report - GR'!$C151,Program_Retention[At_years],$AR$128)/$D151,"-") -> 0.7272727273 | AO151: =IFERROR(SUMIFS(Program_Retention[WCU_Retain],Program_Retention[program_code],'Report - GR'!$Z$1,Program_Retention[Year],'Report - GR'!$B151,Program_Retention[Semester],'Report - GR'!$C151,Program_Retention[At_years],$AR$128)/$D151,"-") -> 0 | AP151: =IFERROR(SUMIFS(Program_Retention[WCU_Grad],Program_Retention[program_code],'Report - GR'!$Z$1,Program_Retention[Year],'Report - GR'!$B151,Program_Retention[Semester],'Report - GR'!$C151,Program_Retention[At_years],$AR$128)/$D151,"-") -> 0.09090909091 | AQ151: =IFERROR(SUMIFS(Program_Retention[Not_Retained],Program_Retention[program_code],'Report - GR'!$Z$1,Program_Retention[Year],'Report - GR'!$B151,Program_Retention[Semester],'Report - GR'!$C151,Program_Retention[At_years],$AR$128)/$D151,"-") -> 0.1818181818 | AR151: =SUM(AM151:AQ151) -> 1
B152: 2004 | C152: Spring | D152: =SUMIFS(Program_Retention[Cohort_Count],Program_Retention[program_code],'Report - GR'!$Z$1,Program_Retention[Year],'Report - GR'!$B152,Program_Retention[Semester],'Report - GR'!$C152,Program_Retention[At_years],$D$128) -> 4 | G152: =IFERROR(SUMIFS(Program_Retention[Program_Retain],Program_Retention[program_code],'Report - GR'!$Z$1,Program_Retention[Year],'Report - GR'!$B152,Program_Retention[Semester],'Report - GR'!$C152,Program_Retention[At_years],$L$128)/$D152,"-") -> 0.75 | H152: =IFERROR(SUMIFS(Program_Retention[Program_Grad],Program_Retention[program_code],'Report - GR'!$Z$1,Program_Retention[Year],'Report - GR'!$B152,Program_Retention[Semester],'Report - GR'!$C152,Program_Retention[At_years],$L$128)/$D152,"-") -> 0 | I152: =IFERROR(SUMIFS(Program_Retention[WCU_Retain],Program_Retention[program_code],'Report - GR'!$Z$1,Program_Retention[Year],'Report - GR'!$B152,Program_Retention[Semester],'Report - GR'!$C152,Program_Retention[At_years],$L$128)/$D152,"-") -> 0 | J152: =IFERROR(SUMIFS(Program_Retention[WCU_Grad],Program_Retention[program_code],'Report - GR'!$Z$1,Program_Retention[Year],'Report - GR'!$B152,Program_Retention[Semester],'Report - GR'!$C152,Program_Retention[At_years],$L$128)/$D152,"-") -> 0 | K152: =IFERROR(SUMIFS(Program_Retention[Not_Retained],Program_Retention[program_code],'Report - GR'!$Z$1,Program_Retention[Year],'Report - GR'!$B152,Program_Retention[Semester],'Report - GR'!$C152,Program_Retention[At_years],$L$128)/$D152,"-") -> 0.25 | L152: =SUM(G152:K152) -> 1 | O152: =IFERROR(SUMIFS(Program_Retention[Program_Retain],Program_Retention[program_code],'Report - GR'!$Z$1,Program_Retention[Year],'Report - GR'!$B152,Program_Retention[Semester],'Report - GR'!$C152,Program_Retention[At_years],$T$128)/$D152,"-") -> 0.75 | P152: =IFERROR(SUMIFS(Program_Retention[Program_Grad],Program_Retention[program_code],'Report - GR'!$Z$1,Program_Retention[Year],'Report - GR'!$B152,Program_Retention[Semester],'Report - GR'!$C152,Program_Retention[At_years],$T$128)/$D152,"-") -> 0 | Q152: =IFERROR(SUMIFS(Program_Retention[WCU_Retain],Program_Retention[program_code],'Report - GR'!$Z$1,Program_Retention[Year],'Report - GR'!$B152,Program_Retention[Semester],'Report - GR'!$C152,Program_Retention[At_years],$T$128)/$D152,"-") -> 0 | R152: =IFERROR(SUMIFS(Program_Retention[WCU_Grad],Program_Retention[program_code],'Report - GR'!$Z$1,Program_Retention[Year],'Report - GR'!$B152,Program_Retention[Semester],'Report - GR'!$C152,Program_Retention[At_years],$T$128)/$D152,"-") -> 0 | S152: =IFERROR(SUMIFS(Program_Retention[Not_Retained],Program_Retention[program_code],'Report - GR'!$Z$1,Program_Retention[Year],'Report - GR'!$B152,Program_Retention[Semester],'Report - GR'!$C152,Program_Retention[At_years],$T$128)/$D152,"-") -> 0.25 | T152: =SUM(O152:S152) -> 1 | W152: =IFERROR(SUMIFS(Program_Retention[Program_Retain],Program_Retention[program_code],'Report - GR'!$Z$1,Program_Retention[Year],'Report - GR'!$B152,Program_Retention[Semester],'Report - GR'!$C152,Program_Retention[At_years],$AB$128)/$D152,"-") -> 0.25 | X152: =IFERROR(SUMIFS(Program_Retention[Program_Grad],Program_Retention[program_code],'Report - GR'!$Z$1,Program_Retention[Year],'Report - GR'!$B152,Program_Retention[Semester],'Report - GR'!$C152,Program_Retention[At_years],$AB$128)/$D152,"-") -> 0.25 | Y152: =IFERROR(SUMIFS(Program_Retention[WCU_Retain],Program_Retention[program_code],'Report - GR'!$Z$1,Program_Retention[Year],'Report - GR'!$B152,Program_Retention[Semester],'Report - GR'!$C152,Program_Retention[At_years],$AB$128)/$D152,"-") -> 0 | Z152: =IFERROR(SUMIFS(Program_Retention[WCU_Grad],Program_Retention[program_code],'Report - GR'!$Z$1,Program_Retention[Year],'Report - GR'!$B152,Program_Retention[Semester],'Report - GR'!$C152,Program_Retention[At_years],$AB$128)/$D152,"-") -> 0 | AA152: =IFERROR(SUMIFS(Program_Retention[Not_Retained],Program_Retention[program_code],'Report - GR'!$Z$1,Program_Retention[Year],'Report - GR'!$B152,Program_Retention[Semester],'Report - GR'!$C152,Program_Retention[At_years],$AB$128)/$D152,"-") -> 0.5 | AB152: =SUM(W152:AA152) -> 1 | AE152: =IFERROR(SUMIFS(Program_Retention[Program_Retain],Program_Retention[program_code],'Report - GR'!$Z$1,Program_Retention[Year],'Report - GR'!$B152,Program_Retention[Semester],'Report - GR'!$C152,Program_Retention[At_years],$AJ$128)/$D152,"-") -> 0.25 | AF152: =IFERROR(SUMIFS(Program_Retention[Program_Grad],Program_Retention[program_code],'Report - GR'!$Z$1,Program_Retention[Year],'Report - GR'!$B152,Program_Retention[Semester],'Report - GR'!$C152,Program_Retention[At_years],$AJ$128)/$D152,"-") -> 0.25 | AG152: =IFERROR(SUMIFS(Program_Retention[WCU_Retain],Program_Retention[program_code],'Report - GR'!$Z$1,Program_Retention[Year],'Report - GR'!$B152,Program_Retention[Semester],'Report - GR'!$C152,Program_Retention[At_years],$AJ$128)/$D152,"-") -> 0 | AH152: =IFERROR(SUMIFS(Program_Retention[WCU_Grad],Program_Retention[program_code],'Report - GR'!$Z$1,Program_Retention[Year],'Report - GR'!$B152,Program_Retention[Semester],'Report - GR'!$C152,Program_Retention[At_years],$AJ$128)/$D152,"-") -> 0 | AI152: =IFERROR(SUMIFS(Program_Retention[Not_Retained],Program_Retention[program_code],'Report - GR'!$Z$1,Program_Retention[Year],'Report - GR'!$B152,Program_Retention[Semester],'Report - GR'!$C152,Program_Retention[At_years],$AJ$128)/$D152,"-") -> 0.5 | AJ152: =SUM(AE152:AI152) -> 1 | AM152: =IFERROR(SUMIFS(Program_Retention[Program_Retain],Program_Retention[program_code],'Report - GR'!$Z$1,Program_Retention[Year],'Report - GR'!$B152,Program_Retention[Semester],'Report - GR'!$C152,Program_Retention[At_years],$AR$128)/$D152,"-") -> 0 | AN152: =IFERROR(SUMIFS(Program_Retention[Program_Grad],Program_Retention[program_code],'Report - GR'!$Z$1,Program_Retention[Year],'Report - GR'!$B152,Program_Retention[Semester],'Report - GR'!$C152,Program_Retention[At_years],$AR$128)/$D152,"-") -> 0.25 | AO152: =IFERROR(SUMIFS(Program_Retention[WCU_Retain],Program_Retention[program_code],'Report - GR'!$Z$1,Program_Retention[Year],'Report - GR'!$B152,Program_Retention[Semester],'Report - GR'!$C152,Program_Retention[At_years],$AR$128)/$D152,"-") -> 0 | AP152: =IFERROR(SUMIFS(Program_Retention[WCU_Grad],Program_Retention[program_code],'Report - GR'!$Z$1,Program_Retention[Year],'Report - GR'!$B152,Program_Retention[Semester],'Report - GR'!$C152,Program_Retention[At_years],$AR$128)/$D152,"-") -> 0 | AQ152: =IFERROR(SUMIFS(Program_Retention[Not_Retained],Program_Retention[program_code],'Report - GR'!$Z$1,Program_Retention[Year],'Report - GR'!$B152,Program_Retention[Semester],'Report - GR'!$C152,Program_Retention[At_years],$AR$128)/$D152,"-") -> 0.75 | AR152: =SUM(AM152:AQ152) -> 1
B154: 2004 | C154: Fall | D154: =SUMIFS(Program_Retention[Cohort_Count],Program_Retention[program_code],'Report - GR'!$Z$1,Program_Retention[Year],'Report - GR'!$B154,Program_Retention[Semester],'Report - GR'!$C154,Program_Retention[At_years],$D$128) -> 12 | G154: =IFERROR(SUMIFS(Program_Retention[Program_Retain],Program_Retention[program_code],'Report - GR'!$Z$1,Program_Retention[Year],'Report - GR'!$B154,Program_Retention[Semester],'Report - GR'!$C154,Program_Retention[At_years],$L$128)/$D154,"-") -> 0.6666666667 | H154: =IFERROR(SUMIFS(Program_Retention[Program_Grad],Program_Retention[program_code],'Report - GR'!$Z$1,Program_Retention[Year],'Report - GR'!$B154,Program_Retention[Semester],'Report - GR'!$C154,Program_Retention[At_years],$L$128)/$D154,"-") -> 0 | I154: =IFERROR(SUMIFS(Program_Retention[WCU_Retain],Program_Retention[program_code],'Report - GR'!$Z$1,Program_Retention[Year],'Report - GR'!$B154,Program_Retention[Semester],'Report - GR'!$C154,Program_Retention[At_years],$L$128)/$D154,"-") -> 0.1666666667 | J154: =IFERROR(SUMIFS(Program_Retention[WCU_Grad],Program_Retention[program_code],'Report - GR'!$Z$1,Program_Retention[Year],'Report - GR'!$B154,Program_Retention[Semester],'Report - GR'!$C154,Program_Retention[At_years],$L$128)/$D154,"-") -> 0 | K154: =IFERROR(SUMIFS(Program_Retention[Not_Retained],Program_Retention[program_code],'Report - GR'!$Z$1,Program_Retention[Year],'Report - GR'!$B154,Program_Retention[Semester],'Report - GR'!$C154,Program_Retention[At_years],$L$128)/$D154,"-") -> 0.1666666667 | L154: =SUM(G154:K154) -> 1 | O154: =IFERROR(SUMIFS(Program_Retention[Program_Retain],Program_Retention[program_code],'Report - GR'!$Z$1,Program_Retention[Year],'Report - GR'!$B154,Program_Retention[Semester],'Report - GR'!$C154,Program_Retention[At_years],$T$128)/$D154,"-") -> 0.25 | P154: =IFERROR(SUMIFS(Program_Retention[Program_Grad],Program_Retention[program_code],'Report - GR'!$Z$1,Program_Retention[Year],'Report - GR'!$B154,Program_Retention[Semester],'Report - GR'!$C154,Program_Retention[At_years],$T$128)/$D154,"-") -> 0.4166666667 | Q154: =IFERROR(SUMIFS(Program_Retention[WCU_Retain],Program_Retention[program_code],'Report - GR'!$Z$1,Program_Retention[Year],'Report - GR'!$B154,Program_Retention[Semester],'Report - GR'!$C154,Program_Retention[At_years],$T$128)/$D154,"-") -> 0 | R154: =IFERROR(SUMIFS(Program_Retention[WCU_Grad],Program_Retention[program_code],'Report - GR'!$Z$1,Program_Retention[Year],'Report - GR'!$B154,Program_Retention[Semester],'Report - GR'!$C154,Program_Retention[At_years],$T$128)/$D154,"-") -> 0.08333333333 | S154: =IFERROR(SUMIFS(Program_Retention[Not_Retained],Program_Retention[program_code],'Report - GR'!$Z$1,Program_Retention[Year],'Report - GR'!$B154,Program_Retention[Semester],'Report - GR'!$C154,Program_Retention[At_years],$T$128)/$D154,"-") -> 0.25 | T154: =SUM(O154:S154) -> 1 | W154: =IFERROR(SUMIFS(Program_Retention[Program_Retain],Program_Retention[program_code],'Report - GR'!$Z$1,Program_Retention[Year],'Report - GR'!$B154,Program_Retention[Semester],'Report - GR'!$C154,Program_Retention[At_years],$AB$128)/$D154,"-") -> 0 | X154: =IFERROR(SUMIFS(Program_Retention[Program_Grad],Program_Retention[program_code],'Report - GR'!$Z$1,Program_Retention[Year],'Report - GR'!$B154,Program_Retention[Semester],'Report - GR'!$C154,Program_Retention[At_years],$AB$128)/$D154,"-") -> 0.5 | Y154: =IFERROR(SUMIFS(Program_Retention[WCU_Retain],Program_Retention[program_code],'Report - GR'!$Z$1,Program_Retention[Year],'Report - GR'!$B154,Program_Retention[Semester],'Report - GR'!$C154,Program_Retention[At_years],$AB$128)/$D154,"-") -> 0 | Z154: =IFERROR(SUMIFS(Program_Retention[WCU_Grad],Program_Retention[program_code],'Report - GR'!$Z$1,Program_Retention[Year],'Report - GR'!$B154,Program_Retention[Semester],'Report - GR'!$C154,Program_Retention[At_years],$AB$128)/$D154,"-") -> 0.08333333333 | AA154: =IFERROR(SUMIFS(Program_Retention[Not_Retained],Program_Retention[program_code],'Report - GR'!$Z$1,Program_Retention[Year],'Report - GR'!$B154,Program_Retention[Semester],'Report - GR'!$C154,Program_Retention[At_years],$AB$128)/$D154,"-") -> 0.4166666667 | AB154: =SUM(W154:AA154) -> 1 | AE154: =IFERROR(SUMIFS(Program_Retention[Program_Retain],Program_Retention[program_code],'Report - GR'!$Z$1,Program_Retention[Year],'Report - GR'!$B154,Program_Retention[Semester],'Report - GR'!$C154,Program_Retention[At_years],$AJ$128)/$D154,"-") -> 0 | AF154: =IFERROR(SUMIFS(Program_Retention[Program_Grad],Program_Retention[program_code],'Report - GR'!$Z$1,Program_Retention[Year],'Report - GR'!$B154,Program_Retention[Semester],'Report - GR'!$C154,Program_Retention[At_years],$AJ$128)/$D154,"-") -> 0.5 | AG154: =IFERROR(SUMIFS(Program_Retention[WCU_Retain],Program_Retention[program_code],'Report - GR'!$Z$1,Program_Retention[Year],'Report - GR'!$B154,Program_Retention[Semester],'Report - GR'!$C154,Program_Retention[At_years],$AJ$128)/$D154,"-") -> 0 | AH154: =IFERROR(SUMIFS(Program_Retention[WCU_Grad],Program_Retention[program_code],'Report - GR'!$Z$1,Program_Retention[Year],'Report - GR'!$B154,Program_Retention[Semester],'Report - GR'!$C154,Program_Retention[At_years],$AJ$128)/$D154,"-") -> 0.08333333333 | AI154: =IFERROR(SUMIFS(Program_Retention[Not_Retained],Program_Retention[program_code],'Report - GR'!$Z$1,Program_Retention[Year],'Report - GR'!$B154,Program_Retention[Semester],'Report - GR'!$C154,Program_Retention[At_years],$AJ$128)/$D154,"-") -> 0.4166666667 | AJ154: =SUM(AE154:AI154) -> 1 | AM154: =IFERROR(SUMIFS(Program_Retention[Program_Retain],Program_Retention[program_code],'Report - GR'!$Z$1,Program_Retention[Year],'Report - GR'!$B154,Program_Retention[Semester],'Report - GR'!$C154,Program_Retention[At_years],$AR$128)/$D154,"-") -> 0 | AN154: =IFERROR(SUMIFS(Program_Retention[Program_Grad],Program_Retention[program_code],'Report - GR'!$Z$1,Program_Retention[Year],'Report - GR'!$B154,Program_Retention[Semester],'Report - GR'!$C154,Program_Retention[At_years],$AR$128)/$D154,"-") -> 0.5 | AO154: =IFERROR(SUMIFS(Program_Retention[WCU_Retain],Program_Retention[program_code],'Report - GR'!$Z$1,Program_Retention[Year],'Report - GR'!$B154,Program_Retention[Semester],'Report - GR'!$C154,Program_Retention[At_years],$AR$128)/$D154,"-") -> 0 | AP154: =IFERROR(SUMIFS(Program_Retention[WCU_Grad],Program_Retention[program_code],'Report - GR'!$Z$1,Program_Retention[Year],'Report - GR'!$B154,Program_Retention[Semester],'Report - GR'!$C154,Program_Retention[At_years],$AR$128)/$D154,"-") -> 0.08333333333 | AQ154: =IFERROR(SUMIFS(Program_Retention[Not_Retained],Program_Retention[program_code],'Report - GR'!$Z$1,Program_Retention[Year],'Report - GR'!$B154,Program_Retention[Semester],'Report - GR'!$C154,Program_Retention[At_years],$AR$128)/$D154,"-") -> 0.4166666667 | AR154: =SUM(AM154:AQ154) -> 1
B155: 2005 | C155: Spring | D155: =SUMIFS(Program_Retention[Cohort_Count],Program_Retention[program_code],'Report - GR'!$Z$1,Program_Retention[Year],'Report - GR'!$B155,Program_Retention[Semester],'Report - GR'!$C155,Program_Retention[At_years],$D$128) -> 3 | G155: =IFERROR(SUMIFS(Program_Retention[Program_Retain],Program_Retention[program_code],'Report - GR'!$Z$1,Program_Retention[Year],'Report - GR'!$B155,Program_Retention[Semester],'Report - GR'!$C155,Program_Retention[At_years],$L$128)/$D155,"-") -> 0.6666666667 | H155: =IFERROR(SUMIFS(Program_Retention[Program_Grad],Program_Retention[program_code],'Report - GR'!$Z$1,Program_Retention[Year],'Report - GR'!$B155,Program_Retention[Semester],'Report - GR'!$C155,Program_Retention[At_years],$L$128)/$D155,"-") -> 0 | I155: =IFERROR(SUMIFS(Program_Retention[WCU_Retain],Program_Retention[program_code],'Report - GR'!$Z$1,Program_Retention[Year],'Report - GR'!$B155,Program_Retention[Semester],'Report - GR'!$C155,Program_Retention[At_years],$L$128)/$D155,"-") -> 0 | J155: =IFERROR(SUMIFS(Program_Retention[WCU_Grad],Program_Retention[program_code],'Report - GR'!$Z$1,Program_Retention[Year],'Report - GR'!$B155,Program_Retention[Semester],'Report - GR'!$C155,Program_Retention[At_years],$L$128)/$D155,"-") -> 0 | K155: =IFERROR(SUMIFS(Program_Retention[Not_Retained],Program_Retention[program_code],'Report - GR'!$Z$1,Program_Retention[Year],'Report - GR'!$B155,Program_Retention[Semester],'Report - GR'!$C155,Program_Retention[At_years],$L$128)/$D155,"-") -> 0.3333333333 | L155: =SUM(G155:K155) -> 1 | O155: =IFERROR(SUMIFS(Program_Retention[Program_Retain],Program_Retention[program_code],'Report - GR'!$Z$1,Program_Retention[Year],'Report - GR'!$B155,Program_Retention[Semester],'Report - GR'!$C155,Program_Retention[At_years],$T$128)/$D155,"-") -> 0.6666666667 | P155: =IFERROR(SUMIFS(Program_Retention[Program_Grad],Program_Retention[program_code],'Report - GR'!$Z$1,Program_Retention[Year],'Report - GR'!$B155,Program_Retention[Semester],'Report - GR'!$C155,Program_Retention[At_years],$T$128)/$D155,"-") -> 0 | Q155: =IFERROR(SUMIFS(Program_Retention[WCU_Retain],Program_Retention[program_code],'Report - GR'!$Z$1,Program_Retention[Year],'Report - GR'!$B155,Program_Retention[Semester],'Report - GR'!$C155,Program_Retention[At_years],$T$128)/$D155,"-") -> 0 | R155: =IFERROR(SUMIFS(Program_Retention[WCU_Grad],Program_Retention[program_code],'Report - GR'!$Z$1,Program_Retention[Year],'Report - GR'!$B155,Program_Retention[Semester],'Report - GR'!$C155,Program_Retention[At_years],$T$128)/$D155,"-") -> 0 | S155: =IFERROR(SUMIFS(Program_Retention[Not_Retained],Program_Retention[program_code],'Report - GR'!$Z$1,Program_Retention[Year],'Report - GR'!$B155,Program_Retention[Semester],'Report - GR'!$C155,Program_Retention[At_years],$T$128)/$D155,"-") -> 0.3333333333 | T155: =SUM(O155:S155) -> 1 | W155: =IFERROR(SUMIFS(Program_Retention[Program_Retain],Program_Retention[program_code],'Report - GR'!$Z$1,Program_Retention[Year],'Report - GR'!$B155,Program_Retention[Semester],'Report - GR'!$C155,Program_Retention[At_years],$AB$128)/$D155,"-") -> 0.3333333333 | X155: =IFERROR(SUMIFS(Program_Retention[Program_Grad],Program_Retention[program_code],'Report - GR'!$Z$1,Program_Retention[Year],'Report - GR'!$B155,Program_Retention[Semester],'Report - GR'!$C155,Program_Retention[At_years],$AB$128)/$D155,"-") -> 0.3333333333 | Y155: =IFERROR(SUMIFS(Program_Retention[WCU_Retain],Program_Retention[program_code],'Report - GR'!$Z$1,Program_Retention[Year],'Report - GR'!$B155,Program_Retention[Semester],'Report - GR'!$C155,Program_Retention[At_years],$AB$128)/$D155,"-") -> 0 | Z155: =IFERROR(SUMIFS(Program_Retention[WCU_Grad],Program_Retention[program_code],'Report - GR'!$Z$1,Program_Retention[Year],'Report - GR'!$B155,Program_Retention[Semester],'Report - GR'!$C155,Program_Retention[At_years],$AB$128)/$D155,"-") -> 0 | AA155: =IFERROR(SUMIFS(Program_Retention[Not_Retained],Program_Retention[program_code],'Report - GR'!$Z$1,Program_Retention[Year],'Report - GR'!$B155,Program_Retention[Semester],'Report - GR'!$C155,Program_Retention[At_years],$AB$128)/$D155,"-") -> 0.3333333333 | AB155: =SUM(W155:AA155) -> 1 | AE155: =IFERROR(SUMIFS(Program_Retention[Program_Retain],Program_Retention[program_code],'Report - GR'!$Z$1,Program_Retention[Year],'Report - GR'!$B155,Program_Retention[Semester],'Report - GR'!$C155,Program_Retention[At_years],$AJ$128)/$D155,"-") -> 0 | AF155: =IFERROR(SUMIFS(Program_Retention[Program_Grad],Program_Retention[program_code],'Report - GR'!$Z$1,Program_Retention[Year],'Report - GR'!$B155,Program_Retention[Semester],'Report - GR'!$C155,Program_Retention[At_years],$AJ$128)/$D155,"-") -> 0.6666666667 | AG155: =IFERROR(SUMIFS(Program_Retention[WCU_Retain],Program_Retention[program_code],'Report - GR'!$Z$1,Program_Retention[Year],'Report - GR'!$B155,Program_Retention[Semester],'Report - GR'!$C155,Program_Retention[At_years],$AJ$128)/$D155,"-") -> 0 | AH155: =IFERROR(SUMIFS(Program_Retention[WCU_Grad],Program_Retention[program_code],'Report - GR'!$Z$1,Program_Retention[Year],'Report - GR'!$B155,Program_Retention[Semester],'Report - GR'!$C155,Program_Retention[At_years],$AJ$128)/$D155,"-") -> 0 | AI155: =IFERROR(SUMIFS(Program_Retention[Not_Retained],Program_Retention[program_code],'Report - GR'!$Z$1,Program_Retention[Year],'Report - GR'!$B155,Program_Retention[Semester],'Report - GR'!$C155,Program_Retention[At_years],$AJ$128)/$D155,"-") -> 0.3333333333 | AJ155: =SUM(AE155:AI155) -> 1 | AM155: =IFERROR(SUMIFS(Program_Retention[Program_Retain],Program_Retention[program_code],'Report - GR'!$Z$1,Program_Retention[Year],'Report - GR'!$B155,Program_Retention[Semester],'Report - GR'!$C155,Program_Retention[At_years],$AR$128)/$D155,"-") -> 0 | AN155: =IFERROR(SUMIFS(Program_Retention[Program_Grad],Program_Retention[program_code],'Report - GR'!$Z$1,Program_Retention[Year],'Report - GR'!$B155,Program_Retention[Semester],'Report - GR'!$C155,Program_Retention[At_years],$AR$128)/$D155,"-") -> 0.6666666667 | AO155: =IFERROR(SUMIFS(Program_Retention[WCU_Retain],Program_Retention[program_code],'Report - GR'!$Z$1,Program_Retention[Year],'Report - GR'!$B155,Program_Retention[Semester],'Report - GR'!$C155,Program_Retention[At_years],$AR$128)/$D155,"-") -> 0 | AP155: =IFERROR(SUMIFS(Program_Retention[WCU_Grad],Program_Retention[program_code],'Report - GR'!$Z$1,Program_Retention[Year],'Report - GR'!$B155,Program_Retention[Semester],'Report - GR'!$C155,Program_Retention[At_years],$AR$128)/$D155,"-") -> 0 | AQ155: =IFERROR(SUMIFS(Program_Retention[Not_Retained],Program_Retention[program_code],'Report - GR'!$Z$1,Program_Retention[Year],'Report - GR'!$B155,Program_Retention[Semester],'Report - GR'!$C155,Program_Retention[At_years],$AR$128)/$D155,"-") -> 0.3333333333 | AR155: =SUM(AM155:AQ155) -> 1
B157: 2005 | C157: Fall | D157: =SUMIFS(Program_Retention[Cohort_Count],Program_Retention[program_code],'Report - GR'!$Z$1,Program_Retention[Year],'Report - GR'!$B157,Program_Retention[Semester],'Report - GR'!$C157,Program_Retention[At_years],$D$128) -> 17 | G157: =IFERROR(SUMIFS(Program_Retention[Program_Retain],Program_Retention[program_code],'Report - GR'!$Z$1,Program_Retention[Year],'Report - GR'!$B157,Program_Retention[Semester],'Report - GR'!$C157,Program_Retention[At_years],$L$128)/$D157,"-") -> 0.7058823529 | H157: =IFERROR(SUMIFS(Program_Retention[Program_Grad],Program_Retention[program_code],'Report - GR'!$Z$1,Program_Retention[Year],'Report - GR'!$B157,Program_Retention[Semester],'Report - GR'!$C157,Program_Retention[At_years],$L$128)/$D157,"-") -> 0.05882352941 | I157: =IFERROR(SUMIFS(Program_Retention[WCU_Retain],Program_Retention[program_code],'Report - GR'!$Z$1,Program_Retention[Year],'Report - GR'!$B157,Program_Retention[Semester],'Report - GR'!$C157,Program_Retention[At_years],$L$128)/$D157,"-") -> 0 | J157: =IFERROR(SUMIFS(Program_Retention[WCU_Grad],Program_Retention[program_code],'Report - GR'!$Z$1,Program_Retention[Year],'Report - GR'!$B157,Program_Retention[Semester],'Report - GR'!$C157,Program_Retention[At_years],$L$128)/$D157,"-") -> 0 | K157: =IFERROR(SUMIFS(Program_Retention[Not_Retained],Program_Retention[program_code],'Report - GR'!$Z$1,Program_Retention[Year],'Report - GR'!$B157,Program_Retention[Semester],'Report - GR'!$C157,Program_Retention[At_years],$L$128)/$D157,"-") -> 0.2352941176 | L157: =SUM(G157:K157) -> 1 | O157: =IFERROR(SUMIFS(Program_Retention[Program_Retain],Program_Retention[program_code],'Report - GR'!$Z$1,Program_Retention[Year],'Report - GR'!$B157,Program_Retention[Semester],'Report - GR'!$C157,Program_Retention[At_years],$T$128)/$D157,"-") -> 0.3529411765 | P157: =IFERROR(SUMIFS(Program_Retention[Program_Grad],Program_Retention[program_code],'Report - GR'!$Z$1,Program_Retention[Year],'Report - GR'!$B157,Program_Retention[Semester],'Report - GR'!$C157,Program_Retention[At_years],$T$128)/$D157,"-") -> 0.4117647059 | Q157: =IFERROR(SUMIFS(Program_Retention[WCU_Retain],Program_Retention[program_code],'Report - GR'!$Z$1,Program_Retention[Year],'Report - GR'!$B157,Program_Retention[Semester],'Report - GR'!$C157,Program_Retention[At_years],$T$128)/$D157,"-") -> 0 | R157: =IFERROR(SUMIFS(Program_Retention[WCU_Grad],Program_Retention[program_code],'Report - GR'!$Z$1,Program_Retention[Year],'Report - GR'!$B157,Program_Retention[Semester],'Report - GR'!$C157,Program_Retention[At_years],$T$128)/$D157,"-") -> 0 | S157: =IFERROR(SUMIFS(Program_Retention[Not_Retained],Program_Retention[program_code],'Report - GR'!$Z$1,Program_Retention[Year],'Report - GR'!$B157,Program_Retention[Semester],'Report - GR'!$C157,Program_Retention[At_years],$T$128)/$D157,"-") -> 0.2352941176 | T157: =SUM(O157:S157) -> 1 | W157: =IFERROR(SUMIFS(Program_Retention[Program_Retain],Program_Retention[program_code],'Report - GR'!$Z$1,Program_Retention[Year],'Report - GR'!$B157,Program_Retention[Semester],'Report - GR'!$C157,Program_Retention[At_years],$AB$128)/$D157,"-") -> 0.1176470588 | X157: =IFERROR(SUMIFS(Program_Retention[Program_Grad],Program_Retention[program_code],'Report - GR'!$Z$1,Program_Retention[Year],'Report - GR'!$B157,Program_Retention[Semester],'Report - GR'!$C157,Program_Retention[At_years],$AB$128)/$D157,"-") -> 0.5294117647 | Y157: =IFERROR(SUMIFS(Program_Retention[WCU_Retain],Program_Retention[program_code],'Report - GR'!$Z$1,Program_Retention[Year],'Report - GR'!$B157,Program_Retention[Semester],'Report - GR'!$C157,Program_Retention[At_years],$AB$128)/$D157,"-") -> 0.05882352941 | Z157: =IFERROR(SUMIFS(Program_Retention[WCU_Grad],Program_Retention[program_code],'Report - GR'!$Z$1,Program_Retention[Year],'Report - GR'!$B157,Program_Retention[Semester],'Report - GR'!$C157,Program_Retention[At_years],$AB$128)/$D157,"-") -> 0 | AA157: =IFERROR(SUMIFS(Program_Retention[Not_Retained],Program_Retention[program_code],'Report - GR'!$Z$1,Program_Retention[Year],'Report - GR'!$B157,Program_Retention[Semester],'Report - GR'!$C157,Program_Retention[At_years],$AB$128)/$D157,"-") -> 0.2941176471 | AB157: =SUM(W157:AA157) -> 1 | AE157: =IFERROR(SUMIFS(Program_Retention[Program_Retain],Program_Retention[program_code],'Report - GR'!$Z$1,Program_Retention[Year],'Report - GR'!$B157,Program_Retention[Semester],'Report - GR'!$C157,Program_Retention[At_years],$AJ$128)/$D157,"-") -> 0.05882352941 | AF157: =IFERROR(SUMIFS(Program_Retention[Program_Grad],Program_Retention[program_code],'Report - GR'!$Z$1,Program_Retention[Year],'Report - GR'!$B157,Program_Retention[Semester],'Report - GR'!$C157,Program_Retention[At_years],$AJ$128)/$D157,"-") -> 0.5882352941 | AG157: =IFERROR(SUMIFS(Program_Retention[WCU_Retain],Program_Retention[program_code],'Report - GR'!$Z$1,Program_Retention[Year],'Report - GR'!$B157,Program_Retention[Semester],'Report - GR'!$C157,Program_Retention[At_years],$AJ$128)/$D157,"-") -> 0 | AH157: =IFERROR(SUMIFS(Program_Retention[WCU_Grad],Program_Retention[program_code],'Report - GR'!$Z$1,Program_Retention[Year],'Report - GR'!$B157,Program_Retention[Semester],'Report - GR'!$C157,Program_Retention[At_years],$AJ$128)/$D157,"-") -> 0.05882352941 | AI157: =IFERROR(SUMIFS(Program_Retention[Not_Retained],Program_Retention[program_code],'Report - GR'!$Z$1,Program_Retention[Year],'Report - GR'!$B157,Program_Retention[Semester],'Report - GR'!$C157,Program_Retention[At_years],$AJ$128)/$D157,"-") -> 0.2941176471 | AJ157: =SUM(AE157:AI157) -> 1 | AM157: =IFERROR(SUMIFS(Program_Retention[Program_Retain],Program_Retention[program_code],'Report - GR'!$Z$1,Program_Retention[Year],'Report - GR'!$B157,Program_Retention[Semester],'Report - GR'!$C157,Program_Retention[At_years],$AR$128)/$D157,"-") -> 0 | AN157: =IFERROR(SUMIFS(Program_Retention[Program_Grad],Program_Retention[program_code],'Report - GR'!$Z$1,Program_Retention[Year],'Report - GR'!$B157,Program_Retention[Semester],'Report - GR'!$C157,Program_Retention[At_years],$AR$128)/$D157,"-") -> 0.6470588235 | AO157: =IFERROR(SUMIFS(Program_Retention[WCU_Retain],Program_Retention[program_code],'Report - GR'!$Z$1,Program_Retention[Year],'Report - GR'!$B157,Program_Retention[Semester],'Report - GR'!$C157,Program_Retention[At_years],$AR$128)/$D157,"-") -> 0 | AP157: =IFERROR(SUMIFS(Program_Retention[WCU_Grad],Program_Retention[program_code],'Report - GR'!$Z$1,Program_Retention[Year],'Report - GR'!$B157,Program_Retention[Semester],'Report - GR'!$C157,Program_Retention[At_years],$AR$128)/$D157,"-") -> 0.05882352941 | AQ157: =IFERROR(SUMIFS(Program_Retention[Not_Retained],Program_Retention[program_code],'Report - GR'!$Z$1,Program_Retention[Year],'Report - GR'!$B157,Program_Retention[Semester],'Report - GR'!$C157,Program_Retention[At_years],$AR$128)/$D157,"-") -> 0.2941176471 | AR157: =SUM(AM157:AQ157) -> 1
B158: 2006 | C158: Spring | D158: =SUMIFS(Program_Retention[Cohort_Count],Program_Retention[program_code],'Report - GR'!$Z$1,Program_Retention[Year],'Report - GR'!$B158,Program_Retention[Semester],'Report - GR'!$C158,Program_Retention[At_years],$D$128) -> 8 | G158: =IFERROR(SUMIFS(Program_Retention[Program_Retain],Program_Retention[program_code],'Report - GR'!$Z$1,Program_Retention[Year],'Report - GR'!$B158,Program_Retention[Semester],'Report - GR'!$C158,Program_Retention[At_years],$L$128)/$D158,"-") -> 0.5 | H158: =IFERROR(SUMIFS(Program_Retention[Program_Grad],Program_Retention[program_code],'Report - GR'!$Z$1,Program_Retention[Year],'Report - GR'!$B158,Program_Retention[Semester],'Report - GR'!$C158,Program_Retention[At_years],$L$128)/$D158,"-") -> 0.125 | I158: =IFERROR(SUMIFS(Program_Retention[WCU_Retain],Program_Retention[program_code],'Report - GR'!$Z$1,Program_Retention[Year],'Report - GR'!$B158,Program_Retention[Semester],'Report - GR'!$C158,Program_Retention[At_years],$L$128)/$D158,"-") -> 0 | J158: =IFERROR(SUMIFS(Program_Retention[WCU_Grad],Program_Retention[program_code],'Report - GR'!$Z$1,Program_Retention[Year],'Report - GR'!$B158,Program_Retention[Semester],'Report - GR'!$C158,Program_Retention[At_years],$L$128)/$D158,"-") -> 0.125 | K158: =IFERROR(SUMIFS(Program_Retention[Not_Retained],Program_Retention[program_code],'Report - GR'!$Z$1,Program_Retention[Year],'Report - GR'!$B158,Program_Retention[Semester],'Report - GR'!$C158,Program_Retention[At_years],$L$128)/$D158,"-") -> 0.25 | L158: =SUM(G158:K158) -> 1 | O158: =IFERROR(SUMIFS(Program_Retention[Program_Retain],Program_Retention[program_code],'Report - GR'!$Z$1,Program_Retention[Year],'Report - GR'!$B158,Program_Retention[Semester],'Report - GR'!$C158,Program_Retention[At_years],$T$128)/$D158,"-") -> 0.25 | P158: =IFERROR(SUMIFS(Program_Retention[Program_Grad],Program_Retention[program_code],'Report - GR'!$Z$1,Program_Retention[Year],'Report - GR'!$B158,Program_Retention[Semester],'Report - GR'!$C158,Program_Retention[At_years],$T$128)/$D158,"-") -> 0.125 | Q158: =IFERROR(SUMIFS(Program_Retention[WCU_Retain],Program_Retention[program_code],'Report - GR'!$Z$1,Program_Retention[Year],'Report - GR'!$B158,Program_Retention[Semester],'Report - GR'!$C158,Program_Retention[At_years],$T$128)/$D158,"-") -> 0.25 | R158: =IFERROR(SUMIFS(Program_Retention[WCU_Grad],Program_Retention[program_code],'Report - GR'!$Z$1,Program_Retention[Year],'Report - GR'!$B158,Program_Retention[Semester],'Report - GR'!$C158,Program_Retention[At_years],$T$128)/$D158,"-") -> 0.125 | S158: =IFERROR(SUMIFS(Program_Retention[Not_Retained],Program_Retention[program_code],'Report - GR'!$Z$1,Program_Retention[Year],'Report - GR'!$B158,Program_Retention[Semester],'Report - GR'!$C158,Program_Retention[At_years],$T$128)/$D158,"-") -> 0.25 | T158: =SUM(O158:S158) -> 1 | W158: =IFERROR(SUMIFS(Program_Retention[Program_Retain],Program_Retention[program_code],'Report - GR'!$Z$1,Program_Retention[Year],'Report - GR'!$B158,Program_Retention[Semester],'Report - GR'!$C158,Program_Retention[At_years],$AB$128)/$D158,"-") -> 0.125 | X158: =IFERROR(SUMIFS(Program_Retention[Program_Grad],Program_Retention[program_code],'Report - GR'!$Z$1,Program_Retention[Year],'Report - GR'!$B158,Program_Retention[Semester],'Report - GR'!$C158,Program_Retention[At_years],$AB$128)/$D158,"-") -> 0.25 | Y158: =IFERROR(SUMIFS(Program_Retention[WCU_Retain],Program_Retention[program_code],'Report - GR'!$Z$1,Program_Retention[Year],'Report - GR'!$B158,Program_Retention[Semester],'Report - GR'!$C158,Program_Retention[At_years],$AB$128)/$D158,"-") -> 0.125 | Z158: =IFERROR(SUMIFS(Program_Retention[WCU_Grad],Program_Retention[program_code],'Report - GR'!$Z$1,Program_Retention[Year],'Report - GR'!$B158,Program_Retention[Semester],'Report - GR'!$C158,Program_Retention[At_years],$AB$128)/$D158,"-") -> 0.25 | AA158: =IFERROR(SUMIFS(Program_Retention[Not_Retained],Program_Retention[program_code],'Report - GR'!$Z$1,Program_Retention[Year],'Report - GR'!$B158,Program_Retention[Semester],'Report - GR'!$C158,Program_Retention[At_years],$AB$128)/$D158,"-") -> 0.25 | AB158: =SUM(W158:AA158) -> 1 | AE158: =IFERROR(SUMIFS(Program_Retention[Program_Retain],Program_Retention[program_code],'Report - GR'!$Z$1,Program_Retention[Year],'Report - GR'!$B158,Program_Retention[Semester],'Report - GR'!$C158,Program_Retention[At_years],$AJ$128)/$D158,"-") -> 0 | AF158: =IFERROR(SUMIFS(Program_Retention[Program_Grad],Program_Retention[program_code],'Report - GR'!$Z$1,Program_Retention[Year],'Report - GR'!$B158,Program_Retention[Semester],'Report - GR'!$C158,Program_Retention[At_years],$AJ$128)/$D158,"-") -> 0.375 | AG158: =IFERROR(SUMIFS(Program_Retention[WCU_Retain],Program_Retention[program_code],'Report - GR'!$Z$1,Program_Retention[Year],'Report - GR'!$B158,Program_Retention[Semester],'Report - GR'!$C158,Program_Retention[At_years],$AJ$128)/$D158,"-") -> 0 | AH158: =IFERROR(SUMIFS(Program_Retention[WCU_Grad],Program_Retention[program_code],'Report - GR'!$Z$1,Program_Retention[Year],'Report - GR'!$B158,Program_Retention[Semester],'Report - GR'!$C158,Program_Retention[At_years],$AJ$128)/$D158,"-") -> 0.375 | AI158: =IFERROR(SUMIFS(Program_Retention[Not_Retained],Program_Retention[program_code],'Report - GR'!$Z$1,Program_Retention[Year],'Report - GR'!$B158,Program_Retention[Semester],'Report - GR'!$C158,Program_Retention[At_years],$AJ$128)/$D158,"-") -> 0.25 | AJ158: =SUM(AE158:AI158) -> 1 | AM158: =IFERROR(SUMIFS(Program_Retention[Program_Retain],Program_Retention[program_code],'Report - GR'!$Z$1,Program_Retention[Year],'Report - GR'!$B158,Program_Retention[Semester],'Report - GR'!$C158,Program_Retention[At_years],$AR$128)/$D158,"-") -> 0 | AN158: =IFERROR(SUMIFS(Program_Retention[Program_Grad],Program_Retention[program_code],'Report - GR'!$Z$1,Program_Retention[Year],'Report - GR'!$B158,Program_Retention[Semester],'Report - GR'!$C158,Program_Retention[At_years],$AR$128)/$D158,"-") -> 0.375 | AO158: =IFERROR(SUMIFS(Program_Retention[WCU_Retain],Program_Retention[program_code],'Report - GR'!$Z$1,Program_Retention[Year],'Report - GR'!$B158,Program_Retention[Semester],'Report - GR'!$C158,Program_Retention[At_years],$AR$128)/$D158,"-") -> 0 | AP158: =IFERROR(SUMIFS(Program_Retention[WCU_Grad],Program_Retention[program_code],'Report - GR'!$Z$1,Program_Retention[Year],'Report - GR'!$B158,Program_Retention[Semester],'Report - GR'!$C158,Program_Retention[At_years],$AR$128)/$D158,"-") -> 0.375 | AQ158: =IFERROR(SUMIFS(Program_Retention[Not_Retained],Program_Retention[program_code],'Report - GR'!$Z$1,Program_Retention[Year],'Report - GR'!$B158,Program_Retention[Semester],'Report - GR'!$C158,Program_Retention[At_years],$AR$128)/$D158,"-") -> 0.25 | AR158: =SUM(AM158:AQ158) -> 1
B160: 2006 | C160: Fall | D160: =SUMIFS(Program_Retention[Cohort_Count],Program_Retention[program_code],'Report - GR'!$Z$1,Program_Retention[Year],'Report - GR'!$B160,Program_Retention[Semester],'Report - GR'!$C160,Program_Retention[At_years],$D$128) -> 7 | G160: =IFERROR(SUMIFS(Program_Retention[Program_Retain],Program_Retention[program_code],'Report - GR'!$Z$1,Program_Retention[Year],'Report - GR'!$B160,Program_Retention[Semester],'Report - GR'!$C160,Program_Retention[At_years],$L$128)/$D160,"-") -> 0.5714285714 | H160: =IFERROR(SUMIFS(Program_Retention[Program_Grad],Program_Retention[program_code],'Report - GR'!$Z$1,Program_Retention[Year],'Report - GR'!$B160,Program_Retention[Semester],'Report - GR'!$C160,Program_Retention[At_years],$L$128)/$D160,"-") -> 0 | I160: =IFERROR(SUMIFS(Program_Retention[WCU_Retain],Program_Retention[program_code],'Report - GR'!$Z$1,Program_Retention[Year],'Report - GR'!$B160,Program_Retention[Semester],'Report - GR'!$C160,Program_Retention[At_years],$L$128)/$D160,"-") -> 0 | J160: =IFERROR(SUMIFS(Program_Retention[WCU_Grad],Program_Retention[program_code],'Report - GR'!$Z$1,Program_Retention[Year],'Report - GR'!$B160,Program_Retention[Semester],'Report - GR'!$C160,Program_Retention[At_years],$L$128)/$D160,"-") -> 0 | K160: =IFERROR(SUMIFS(Program_Retention[Not_Retained],Program_Retention[program_code],'Report - GR'!$Z$1,Program_Retention[Year],'Report - GR'!$B160,Program_Retention[Semester],'Report - GR'!$C160,Program_Retention[At_years],$L$128)/$D160,"-") -> 0.4285714286 | L160: =SUM(G160:K160) -> 1 | O160: =IFERROR(SUMIFS(Program_Retention[Program_Retain],Program_Retention[program_code],'Report - GR'!$Z$1,Program_Retention[Year],'Report - GR'!$B160,Program_Retention[Semester],'Report - GR'!$C160,Program_Retention[At_years],$T$128)/$D160,"-") -> 0 | P160: =IFERROR(SUMIFS(Program_Retention[Program_Grad],Program_Retention[program_code],'Report - GR'!$Z$1,Program_Retention[Year],'Report - GR'!$B160,Program_Retention[Semester],'Report - GR'!$C160,Program_Retention[At_years],$T$128)/$D160,"-") -> 0.2857142857 | Q160: =IFERROR(SUMIFS(Program_Retention[WCU_Retain],Program_Retention[program_code],'Report - GR'!$Z$1,Program_Retention[Year],'Report - GR'!$B160,Program_Retention[Semester],'Report - GR'!$C160,Program_Retention[At_years],$T$128)/$D160,"-") -> 0.2857142857 | R160: =IFERROR(SUMIFS(Program_Retention[WCU_Grad],Program_Retention[program_code],'Report - GR'!$Z$1,Program_Retention[Year],'Report - GR'!$B160,Program_Retention[Semester],'Report - GR'!$C160,Program_Retention[At_years],$T$128)/$D160,"-") -> 0 | S160: =IFERROR(SUMIFS(Program_Retention[Not_Retained],Program_Retention[program_code],'Report - GR'!$Z$1,Program_Retention[Year],'Report - GR'!$B160,Program_Retention[Semester],'Report - GR'!$C160,Program_Retention[At_years],$T$128)/$D160,"-") -> 0.4285714286 | T160: =SUM(O160:S160) -> 1 | W160: =IFERROR(SUMIFS(Program_Retention[Program_Retain],Program_Retention[program_code],'Report - GR'!$Z$1,Program_Retention[Year],'Report - GR'!$B160,Program_Retention[Semester],'Report - GR'!$C160,Program_Retention[At_years],$AB$128)/$D160,"-") -> 0 | X160: =IFERROR(SUMIFS(Program_Retention[Program_Grad],Program_Retention[program_code],'Report - GR'!$Z$1,Program_Retention[Year],'Report - GR'!$B160,Program_Retention[Semester],'Report - GR'!$C160,Program_Retention[At_years],$AB$128)/$D160,"-") -> 0.2857142857 | Y160: =IFERROR(SUMIFS(Program_Retention[WCU_Retain],Program_Retention[program_code],'Report - GR'!$Z$1,Program_Retention[Year],'Report - GR'!$B160,Program_Retention[Semester],'Report - GR'!$C160,Program_Retention[At_years],$AB$128)/$D160,"-") -> 0.1428571429 | Z160: =IFERROR(SUMIFS(Program_Retention[WCU_Grad],Program_Retention[program_code],'Report - GR'!$Z$1,Program_Retention[Year],'Report - GR'!$B160,Program_Retention[Semester],'Report - GR'!$C160,Program_Retention[At_years],$AB$128)/$D160,"-") -> 0.1428571429 | AA160: =IFERROR(SUMIFS(Program_Retention[Not_Retained],Program_Retention[program_code],'Report - GR'!$Z$1,Program_Retention[Year],'Report - GR'!$B160,Program_Retention[Semester],'Report - GR'!$C160,Program_Retention[At_years],$AB$128)/$D160,"-") -> 0.4285714286 | AB160: =SUM(W160:AA160) -> 1 | AE160: =IFERROR(SUMIFS(Program_Retention[Program_Retain],Program_Retention[program_code],'Report - GR'!$Z$1,Program_Retention[Year],'Report - GR'!$B160,Program_Retention[Semester],'Report - GR'!$C160,Program_Retention[At_years],$AJ$128)/$D160,"-") -> 0 | AF160: =IFERROR(SUMIFS(Program_Retention[Program_Grad],Program_Retention[program_code],'Report - GR'!$Z$1,Program_Retention[Year],'Report - GR'!$B160,Program_Retention[Semester],'Report - GR'!$C160,Program_Retention[At_years],$AJ$128)/$D160,"-") -> 0.2857142857 | AG160: =IFERROR(SUMIFS(Program_Retention[WCU_Retain],Program_Retention[program_code],'Report - GR'!$Z$1,Program_Retention[Year],'Report - GR'!$B160,Program_Retention[Semester],'Report - GR'!$C160,Program_Retention[At_years],$AJ$128)/$D160,"-") -> 0 | AH160: =IFERROR(SUMIFS(Program_Retention[WCU_Grad],Program_Retention[program_code],'Report - GR'!$Z$1,Program_Retention[Year],'Report - GR'!$B160,Program_Retention[Semester],'Report - GR'!$C160,Program_Retention[At_years],$AJ$128)/$D160,"-") -> 0.1428571429 | AI160: =IFERROR(SUMIFS(Program_Retention[Not_Retained],Program_Retention[program_code],'Report - GR'!$Z$1,Program_Retention[Year],'Report - GR'!$B160,Program_Retention[Semester],'Report - GR'!$C160,Program_Retention[At_years],$AJ$128)/$D160,"-") -> 0.5714285714 | AJ160: =SUM(AE160:AI160) -> 1 | AM160: =IFERROR(SUMIFS(Program_Retention[Program_Retain],Program_Retention[program_code],'Report - GR'!$Z$1,Program_Retention[Year],'Report - GR'!$B160,Program_Retention[Semester],'Report - GR'!$C160,Program_Retention[At_years],$AR$128)/$D160,"-") -> 0 | AN160: =IFERROR(SUMIFS(Program_Retention[Program_Grad],Program_Retention[program_code],'Report - GR'!$Z$1,Program_Retention[Year],'Report - GR'!$B160,Program_Retention[Semester],'Report - GR'!$C160,Program_Retention[At_years],$AR$128)/$D160,"-") -> 0 | AO160: =IFERROR(SUMIFS(Program_Retention[WCU_Retain],Program_Retention[program_code],'Report - GR'!$Z$1,Program_Retention[Year],'Report - GR'!$B160,Program_Retention[Semester],'Report - GR'!$C160,Program_Retention[At_years],$AR$128)/$D160,"-") -> 0 | AP160: =IFERROR(SUMIFS(Program_Retention[WCU_Grad],Program_Retention[program_code],'Report - GR'!$Z$1,Program_Retention[Year],'Report - GR'!$B160,Program_Retention[Semester],'Report - GR'!$C160,Program_Retention[At_years],$AR$128)/$D160,"-") -> 0 | AQ160: =IFERROR(SUMIFS(Program_Retention[Not_Retained],Program_Retention[program_code],'Report - GR'!$Z$1,Program_Retention[Year],'Report - GR'!$B160,Program_Retention[Semester],'Report - GR'!$C160,Program_Retention[At_years],$AR$128)/$D160,"-") -> 0 | AR160: =SUM(AM160:AQ160) -> 0
B161: 2007 | C161: Spring | D161: =SUMIFS(Program_Retention[Cohort_Count],Program_Retention[program_code],'Report - GR'!$Z$1,Program_Retention[Year],'Report - GR'!$B161,Program_Retention[Semester],'Report - GR'!$C161,Program_Retention[At_years],$D$128) -> 9 | G161: =IFERROR(SUMIFS(Program_Retention[Program_Retain],Program_Retention[program_code],'Report - GR'!$Z$1,Program_Retention[Year],'Report - GR'!$B161,Program_Retention[Semester],'Report - GR'!$C161,Program_Retention[At_years],$L$128)/$D161,"-") -> 0.3333333333 | H161: =IFERROR(SUMIFS(Program_Retention[Program_Grad],Program_Retention[program_code],'Report - GR'!$Z$1,Program_Retention[Year],'Report - GR'!$B161,Program_Retention[Semester],'Report - GR'!$C161,Program_Retention[At_years],$L$128)/$D161,"-") -> 0.2222222222 | I161: =IFERROR(SUMIFS(Program_Retention[WCU_Retain],Program_Retention[program_code],'Report - GR'!$Z$1,Program_Retention[Year],'Report - GR'!$B161,Program_Retention[Semester],'Report - GR'!$C161,Program_Retention[At_years],$L$128)/$D161,"-") -> 0.2222222222 | J161: =IFERROR(SUMIFS(Program_Retention[WCU_Grad],Program_Retention[program_code],'Report - GR'!$Z$1,Program_Retention[Year],'Report - GR'!$B161,Program_Retention[Semester],'Report - GR'!$C161,Program_Retention[At_years],$L$128)/$D161,"-") -> 0 | K161: =IFERROR(SUMIFS(Program_Retention[Not_Retained],Program_Retention[program_code],'Report - GR'!$Z$1,Program_Retention[Year],'Report - GR'!$B161,Program_Retention[Semester],'Report - GR'!$C161,Program_Retention[At_years],$L$128)/$D161,"-") -> 0.2222222222 | L161: =SUM(G161:K161) -> 1 | O161: =IFERROR(SUMIFS(Program_Retention[Program_Retain],Program_Retention[program_code],'Report - GR'!$Z$1,Program_Retention[Year],'Report - GR'!$B161,Program_Retention[Semester],'Report - GR'!$C161,Program_Retention[At_years],$T$128)/$D161,"-") -> 0 | P161: =IFERROR(SUMIFS(Program_Retention[Program_Grad],Program_Retention[program_code],'Report - GR'!$Z$1,Program_Retention[Year],'Report - GR'!$B161,Program_Retention[Semester],'Report - GR'!$C161,Program_Retention[At_years],$T$128)/$D161,"-") -> 0.5555555556 | Q161: =IFERROR(SUMIFS(Program_Retention[WCU_Retain],Program_Retention[program_code],'Report - GR'!$Z$1,Program_Retention[Year],'Report - GR'!$B161,Program_Retention[Semester],'Report - GR'!$C161,Program_Retention[At_years],$T$128)/$D161,"-") -> 0.2222222222 | R161: =IFERROR(SUMIFS(Program_Retention[WCU_Grad],Program_Retention[program_code],'Report - GR'!$Z$1,Program_Retention[Year],'Report - GR'!$B161,Program_Retention[Semester],'Report - GR'!$C161,Program_Retention[At_years],$T$128)/$D161,"-") -> 0 | S161: =IFERROR(SUMIFS(Program_Retention[Not_Retained],Program_Retention[program_code],'Report - GR'!$Z$1,Program_Retention[Year],'Report - GR'!$B161,Program_Retention[Semester],'Report - GR'!$C161,Program_Retention[At_years],$T$128)/$D161,"-") -> 0.2222222222 | T161: =SUM(O161:S161) -> 1 | W161: =IFERROR(SUMIFS(Program_Retention[Program_Retain],Program_Retention[program_code],'Report - GR'!$Z$1,Program_Retention[Year],'Report - GR'!$B161,Program_Retention[Semester],'Report - GR'!$C161,Program_Retention[At_years],$AB$128)/$D161,"-") -> 0 | X161: =IFERROR(SUMIFS(Program_Retention[Program_Grad],Program_Retention[program_code],'Report - GR'!$Z$1,Program_Retention[Year],'Report - GR'!$B161,Program_Retention[Semester],'Report - GR'!$C161,Program_Retention[At_years],$AB$128)/$D161,"-") -> 0.5555555556 | Y161: =IFERROR(SUMIFS(Program_Retention[WCU_Retain],Program_Retention[program_code],'Report - GR'!$Z$1,Program_Retention[Year],'Report - GR'!$B161,Program_Retention[Semester],'Report - GR'!$C161,Program_Retention[At_years],$AB$128)/$D161,"-") -> 0 | Z161: =IFERROR(SUMIFS(Program_Retention[WCU_Grad],Program_Retention[program_code],'Report - GR'!$Z$1,Program_Retention[Year],'Report - GR'!$B161,Program_Retention[Semester],'Report - GR'!$C161,Program_Retention[At_years],$AB$128)/$D161,"-") -> 0.1111111111 | AA161: =IFERROR(SUMIFS(Program_Retention[Not_Retained],Program_Retention[program_code],'Report - GR'!$Z$1,Program_Retention[Year],'Report - GR'!$B161,Program_Retention[Semester],'Report - GR'!$C161,Program_Retention[At_years],$AB$128)/$D161,"-") -> 0.3333333333 | AB161: =SUM(W161:AA161) -> 1 | AE161: =IFERROR(SUMIFS(Program_Retention[Program_Retain],Program_Retention[program_code],'Report - GR'!$Z$1,Program_Retention[Year],'Report - GR'!$B161,Program_Retention[Semester],'Report - GR'!$C161,Program_Retention[At_years],$AJ$128)/$D161,"-") -> 0 | AF161: =IFERROR(SUMIFS(Program_Retention[Program_Grad],Program_Retention[program_code],'Report - GR'!$Z$1,Program_Retention[Year],'Report - GR'!$B161,Program_Retention[Semester],'Report - GR'!$C161,Program_Retention[At_years],$AJ$128)/$D161,"-") -> 0.5555555556 | AG161: =IFERROR(SUMIFS(Program_Retention[WCU_Retain],Program_Retention[program_code],'Report - GR'!$Z$1,Program_Retention[Year],'Report - GR'!$B161,Program_Retention[Semester],'Report - GR'!$C161,Program_Retention[At_years],$AJ$128)/$D161,"-") -> 0 | AH161: =IFERROR(SUMIFS(Program_Retention[WCU_Grad],Program_Retention[program_code],'Report - GR'!$Z$1,Program_Retention[Year],'Report - GR'!$B161,Program_Retention[Semester],'Report - GR'!$C161,Program_Retention[At_years],$AJ$128)/$D161,"-") -> 0.1111111111 | AI161: =IFERROR(SUMIFS(Program_Retention[Not_Retained],Program_Retention[program_code],'Report - GR'!$Z$1,Program_Retention[Year],'Report - GR'!$B161,Program_Retention[Semester],'Report - GR'!$C161,Program_Retention[At_years],$AJ$128)/$D161,"-") -> 0.3333333333 | AJ161: =SUM(AE161:AI161) -> 1 | AM161: =IFERROR(SUMIFS(Program_Retention[Program_Retain],Program_Retention[program_code],'Report - GR'!$Z$1,Program_Retention[Year],'Report - GR'!$B161,Program_Retention[Semester],'Report - GR'!$C161,Program_Retention[At_years],$AR$128)/$D161,"-") -> 0 | AN161: =IFERROR(SUMIFS(Program_Retention[Program_Grad],Program_Retention[program_code],'Report - GR'!$Z$1,Program_Retention[Year],'Report - GR'!$B161,Program_Retention[Semester],'Report - GR'!$C161,Program_Retention[At_years],$AR$128)/$D161,"-") -> 0 | AO161: =IFERROR(SUMIFS(Program_Retention[WCU_Retain],Program_Retention[program_code],'Report - GR'!$Z$1,Program_Retention[Year],'Report - GR'!$B161,Program_Retention[Semester],'Report - GR'!$C161,Program_Retention[At_years],$AR$128)/$D161,"-") -> 0 | AP161: =IFERROR(SUMIFS(Program_Retention[WCU_Grad],Program_Retention[program_code],'Report - GR'!$Z$1,Program_Retention[Year],'Report - GR'!$B161,Program_Retention[Semester],'Report - GR'!$C161,Program_Retention[At_years],$AR$128)/$D161,"-") -> 0 | AQ161: =IFERROR(SUMIFS(Program_Retention[Not_Retained],Program_Retention[program_code],'Report - GR'!$Z$1,Program_Retention[Year],'Report - GR'!$B161,Program_Retention[Semester],'Report - GR'!$C161,Program_Retention[At_years],$AR$128)/$D161,"-") -> 0 | AR161: =SUM(AM161:AQ161) -> 0
B163: 2007 | C163: Fall | D163: =SUMIFS(Program_Retention[Cohort_Count],Program_Retention[program_code],'Report - GR'!$Z$1,Program_Retention[Year],'Report - GR'!$B163,Program_Retention[Semester],'Report - GR'!$C163,Program_Retention[At_years],$D$128) -> 13 | G163: =IFERROR(SUMIFS(Program_Retention[Program_Retain],Program_Retention[program_code],'Report - GR'!$Z$1,Program_Retention[Year],'Report - GR'!$B163,Program_Retention[Semester],'Report - GR'!$C163,Program_Retention[At_years],$L$128)/$D163,"-") -> 0.9230769231 | H163: =IFERROR(SUMIFS(Program_Retention[Program_Grad],Program_Retention[program_code],'Report - GR'!$Z$1,Program_Retention[Year],'Report - GR'!$B163,Program_Retention[Semester],'Report - GR'!$C163,Program_Retention[At_years],$L$128)/$D163,"-") -> 0 | I163: =IFERROR(SUMIFS(Program_Retention[WCU_Retain],Program_Retention[program_code],'Report - GR'!$Z$1,Program_Retention[Year],'Report - GR'!$B163,Program_Retention[Semester],'Report - GR'!$C163,Program_Retention[At_years],$L$128)/$D163,"-") -> 0 | J163: =IFERROR(SUMIFS(Program_Retention[WCU_Grad],Program_Retention[program_code],'Report - GR'!$Z$1,Program_Retention[Year],'Report - GR'!$B163,Program_Retention[Semester],'Report - GR'!$C163,Program_Retention[At_years],$L$128)/$D163,"-") -> 0 | K163: =IFERROR(SUMIFS(Program_Retention[Not_Retained],Program_Retention[program_code],'Report - GR'!$Z$1,Program_Retention[Year],'Report - GR'!$B163,Program_Retention[Semester],'Report - GR'!$C163,Program_Retention[At_years],$L$128)/$D163,"-") -> 0.07692307692 | L163: =SUM(G163:K163) -> 1 | O163: =IFERROR(SUMIFS(Program_Retention[Program_Retain],Program_Retention[program_code],'Report - GR'!$Z$1,Program_Retention[Year],'Report - GR'!$B163,Program_Retention[Semester],'Report - GR'!$C163,Program_Retention[At_years],$T$128)/$D163,"-") -> 0.3846153846 | P163: =IFERROR(SUMIFS(Program_Retention[Program_Grad],Program_Retention[program_code],'Report - GR'!$Z$1,Program_Retention[Year],'Report - GR'!$B163,Program_Retention[Semester],'Report - GR'!$C163,Program_Retention[At_years],$T$128)/$D163,"-") -> 0.4615384615 | Q163: =IFERROR(SUMIFS(Program_Retention[WCU_Retain],Program_Retention[program_code],'Report - GR'!$Z$1,Program_Retention[Year],'Report - GR'!$B163,Program_Retention[Semester],'Report - GR'!$C163,Program_Retention[At_years],$T$128)/$D163,"-") -> 0 | R163: =IFERROR(SUMIFS(Program_Retention[WCU_Grad],Program_Retention[program_code],'Report - GR'!$Z$1,Program_Retention[Year],'Report - GR'!$B163,Program_Retention[Semester],'Report - GR'!$C163,Program_Retention[At_years],$T$128)/$D163,"-") -> 0 | S163: =IFERROR(SUMIFS(Program_Retention[Not_Retained],Program_Retention[program_code],'Report - GR'!$Z$1,Program_Retention[Year],'Report - GR'!$B163,Program_Retention[Semester],'Report - GR'!$C163,Program_Retention[At_years],$T$128)/$D163,"-") -> 0.1538461538 | T163: =SUM(O163:S163) -> 1 | W163: =IFERROR(SUMIFS(Program_Retention[Program_Retain],Program_Retention[program_code],'Report - GR'!$Z$1,Program_Retention[Year],'Report - GR'!$B163,Program_Retention[Semester],'Report - GR'!$C163,Program_Retention[At_years],$AB$128)/$D163,"-") -> 0.1538461538 | X163: =IFERROR(SUMIFS(Program_Retention[Program_Grad],Program_Retention[program_code],'Report - GR'!$Z$1,Program_Retention[Year],'Report - GR'!$B163,Program_Retention[Semester],'Report - GR'!$C163,Program_Retention[At_years],$AB$128)/$D163,"-") -> 0.6923076923 | Y163: =IFERROR(SUMIFS(Program_Retention[WCU_Retain],Program_Retention[program_code],'Report - GR'!$Z$1,Program_Retention[Year],'Report - GR'!$B163,Program_Retention[Semester],'Report - GR'!$C163,Program_Retention[At_years],$AB$128)/$D163,"-") -> 0 | Z163: =IFERROR(SUMIFS(Program_Retention[WCU_Grad],Program_Retention[program_code],'Report - GR'!$Z$1,Program_Retention[Year],'Report - GR'!$B163,Program_Retention[Semester],'Report - GR'!$C163,Program_Retention[At_years],$AB$128)/$D163,"-") -> 0 | AA163: =IFERROR(SUMIFS(Program_Retention[Not_Retained],Program_Retention[program_code],'Report - GR'!$Z$1,Program_Retention[Year],'Report - GR'!$B163,Program_Retention[Semester],'Report - GR'!$C163,Program_Retention[At_years],$AB$128)/$D163,"-") -> 0.1538461538 | AB163: =SUM(W163:AA163) -> 1 | AE163: =IFERROR(SUMIFS(Program_Retention[Program_Retain],Program_Retention[program_code],'Report - GR'!$Z$1,Program_Retention[Year],'Report - GR'!$B163,Program_Retention[Semester],'Report - GR'!$C163,Program_Retention[At_years],$AJ$128)/$D163,"-") -> 0.07692307692 | AF163: =IFERROR(SUMIFS(Program_Retention[Program_Grad],Program_Retention[program_code],'Report - GR'!$Z$1,Program_Retention[Year],'Report - GR'!$B163,Program_Retention[Semester],'Report - GR'!$C163,Program_Retention[At_years],$AJ$128)/$D163,"-") -> 0.7692307692 | AG163: =IFERROR(SUMIFS(Program_Retention[WCU_Retain],Program_Retention[program_code],'Report - GR'!$Z$1,Program_Retention[Year],'Report - GR'!$B163,Program_Retention[Semester],'Report - GR'!$C163,Program_Retention[At_years],$AJ$128)/$D163,"-") -> 0 | AH163: =IFERROR(SUMIFS(Program_Retention[WCU_Grad],Program_Retention[program_code],'Report - GR'!$Z$1,Program_Retention[Year],'Report - GR'!$B163,Program_Retention[Semester],'Report - GR'!$C163,Program_Retention[At_years],$AJ$128)/$D163,"-") -> 0 | AI163: =IFERROR(SUMIFS(Program_Retention[Not_Retained],Program_Retention[program_code],'Report - GR'!$Z$1,Program_Retention[Year],'Report - GR'!$B163,Program_Retention[Semester],'Report - GR'!$C163,Program_Retention[At_years],$AJ$128)/$D163,"-") -> 0.1538461538 | AJ163: =SUM(AE163:AI163) -> 1 | AM163: =IFERROR(SUMIFS(Program_Retention[Program_Retain],Program_Retention[program_code],'Report - GR'!$Z$1,Program_Retention[Year],'Report - GR'!$B163,Program_Retention[Semester],'Report - GR'!$C163,Program_Retention[At_years],$AR$128)/$D163,"-") -> 0 | AN163: =IFERROR(SUMIFS(Program_Retention[Program_Grad],Program_Retention[program_code],'Report - GR'!$Z$1,Program_Retention[Year],'Report - GR'!$B163,Program_Retention[Semester],'Report - GR'!$C163,Program_Retention[At_years],$AR$128)/$D163,"-") -> 0 | AO163: =IFERROR(SUMIFS(Program_Retention[WCU_Retain],Program_Retention[program_code],'Report - GR'!$Z$1,Program_Retention[Year],'Report - GR'!$B163,Program_Retention[Semester],'Report - GR'!$C163,Program_Retention[At_years],$AR$128)/$D163,"-") -> 0 | AP163: =IFERROR(SUMIFS(Program_Retention[WCU_Grad],Program_Retention[program_code],'Report - GR'!$Z$1,Program_Retention[Year],'Report - GR'!$B163,Program_Retention[Semester],'Report - GR'!$C163,Program_Retention[At_years],$AR$128)/$D163,"-") -> 0 | AQ163: =IFERROR(SUMIFS(Program_Retention[Not_Retained],Program_Retention[program_code],'Report - GR'!$Z$1,Program_Retention[Year],'Report - GR'!$B163,Program_Retention[Semester],'Report - GR'!$C163,Program_Retention[At_years],$AR$128)/$D163,"-") -> 0 | AR163: =SUM(AM163:AQ163) -> 0
B164: 2008 | C164: Spring | D164: =SUMIFS(Program_Retention[Cohort_Count],Program_Retention[program_code],'Report - GR'!$Z$1,Program_Retention[Year],'Report - GR'!$B164,Program_Retention[Semester],'Report - GR'!$C164,Program_Retention[At_years],$D$128) -> 3 | G164: =IFERROR(SUMIFS(Program_Retention[Program_Retain],Program_Retention[program_code],'Report - GR'!$Z$1,Program_Retention[Year],'Report - GR'!$B164,Program_Retention[Semester],'Report - GR'!$C164,Program_Retention[At_years],$L$128)/$D164,"-") -> 0.3333333333 | H164: =IFERROR(SUMIFS(Program_Retention[Program_Grad],Program_Retention[program_code],'Report - GR'!$Z$1,Program_Retention[Year],'Report - GR'!$B164,Program_Retention[Semester],'Report - GR'!$C164,Program_Retention[At_years],$L$128)/$D164,"-") -> 0 | I164: =IFERROR(SUMIFS(Program_Retention[WCU_Retain],Program_Retention[program_code],'Report - GR'!$Z$1,Program_Retention[Year],'Report - GR'!$B164,Program_Retention[Semester],'Report - GR'!$C164,Program_Retention[At_years],$L$128)/$D164,"-") -> 0 | J164: =IFERROR(SUMIFS(Program_Retention[WCU_Grad],Program_Retention[program_code],'Report - GR'!$Z$1,Program_Retention[Year],'Report - GR'!$B164,Program_Retention[Semester],'Report - GR'!$C164,Program_Retention[At_years],$L$128)/$D164,"-") -> 0 | K164: =IFERROR(SUMIFS(Program_Retention[Not_Retained],Program_Retention[program_code],'Report - GR'!$Z$1,Program_Retention[Year],'Report - GR'!$B164,Program_Retention[Semester],'Report - GR'!$C164,Program_Retention[At_years],$L$128)/$D164,"-") -> 0.6666666667 | L164: =SUM(G164:K164) -> 1 | O164: =IFERROR(SUMIFS(Program_Retention[Program_Retain],Program_Retention[program_code],'Report - GR'!$Z$1,Program_Retention[Year],'Report - GR'!$B164,Program_Retention[Semester],'Report - GR'!$C164,Program_Retention[At_years],$T$128)/$D164,"-") -> 0 | P164: =IFERROR(SUMIFS(Program_Retention[Program_Grad],Program_Retention[program_code],'Report - GR'!$Z$1,Program_Retention[Year],'Report - GR'!$B164,Program_Retention[Semester],'Report - GR'!$C164,Program_Retention[At_years],$T$128)/$D164,"-") -> 0.3333333333 | Q164: =IFERROR(SUMIFS(Program_Retention[WCU_Retain],Program_Retention[program_code],'Report - GR'!$Z$1,Program_Retention[Year],'Report - GR'!$B164,Program_Retention[Semester],'Report - GR'!$C164,Program_Retention[At_years],$T$128)/$D164,"-") -> 0 | R164: =IFERROR(SUMIFS(Program_Retention[WCU_Grad],Program_Retention[program_code],'Report - GR'!$Z$1,Program_Retention[Year],'Report - GR'!$B164,Program_Retention[Semester],'Report - GR'!$C164,Program_Retention[At_years],$T$128)/$D164,"-") -> 0 | S164: =IFERROR(SUMIFS(Program_Retention[Not_Retained],Program_Retention[program_code],'Report - GR'!$Z$1,Program_Retention[Year],'Report - GR'!$B164,Program_Retention[Semester],'Report - GR'!$C164,Program_Retention[At_years],$T$128)/$D164,"-") -> 0.6666666667 | T164: =SUM(O164:S164) -> 1 | W164: =IFERROR(SUMIFS(Program_Retention[Program_Retain],Program_Retention[program_code],'Report - GR'!$Z$1,Program_Retention[Year],'Report - GR'!$B164,Program_Retention[Semester],'Report - GR'!$C164,Program_Retention[At_years],$AB$128)/$D164,"-") -> 0 | X164: =IFERROR(SUMIFS(Program_Retention[Program_Grad],Program_Retention[program_code],'Report - GR'!$Z$1,Program_Retention[Year],'Report - GR'!$B164,Program_Retention[Semester],'Report - GR'!$C164,Program_Retention[At_years],$AB$128)/$D164,"-") -> 0.3333333333 | Y164: =IFERROR(SUMIFS(Program_Retention[WCU_Retain],Program_Retention[program_code],'Report - GR'!$Z$1,Program_Retention[Year],'Report - GR'!$B164,Program_Retention[Semester],'Report - GR'!$C164,Program_Retention[At_years],$AB$128)/$D164,"-") -> 0.3333333333 | Z164: =IFERROR(SUMIFS(Program_Retention[WCU_Grad],Program_Retention[program_code],'Report - GR'!$Z$1,Program_Retention[Year],'Report - GR'!$B164,Program_Retention[Semester],'Report - GR'!$C164,Program_Retention[At_years],$AB$128)/$D164,"-") -> 0 | AA164: =IFERROR(SUMIFS(Program_Retention[Not_Retained],Program_Retention[program_code],'Report - GR'!$Z$1,Program_Retention[Year],'Report - GR'!$B164,Program_Retention[Semester],'Report - GR'!$C164,Program_Retention[At_years],$AB$128)/$D164,"-") -> 0.3333333333 | AB164: =SUM(W164:AA164) -> 1 | AE164: =IFERROR(SUMIFS(Program_Retention[Program_Retain],Program_Retention[program_code],'Report - GR'!$Z$1,Program_Retention[Year],'Report - GR'!$B164,Program_Retention[Semester],'Report - GR'!$C164,Program_Retention[At_years],$AJ$128)/$D164,"-") -> 0 | AF164: =IFERROR(SUMIFS(Program_Retention[Program_Grad],Program_Retention[program_code],'Report - GR'!$Z$1,Program_Retention[Year],'Report - GR'!$B164,Program_Retention[Semester],'Report - GR'!$C164,Program_Retention[At_years],$AJ$128)/$D164,"-") -> 0.3333333333 | AG164: =IFERROR(SUMIFS(Program_Retention[WCU_Retain],Program_Retention[program_code],'Report - GR'!$Z$1,Program_Retention[Year],'Report - GR'!$B164,Program_Retention[Semester],'Report - GR'!$C164,Program_Retention[At_years],$AJ$128)/$D164,"-") -> 0 | AH164: =IFERROR(SUMIFS(Program_Retention[WCU_Grad],Program_Retention[program_code],'Report - GR'!$Z$1,Program_Retention[Year],'Report - GR'!$B164,Program_Retention[Semester],'Report - GR'!$C164,Program_Retention[At_years],$AJ$128)/$D164,"-") -> 0 | AI164: =IFERROR(SUMIFS(Program_Retention[Not_Retained],Program_Retention[program_code],'Report - GR'!$Z$1,Program_Retention[Year],'Report - GR'!$B164,Program_Retention[Semester],'Report - GR'!$C164,Program_Retention[At_years],$AJ$128)/$D164,"-") -> 0.6666666667 | AJ164: =SUM(AE164:AI164) -> 1 | AM164: =IFERROR(SUMIFS(Program_Retention[Program_Retain],Program_Retention[program_code],'Report - GR'!$Z$1,Program_Retention[Year],'Report - GR'!$B164,Program_Retention[Semester],'Report - GR'!$C164,Program_Retention[At_years],$AR$128)/$D164,"-") -> 0 | AN164: =IFERROR(SUMIFS(Program_Retention[Program_Grad],Program_Retention[program_code],'Report - GR'!$Z$1,Program_Retention[Year],'Report - GR'!$B164,Program_Retention[Semester],'Report - GR'!$C164,Program_Retention[At_years],$AR$128)/$D164,"-") -> 0 | AO164: =IFERROR(SUMIFS(Program_Retention[WCU_Retain],Program_Retention[program_code],'Report - GR'!$Z$1,Program_Retention[Year],'Report - GR'!$B164,Program_Retention[Semester],'Report - GR'!$C164,Program_Retention[At_years],$AR$128)/$D164,"-") -> 0 | AP164: =IFERROR(SUMIFS(Program_Retention[WCU_Grad],Program_Retention[program_code],'Report - GR'!$Z$1,Program_Retention[Year],'Report - GR'!$B164,Program_Retention[Semester],'Report - GR'!$C164,Program_Retention[At_years],$AR$128)/$D164,"-") -> 0 | AQ164: =IFERROR(SUMIFS(Program_Retention[Not_Retained],Program_Retention[program_code],'Report - GR'!$Z$1,Program_Retention[Year],'Report - GR'!$B164,Program_Retention[Semester],'Report - GR'!$C164,Program_Retention[At_years],$AR$128)/$D164,"-") -> 0 | AR164: =SUM(AM164:AQ164) -> 0
B166: 2008 | C166: Fall | D166: =SUMIFS(Program_Retention[Cohort_Count],Program_Retention[program_code],'Report - GR'!$Z$1,Program_Retention[Year],'Report - GR'!$B166,Program_Retention[Semester],'Report - GR'!$C166,Program_Retention[At_years],$D$128) -> 18 | G166: =IFERROR(SUMIFS(Program_Retention[Program_Retain],Program_Retention[program_code],'Report - GR'!$Z$1,Program_Retention[Year],'Report - GR'!$B166,Program_Retention[Semester],'Report - GR'!$C166,Program_Retention[At_years],$L$128)/$D166,"-") -> 0.6666666667 | H166: =IFERROR(SUMIFS(Program_Retention[Program_Grad],Program_Retention[program_code],'Report - GR'!$Z$1,Program_Retention[Year],'Report - GR'!$B166,Program_Retention[Semester],'Report - GR'!$C166,Program_Retention[At_years],$L$128)/$D166,"-") -> 0.05555555556 | I166: =IFERROR(SUMIFS(Program_Retention[WCU_Retain],Program_Retention[program_code],'Report - GR'!$Z$1,Program_Retention[Year],'Report - GR'!$B166,Program_Retention[Semester],'Report - GR'!$C166,Program_Retention[At_years],$L$128)/$D166,"-") -> 0.05555555556 | J166: =IFERROR(SUMIFS(Program_Retention[WCU_Grad],Program_Retention[program_code],'Report - GR'!$Z$1,Program_Retention[Year],'Report - GR'!$B166,Program_Retention[Semester],'Report - GR'!$C166,Program_Retention[At_years],$L$128)/$D166,"-") -> 0 | K166: =IFERROR(SUMIFS(Program_Retention[Not_Retained],Program_Retention[program_code],'Report - GR'!$Z$1,Program_Retention[Year],'Report - GR'!$B166,Program_Retention[Semester],'Report - GR'!$C166,Program_Retention[At_years],$L$128)/$D166,"-") -> 0.2222222222 | L166: =SUM(G166:K166) -> 1 | O166: =IFERROR(SUMIFS(Program_Retention[Program_Retain],Program_Retention[program_code],'Report - GR'!$Z$1,Program_Retention[Year],'Report - GR'!$B166,Program_Retention[Semester],'Report - GR'!$C166,Program_Retention[At_years],$T$128)/$D166,"-") -> 0.2222222222 | P166: =IFERROR(SUMIFS(Program_Retention[Program_Grad],Program_Retention[program_code],'Report - GR'!$Z$1,Program_Retention[Year],'Report - GR'!$B166,Program_Retention[Semester],'Report - GR'!$C166,Program_Retention[At_years],$T$128)/$D166,"-") -> 0.5 | Q166: =IFERROR(SUMIFS(Program_Retention[WCU_Retain],Program_Retention[program_code],'Report - GR'!$Z$1,Program_Retention[Year],'Report - GR'!$B166,Program_Retention[Semester],'Report - GR'!$C166,Program_Retention[At_years],$T$128)/$D166,"-") -> 0.05555555556 | R166: =IFERROR(SUMIFS(Program_Retention[WCU_Grad],Program_Retention[program_code],'Report - GR'!$Z$1,Program_Retention[Year],'Report - GR'!$B166,Program_Retention[Semester],'Report - GR'!$C166,Program_Retention[At_years],$T$128)/$D166,"-") -> 0 | S166: =IFERROR(SUMIFS(Program_Retention[Not_Retained],Program_Retention[program_code],'Report - GR'!$Z$1,Program_Retention[Year],'Report - GR'!$B166,Program_Retention[Semester],'Report - GR'!$C166,Program_Retention[At_years],$T$128)/$D166,"-") -> 0.2222222222 | T166: =SUM(O166:S166) -> 1 | W166: =IFERROR(SUMIFS(Program_Retention[Program_Retain],Program_Retention[program_code],'Report - GR'!$Z$1,Program_Retention[Year],'Report - GR'!$B166,Program_Retention[Semester],'Report - GR'!$C166,Program_Retention[At_years],$AB$128)/$D166,"-") -> 0.1666666667 | X166: =IFERROR(SUMIFS(Program_Retention[Program_Grad],Program_Retention[program_code],'Report - GR'!$Z$1,Program_Retention[Year],'Report - GR'!$B166,Program_Retention[Semester],'Report - GR'!$C166,Program_Retention[At_years],$AB$128)/$D166,"-") -> 0.6111111111 | Y166: =IFERROR(SUMIFS(Program_Retention[WCU_Retain],Program_Retention[program_code],'Report - GR'!$Z$1,Program_Retention[Year],'Report - GR'!$B166,Program_Retention[Semester],'Report - GR'!$C166,Program_Retention[At_years],$AB$128)/$D166,"-") -> 0.05555555556 | Z166: =IFERROR(SUMIFS(Program_Retention[WCU_Grad],Program_Retention[program_code],'Report - GR'!$Z$1,Program_Retention[Year],'Report - GR'!$B166,Program_Retention[Semester],'Report - GR'!$C166,Program_Retention[At_years],$AB$128)/$D166,"-") -> 0 | AA166: =IFERROR(SUMIFS(Program_Retention[Not_Retained],Program_Retention[program_code],'Report - GR'!$Z$1,Program_Retention[Year],'Report - GR'!$B166,Program_Retention[Semester],'Report - GR'!$C166,Program_Retention[At_years],$AB$128)/$D166,"-") -> 0.1666666667 | AB166: =SUM(W166:AA166) -> 1 | AE166: =IFERROR(SUMIFS(Program_Retention[Program_Retain],Program_Retention[program_code],'Report - GR'!$Z$1,Program_Retention[Year],'Report - GR'!$B166,Program_Retention[Semester],'Report - GR'!$C166,Program_Retention[At_years],$AJ$128)/$D166,"-") -> 0 | AF166: =IFERROR(SUMIFS(Program_Retention[Program_Grad],Program_Retention[program_code],'Report - GR'!$Z$1,Program_Retention[Year],'Report - GR'!$B166,Program_Retention[Semester],'Report - GR'!$C166,Program_Retention[At_years],$AJ$128)/$D166,"-") -> 0 | AG166: =IFERROR(SUMIFS(Program_Retention[WCU_Retain],Program_Retention[program_code],'Report - GR'!$Z$1,Program_Retention[Year],'Report - GR'!$B166,Program_Retention[Semester],'Report - GR'!$C166,Program_Retention[At_years],$AJ$128)/$D166,"-") -> 0 | AH166: =IFERROR(SUMIFS(Program_Retention[WCU_Grad],Program_Retention[program_code],'Report - GR'!$Z$1,Program_Retention[Year],'Report - GR'!$B166,Program_Retention[Semester],'Report - GR'!$C166,Program_Retention[At_years],$AJ$128)/$D166,"-") -> 0 | AI166: =IFERROR(SUMIFS(Program_Retention[Not_Retained],Program_Retention[program_code],'Report - GR'!$Z$1,Program_Retention[Year],'Report - GR'!$B166,Program_Retention[Semester],'Report - GR'!$C166,Program_Retention[At_years],$AJ$128)/$D166,"-") -> 0 | AJ166: =SUM(AE166:AI166) -> 0 | AM166: =IFERROR(SUMIFS(Program_Retention[Program_Retain],Program_Retention[program_code],'Report - GR'!$Z$1,Program_Retention[Year],'Report - GR'!$B166,Program_Retention[Semester],'Report - GR'!$C166,Program_Retention[At_years],$AR$128)/$D166,"-") -> 0 | AN166: =IFERROR(SUMIFS(Program_Retention[Program_Grad],Program_Retention[program_code],'Report - GR'!$Z$1,Program_Retention[Year],'Report - GR'!$B166,Program_Retention[Semester],'Report - GR'!$C166,Program_Retention[At_years],$AR$128)/$D166,"-") -> 0 | AO166: =IFERROR(SUMIFS(Program_Retention[WCU_Retain],Program_Retention[program_code],'Report - GR'!$Z$1,Program_Retention[Year],'Report - GR'!$B166,Program_Retention[Semester],'Report - GR'!$C166,Program_Retention[At_years],$AR$128)/$D166,"-") -> 0 | AP166: =IFERROR(SUMIFS(Program_Retention[WCU_Grad],Program_Retention[program_code],'Report - GR'!$Z$1,Program_Retention[Year],'Report - GR'!$B166,Program_Retention[Semester],'Report - GR'!$C166,Program_Retention[At_years],$AR$128)/$D166,"-") -> 0 | AQ166: =IFERROR(SUMIFS(Program_Retention[Not_Retained],Program_Retention[program_code],'Report - GR'!$Z$1,Program_Retention[Year],'Report - GR'!$B166,Program_Retention[Semester],'Report - GR'!$C166,Program_Retention[At_years],$AR$128)/$D166,"-") -> 0 | AR166: =SUM(AM166:AQ166) -> 0
B167: 2009 | C167: Spring | D167: =SUMIFS(Program_Retention[Cohort_Count],Program_Retention[program_code],'Report - GR'!$Z$1,Program_Retention[Year],'Report - GR'!$B167,Program_Retention[Semester],'Report - GR'!$C167,Program_Retention[At_years],$D$128) -> 7 | G167: =IFERROR(SUMIFS(Program_Retention[Program_Retain],Program_Retention[program_code],'Report - GR'!$Z$1,Program_Retention[Year],'Report - GR'!$B167,Program_Retention[Semester],'Report - GR'!$C167,Program_Retention[At_years],$L$128)/$D167,"-") -> 0.5714285714 | H167: =IFERROR(SUMIFS(Program_Retention[Program_Grad],Program_Retention[program_code],'Report - GR'!$Z$1,Program_Retention[Year],'Report - GR'!$B167,Program_Retention[Semester],'Report - GR'!$C167,Program_Retention[At_years],$L$128)/$D167,"-") -> 0 | I167: =IFERROR(SUMIFS(Program_Retention[WCU_Retain],Program_Retention[program_code],'Report - GR'!$Z$1,Program_Retention[Year],'Report - GR'!$B167,Program_Retention[Semester],'Report - GR'!$C167,Program_Retention[At_years],$L$128)/$D167,"-") -> 0 | J167: =IFERROR(SUMIFS(Program_Retention[WCU_Grad],Program_Retention[program_code],'Report - GR'!$Z$1,Program_Retention[Year],'Report - GR'!$B167,Program_Retention[Semester],'Report - GR'!$C167,Program_Retention[At_years],$L$128)/$D167,"-") -> 0 | K167: =IFERROR(SUMIFS(Program_Retention[Not_Retained],Program_Retention[program_code],'Report - GR'!$Z$1,Program_Retention[Year],'Report - GR'!$B167,Program_Retention[Semester],'Report - GR'!$C167,Program_Retention[At_years],$L$128)/$D167,"-") -> 0.4285714286 | L167: =SUM(G167:K167) -> 1 | O167: =IFERROR(SUMIFS(Program_Retention[Program_Retain],Program_Retention[program_code],'Report - GR'!$Z$1,Program_Retention[Year],'Report - GR'!$B167,Program_Retention[Semester],'Report - GR'!$C167,Program_Retention[At_years],$T$128)/$D167,"-") -> 0.5714285714 | P167: =IFERROR(SUMIFS(Program_Retention[Program_Grad],Program_Retention[program_code],'Report - GR'!$Z$1,Program_Retention[Year],'Report - GR'!$B167,Program_Retention[Semester],'Report - GR'!$C167,Program_Retention[At_years],$T$128)/$D167,"-") -> 0.1428571429 | Q167: =IFERROR(SUMIFS(Program_Retention[WCU_Retain],Program_Retention[program_code],'Report - GR'!$Z$1,Program_Retention[Year],'Report - GR'!$B167,Program_Retention[Semester],'Report - GR'!$C167,Program_Retention[At_years],$T$128)/$D167,"-") -> 0 | R167: =IFERROR(SUMIFS(Program_Retention[WCU_Grad],Program_Retention[program_code],'Report - GR'!$Z$1,Program_Retention[Year],'Report - GR'!$B167,Program_Retention[Semester],'Report - GR'!$C167,Program_Retention[At_years],$T$128)/$D167,"-") -> 0 | S167: =IFERROR(SUMIFS(Program_Retention[Not_Retained],Program_Retention[program_code],'Report - GR'!$Z$1,Program_Retention[Year],'Report - GR'!$B167,Program_Retention[Semester],'Report - GR'!$C167,Program_Retention[At_years],$T$128)/$D167,"-") -> 0.2857142857 | T167: =SUM(O167:S167) -> 1 | W167: =IFERROR(SUMIFS(Program_Retention[Program_Retain],Program_Retention[program_code],'Report - GR'!$Z$1,Program_Retention[Year],'Report - GR'!$B167,Program_Retention[Semester],'Report - GR'!$C167,Program_Retention[At_years],$AB$128)/$D167,"-") -> 0.2857142857 | X167: =IFERROR(SUMIFS(Program_Retention[Program_Grad],Program_Retention[program_code],'Report - GR'!$Z$1,Program_Retention[Year],'Report - GR'!$B167,Program_Retention[Semester],'Report - GR'!$C167,Program_Retention[At_years],$AB$128)/$D167,"-") -> 0.4285714286 | Y167: =IFERROR(SUMIFS(Program_Retention[WCU_Retain],Program_Retention[program_code],'Report - GR'!$Z$1,Program_Retention[Year],'Report - GR'!$B167,Program_Retention[Semester],'Report - GR'!$C167,Program_Retention[At_years],$AB$128)/$D167,"-") -> 0 | Z167: =IFERROR(SUMIFS(Program_Retention[WCU_Grad],Program_Retention[program_code],'Report - GR'!$Z$1,Program_Retention[Year],'Report - GR'!$B167,Program_Retention[Semester],'Report - GR'!$C167,Program_Retention[At_years],$AB$128)/$D167,"-") -> 0 | AA167: =IFERROR(SUMIFS(Program_Retention[Not_Retained],Program_Retention[program_code],'Report - GR'!$Z$1,Program_Retention[Year],'Report - GR'!$B167,Program_Retention[Semester],'Report - GR'!$C167,Program_Retention[At_years],$AB$128)/$D167,"-") -> 0.2857142857 | AB167: =SUM(W167:AA167) -> 1 | AE167: =IFERROR(SUMIFS(Program_Retention[Program_Retain],Program_Retention[program_code],'Report - GR'!$Z$1,Program_Retention[Year],'Report - GR'!$B167,Program_Retention[Semester],'Report - GR'!$C167,Program_Retention[At_years],$AJ$128)/$D167,"-") -> 0 | AF167: =IFERROR(SUMIFS(Program_Retention[Program_Grad],Program_Retention[program_code],'Report - GR'!$Z$1,Program_Retention[Year],'Report - GR'!$B167,Program_Retention[Semester],'Report - GR'!$C167,Program_Retention[At_years],$AJ$128)/$D167,"-") -> 0 | AG167: =IFERROR(SUMIFS(Program_Retention[WCU_Retain],Program_Retention[program_code],'Report - GR'!$Z$1,Program_Retention[Year],'Report - GR'!$B167,Program_Retention[Semester],'Report - GR'!$C167,Program_Retention[At_years],$AJ$128)/$D167,"-") -> 0 | AH167: =IFERROR(SUMIFS(Program_Retention[WCU_Grad],Program_Retention[program_code],'Report - GR'!$Z$1,Program_Retention[Year],'Report - GR'!$B167,Program_Retention[Semester],'Report - GR'!$C167,Program_Retention[At_years],$AJ$128)/$D167,"-") -> 0 | AI167: =IFERROR(SUMIFS(Program_Retention[Not_Retained],Program_Retention[program_code],'Report - GR'!$Z$1,Program_Retention[Year],'Report - GR'!$B167,Program_Retention[Semester],'Report - GR'!$C167,Program_Retention[At_years],$AJ$128)/$D167,"-") -> 0 | AJ167: =SUM(AE167:AI167) -> 0 | AM167: =IFERROR(SUMIFS(Program_Retention[Program_Retain],Program_Retention[program_code],'Report - GR'!$Z$1,Program_Retention[Year],'Report - GR'!$B167,Program_Retention[Semester],'Report - GR'!$C167,Program_Retention[At_years],$AR$128)/$D167,"-") -> 0 | AN167: =IFERROR(SUMIFS(Program_Retention[Program_Grad],Program_Retention[program_code],'Report - GR'!$Z$1,Program_Retention[Year],'Report - GR'!$B167,Program_Retention[Semester],'Report - GR'!$C167,Program_Retention[At_years],$AR$128)/$D167,"-") -> 0 | AO167: =IFERROR(SUMIFS(Program_Retention[WCU_Retain],Program_Retention[program_code],'Report - GR'!$Z$1,Program_Retention[Year],'Report - GR'!$B167,Program_Retention[Semester],'Report - GR'!$C167,Program_Retention[At_years],$AR$128)/$D167,"-") -> 0 | AP167: =IFERROR(SUMIFS(Program_Retention[WCU_Grad],Program_Retention[program_code],'Report - GR'!$Z$1,Program_Retention[Year],'Report - GR'!$B167,Program_Retention[Semester],'Report - GR'!$C167,Program_Retention[At_years],$AR$128)/$D167,"-") -> 0 | AQ167: =IFERROR(SUMIFS(Program_Retention[Not_Retained],Program_Retention[program_code],'Report - GR'!$Z$1,Program_Retention[Year],'Report - GR'!$B167,Program_Retention[Semester],'Report - GR'!$C167,Program_Retention[At_years],$AR$128)/$D167,"-") -> 0 | AR167: =SUM(AM167:AQ167) -> 0
B169: 2009 | C169: Fall | D169: =SUMIFS(Program_Retention[Cohort_Count],Program_Retention[program_code],'Report - GR'!$Z$1,Program_Retention[Year],'Report - GR'!$B169,Program_Retention[Semester],'Report - GR'!$C169,Program_Retention[At_years],$D$128) -> 15 | G169: =IFERROR(SUMIFS(Program_Retention[Program_Retain],Program_Retention[program_code],'Report - GR'!$Z$1,Program_Retention[Year],'Report - GR'!$B169,Program_Retention[Semester],'Report - GR'!$C169,Program_Retention[At_years],$L$128)/$D169,"-") -> 0.8 | H169: =IFERROR(SUMIFS(Program_Retention[Program_Grad],Program_Retention[program_code],'Report - GR'!$Z$1,Program_Retention[Year],'Report - GR'!$B169,Program_Retention[Semester],'Report - GR'!$C169,Program_Retention[At_years],$L$128)/$D169,"-") -> 0 | I169: =IFERROR(SUMIFS(Program_Retention[WCU_Retain],Program_Retention[program_code],'Report - GR'!$Z$1,Program_Retention[Year],'Report - GR'!$B169,Program_Retention[Semester],'Report - GR'!$C169,Program_Retention[At_years],$L$128)/$D169,"-") -> 0.06666666667 | J169: =IFERROR(SUMIFS(Program_Retention[WCU_Grad],Program_Retention[program_code],'Report - GR'!$Z$1,Program_Retention[Year],'Report - GR'!$B169,Program_Retention[Semester],'Report - GR'!$C169,Program_Retention[At_years],$L$128)/$D169,"-") -> 0 | K169: =IFERROR(SUMIFS(Program_Retention[Not_Retained],Program_Retention[program_code],'Report - GR'!$Z$1,Program_Retention[Year],'Report - GR'!$B169,Program_Retention[Semester],'Report - GR'!$C169,Program_Retention[At_years],$L$128)/$D169,"-") -> 0.1333333333 | L169: =SUM(G169:K169) -> 1 | O169: =IFERROR(SUMIFS(Program_Retention[Program_Retain],Program_Retention[program_code],'Report - GR'!$Z$1,Program_Retention[Year],'Report - GR'!$B169,Program_Retention[Semester],'Report - GR'!$C169,Program_Retention[At_years],$T$128)/$D169,"-") -> 0.2666666667 | P169: =IFERROR(SUMIFS(Program_Retention[Program_Grad],Program_Retention[program_code],'Report - GR'!$Z$1,Program_Retention[Year],'Report - GR'!$B169,Program_Retention[Semester],'Report - GR'!$C169,Program_Retention[At_years],$T$128)/$D169,"-") -> 0.5333333333 | Q169: =IFERROR(SUMIFS(Program_Retention[WCU_Retain],Program_Retention[program_code],'Report - GR'!$Z$1,Program_Retention[Year],'Report - GR'!$B169,Program_Retention[Semester],'Report - GR'!$C169,Program_Retention[At_years],$T$128)/$D169,"-") -> 0 | R169: =IFERROR(SUMIFS(Program_Retention[WCU_Grad],Program_Retention[program_code],'Report - GR'!$Z$1,Program_Retention[Year],'Report - GR'!$B169,Program_Retention[Semester],'Report - GR'!$C169,Program_Retention[At_years],$T$128)/$D169,"-") -> 0.06666666667 | S169: =IFERROR(SUMIFS(Program_Retention[Not_Retained],Program_Retention[program_code],'Report - GR'!$Z$1,Program_Retention[Year],'Report - GR'!$B169,Program_Retention[Semester],'Report - GR'!$C169,Program_Retention[At_years],$T$128)/$D169,"-") -> 0.1333333333 | T169: =SUM(O169:S169) -> 1 | W169: =IFERROR(SUMIFS(Program_Retention[Program_Retain],Program_Retention[program_code],'Report - GR'!$Z$1,Program_Retention[Year],'Report - GR'!$B169,Program_Retention[Semester],'Report - GR'!$C169,Program_Retention[At_years],$AB$128)/$D169,"-") -> 0 | X169: =IFERROR(SUMIFS(Program_Retention[Program_Grad],Program_Retention[program_code],'Report - GR'!$Z$1,Program_Retention[Year],'Report - GR'!$B169,Program_Retention[Semester],'Report - GR'!$C169,Program_Retention[At_years],$AB$128)/$D169,"-") -> 0 | Y169: =IFERROR(SUMIFS(Program_Retention[WCU_Retain],Program_Retention[program_code],'Report - GR'!$Z$1,Program_Retention[Year],'Report - GR'!$B169,Program_Retention[Semester],'Report - GR'!$C169,Program_Retention[At_years],$AB$128)/$D169,"-") -> 0 | Z169: =IFERROR(SUMIFS(Program_Retention[WCU_Grad],Program_Retention[program_code],'Report - GR'!$Z$1,Program_Retention[Year],'Report - GR'!$B169,Program_Retention[Semester],'Report - GR'!$C169,Program_Retention[At_years],$AB$128)/$D169,"-") -> 0 | AA169: =IFERROR(SUMIFS(Program_Retention[Not_Retained],Program_Retention[program_code],'Report - GR'!$Z$1,Program_Retention[Year],'Report - GR'!$B169,Program_Retention[Semester],'Report - GR'!$C169,Program_Retention[At_years],$AB$128)/$D169,"-") -> 0 | AB169: =SUM(W169:AA169) -> 0 | AE169: =IFERROR(SUMIFS(Program_Retention[Program_Retain],Program_Retention[program_code],'Report - GR'!$Z$1,Program_Retention[Year],'Report - GR'!$B169,Program_Retention[Semester],'Report - GR'!$C169,Program_Retention[At_years],$AJ$128)/$D169,"-") -> 0 | AF169: =IFERROR(SUMIFS(Program_Retention[Program_Grad],Program_Retention[program_code],'Report - GR'!$Z$1,Program_Retention[Year],'Report - GR'!$B169,Program_Retention[Semester],'Report - GR'!$C169,Program_Retention[At_years],$AJ$128)/$D169,"-") -> 0 | AG169: =IFERROR(SUMIFS(Program_Retention[WCU_Retain],Program_Retention[program_code],'Report - GR'!$Z$1,Program_Retention[Year],'Report - GR'!$B169,Program_Retention[Semester],'Report - GR'!$C169,Program_Retention[At_years],$AJ$128)/$D169,"-") -> 0 | AH169: =IFERROR(SUMIFS(Program_Retention[WCU_Grad],Program_Retention[program_code],'Report - GR'!$Z$1,Program_Retention[Year],'Report - GR'!$B169,Program_Retention[Semester],'Report - GR'!$C169,Program_Retention[At_years],$AJ$128)/$D169,"-") -> 0 | AI169: =IFERROR(SUMIFS(Program_Retention[Not_Retained],Program_Retention[program_code],'Report - GR'!$Z$1,Program_Retention[Year],'Report - GR'!$B169,Program_Retention[Semester],'Report - GR'!$C169,Program_Retention[At_years],$AJ$128)/$D169,"-") -> 0 | AJ169: =SUM(AE169:AI169) -> 0 | AM169: =IFERROR(SUMIFS(Program_Retention[Program_Retain],Program_Retention[program_code],'Report - GR'!$Z$1,Program_Retention[Year],'Report - GR'!$B169,Program_Retention[Semester],'Report - GR'!$C169,Program_Retention[At_years],$AR$128)/$D169,"-") -> 0 | AN169: =IFERROR(SUMIFS(Program_Retention[Program_Grad],Program_Retention[program_code],'Report - GR'!$Z$1,Program_Retention[Year],'Report - GR'!$B169,Program_Retention[Semester],'Report - GR'!$C169,Program_Retention[At_years],$AR$128)/$D169,"-") -> 0 | AO169: =IFERROR(SUMIFS(Program_Retention[WCU_Retain],Program_Retention[program_code],'Report - GR'!$Z$1,Program_Retention[Year],'Report - GR'!$B169,Program_Retention[Semester],'Report - GR'!$C169,Program_Retention[At_years],$AR$128)/$D169,"-") -> 0 | AP169: =IFERROR(SUMIFS(Program_Retention[WCU_Grad],Program_Retention[program_code],'Report - GR'!$Z$1,Program_Retention[Year],'Report - GR'!$B169,Program_Retention[Semester],'Report - GR'!$C169,Program_Retention[At_years],$AR$128)/$D169,"-") -> 0 | AQ169: =IFERROR(SUMIFS(Program_Retention[Not_Retained],Program_Retention[program_code],'Report - GR'!$Z$1,Program_Retention[Year],'Report - GR'!$B169,Program_Retention[Semester],'Report - GR'!$C169,Program_Retention[At_years],$AR$128)/$D169,"-") -> 0 | AR169: =SUM(AM169:AQ169) -> 0
B170: 2010 | C170: Spring | D170: =SUMIFS(Program_Retention[Cohort_Count],Program_Retention[program_code],'Report - GR'!$Z$1,Program_Retention[Year],'Report - GR'!$B170,Program_Retention[Semester],'Report - GR'!$C170,Program_Retention[At_years],$D$128) -> 3 | G170: =IFERROR(SUMIFS(Program_Retention[Program_Retain],Program_Retention[program_code],'Report - GR'!$Z$1,Program_Retention[Year],'Report - GR'!$B170,Program_Retention[Semester],'Report - GR'!$C170,Program_Retention[At_years],$L$128)/$D170,"-") -> 0.6666666667 | H170: =IFERROR(SUMIFS(Program_Retention[Program_Grad],Program_Retention[program_code],'Report - GR'!$Z$1,Program_Retention[Year],'Report - GR'!$B170,Program_Retention[Semester],'Report - GR'!$C170,Program_Retention[At_years],$L$128)/$D170,"-") -> 0 | I170: =IFERROR(SUMIFS(Program_Retention[WCU_Retain],Program_Retention[program_code],'Report - GR'!$Z$1,Program_Retention[Year],'Report - GR'!$B170,Program_Retention[Semester],'Report - GR'!$C170,Program_Retention[At_years],$L$128)/$D170,"-") -> 0 | J170: =IFERROR(SUMIFS(Program_Retention[WCU_Grad],Program_Retention[program_code],'Report - GR'!$Z$1,Program_Retention[Year],'Report - GR'!$B170,Program_Retention[Semester],'Report - GR'!$C170,Program_Retention[At_years],$L$128)/$D170,"-") -> 0 | K170: =IFERROR(SUMIFS(Program_Retention[Not_Retained],Program_Retention[program_code],'Report - GR'!$Z$1,Program_Retention[Year],'Report - GR'!$B170,Program_Retention[Semester],'Report - GR'!$C170,Program_Retention[At_years],$L$128)/$D170,"-") -> 0.3333333333 | L170: =SUM(G170:K170) -> 1 | O170: =IFERROR(SUMIFS(Program_Retention[Program_Retain],Program_Retention[program_code],'Report - GR'!$Z$1,Program_Retention[Year],'Report - GR'!$B170,Program_Retention[Semester],'Report - GR'!$C170,Program_Retention[At_years],$T$128)/$D170,"-") -> 0.6666666667 | P170: =IFERROR(SUMIFS(Program_Retention[Program_Grad],Program_Retention[program_code],'Report - GR'!$Z$1,Program_Retention[Year],'Report - GR'!$B170,Program_Retention[Semester],'Report - GR'!$C170,Program_Retention[At_years],$T$128)/$D170,"-") -> 0 | Q170: =IFERROR(SUMIFS(Program_Retention[WCU_Retain],Program_Retention[program_code],'Report - GR'!$Z$1,Program_Retention[Year],'Report - GR'!$B170,Program_Retention[Semester],'Report - GR'!$C170,Program_Retention[At_years],$T$128)/$D170,"-") -> 0 | R170: =IFERROR(SUMIFS(Program_Retention[WCU_Grad],Program_Retention[program_code],'Report - GR'!$Z$1,Program_Retention[Year],'Report - GR'!$B170,Program_Retention[Semester],'Report - GR'!$C170,Program_Retention[At_years],$T$128)/$D170,"-") -> 0 | S170: =IFERROR(SUMIFS(Program_Retention[Not_Retained],Program_Retention[program_code],'Report - GR'!$Z$1,Program_Retention[Year],'Report - GR'!$B170,Program_Retention[Semester],'Report - GR'!$C170,Program_Retention[At_years],$T$128)/$D170,"-") -> 0.3333333333 | T170: =SUM(O170:S170) -> 1 | W170: =IFERROR(SUMIFS(Program_Retention[Program_Retain],Program_Retention[program_code],'Report - GR'!$Z$1,Program_Retention[Year],'Report - GR'!$B170,Program_Retention[Semester],'Report - GR'!$C170,Program_Retention[At_years],$AB$128)/$D170,"-") -> 0 | X170: =IFERROR(SUMIFS(Program_Retention[Program_Grad],Program_Retention[program_code],'Report - GR'!$Z$1,Program_Retention[Year],'Report - GR'!$B170,Program_Retention[Semester],'Report - GR'!$C170,Program_Retention[At_years],$AB$128)/$D170,"-") -> 0 | Y170: =IFERROR(SUMIFS(Program_Retention[WCU_Retain],Program_Retention[program_code],'Report - GR'!$Z$1,Program_Retention[Year],'Report - GR'!$B170,Program_Retention[Semester],'Report - GR'!$C170,Program_Retention[At_years],$AB$128)/$D170,"-") -> 0 | Z170: =IFERROR(SUMIFS(Program_Retention[WCU_Grad],Program_Retention[program_code],'Report - GR'!$Z$1,Program_Retention[Year],'Report - GR'!$B170,Program_Retention[Semester],'Report - GR'!$C170,Program_Retention[At_years],$AB$128)/$D170,"-") -> 0 | AA170: =IFERROR(SUMIFS(Program_Retention[Not_Retained],Program_Retention[program_code],'Report - GR'!$Z$1,Program_Retention[Year],'Report - GR'!$B170,Program_Retention[Semester],'Report - GR'!$C170,Program_Retention[At_years],$AB$128)/$D170,"-") -> 0 | AB170: =SUM(W170:AA170) -> 0 | AE170: =IFERROR(SUMIFS(Program_Retention[Program_Retain],Program_Retention[program_code],'Report - GR'!$Z$1,Program_Retention[Year],'Report - GR'!$B170,Program_Retention[Semester],'Report - GR'!$C170,Program_Retention[At_years],$AJ$128)/$D170,"-") -> 0 | AF170: =IFERROR(SUMIFS(Program_Retention[Program_Grad],Program_Retention[program_code],'Report - GR'!$Z$1,Program_Retention[Year],'Report - GR'!$B170,Program_Retention[Semester],'Report - GR'!$C170,Program_Retention[At_years],$AJ$128)/$D170,"-") -> 0 | AG170: =IFERROR(SUMIFS(Program_Retention[WCU_Retain],Program_Retention[program_code],'Report - GR'!$Z$1,Program_Retention[Year],'Report - GR'!$B170,Program_Retention[Semester],'Report - GR'!$C170,Program_Retention[At_years],$AJ$128)/$D170,"-") -> 0 | AH170: =IFERROR(SUMIFS(Program_Retention[WCU_Grad],Program_Retention[program_code],'Report - GR'!$Z$1,Program_Retention[Year],'Report - GR'!$B170,Program_Retention[Semester],'Report - GR'!$C170,Program_Retention[At_years],$AJ$128)/$D170,"-") -> 0 | AI170: =IFERROR(SUMIFS(Program_Retention[Not_Retained],Program_Retention[program_code],'Report - GR'!$Z$1,Program_Retention[Year],'Report - GR'!$B170,Program_Retention[Semester],'Report - GR'!$C170,Program_Retention[At_years],$AJ$128)/$D170,"-") -> 0 | AJ170: =SUM(AE170:AI170) -> 0 | AM170: =IFERROR(SUMIFS(Program_Retention[Program_Retain],Program_Retention[program_code],'Report - GR'!$Z$1,Program_Retention[Year],'Report - GR'!$B170,Program_Retention[Semester],'Report - GR'!$C170,Program_Retention[At_years],$AR$128)/$D170,"-") -> 0 | AN170: =IFERROR(SUMIFS(Program_Retention[Program_Grad],Program_Retention[program_code],'Report - GR'!$Z$1,Program_Retention[Year],'Report - GR'!$B170,Program_Retention[Semester],'Report - GR'!$C170,Program_Retention[At_years],$AR$128)/$D170,"-") -> 0 | AO170: =IFERROR(SUMIFS(Program_Retention[WCU_Retain],Program_Retention[program_code],'Report - GR'!$Z$1,Program_Retention[Year],'Report - GR'!$B170,Program_Retention[Semester],'Report - GR'!$C170,Program_Retention[At_years],$AR$128)/$D170,"-") -> 0 | AP170: =IFERROR(SUMIFS(Program_Retention[WCU_Grad],Program_Retention[program_code],'Report - GR'!$Z$1,Program_Retention[Year],'Report - GR'!$B170,Program_Retention[Semester],'Report - GR'!$C170,Program_Retention[At_years],$AR$128)/$D170,"-") -> 0 | AQ170: =IFERROR(SUMIFS(Program_Retention[Not_Retained],Program_Retention[program_code],'Report - GR'!$Z$1,Program_Retention[Year],'Report - GR'!$B170,Program_Retention[Semester],'Report - GR'!$C170,Program_Retention[At_years],$AR$128)/$D170,"-") -> 0 | AR170: =SUM(AM170:AQ170) -> 0
B172: 2010 | C172: Fall | D172: =SUMIFS(Program_Retention[Cohort_Count],Program_Retention[program_code],'Report - GR'!$Z$1,Program_Retention[Year],'Report - GR'!$B172,Program_Retention[Semester],'Report - GR'!$C172,Program_Retention[At_years],$D$128) -> 17 | G172: =IFERROR(SUMIFS(Program_Retention[Program_Retain],Program_Retention[program_code],'Report - GR'!$Z$1,Program_Retention[Year],'Report - GR'!$B172,Program_Retention[Semester],'Report - GR'!$C172,Program_Retention[At_years],$L$128)/$D172,"-") -> 0.7647058824 | H172: =IFERROR(SUMIFS(Program_Retention[Program_Grad],Program_Retention[program_code],'Report - GR'!$Z$1,Program_Retention[Year],'Report - GR'!$B172,Program_Retention[Semester],'Report - GR'!$C172,Program_Retention[At_years],$L$128)/$D172,"-") -> 0 | I172: =IFERROR(SUMIFS(Program_Retention[WCU_Retain],Program_Retention[program_code],'Report - GR'!$Z$1,Program_Retention[Year],'Report - GR'!$B172,Program_Retention[Semester],'Report - GR'!$C172,Program_Retention[At_years],$L$128)/$D172,"-") -> 0 | J172: =IFERROR(SUMIFS(Program_Retention[WCU_Grad],Program_Retention[program_code],'Report - GR'!$Z$1,Program_Retention[Year],'Report - GR'!$B172,Program_Retention[Semester],'Report - GR'!$C172,Program_Retention[At_years],$L$128)/$D172,"-") -> 0 | K172: =IFERROR(SUMIFS(Program_Retention[Not_Retained],Program_Retention[program_code],'Report - GR'!$Z$1,Program_Retention[Year],'Report - GR'!$B172,Program_Retention[Semester],'Report - GR'!$C172,Program_Retention[At_years],$L$128)/$D172,"-") -> 0.2352941176 | L172: =SUM(G172:K172) -> 1 | O172: =IFERROR(SUMIFS(Program_Retention[Program_Retain],Program_Retention[program_code],'Report - GR'!$Z$1,Program_Retention[Year],'Report - GR'!$B172,Program_Retention[Semester],'Report - GR'!$C172,Program_Retention[At_years],$T$128)/$D172,"-") -> 0 | P172: =IFERROR(SUMIFS(Program_Retention[Program_Grad],Program_Retention[program_code],'Report - GR'!$Z$1,Program_Retention[Year],'Report - GR'!$B172,Program_Retention[Semester],'Report - GR'!$C172,Program_Retention[At_years],$T$128)/$D172,"-") -> 0 | Q172: =IFERROR(SUMIFS(Program_Retention[WCU_Retain],Program_Retention[program_code],'Report - GR'!$Z$1,Program_Retention[Year],'Report - GR'!$B172,Program_Retention[Semester],'Report - GR'!$C172,Program_Retention[At_years],$T$128)/$D172,"-") -> 0 | R172: =IFERROR(SUMIFS(Program_Retention[WCU_Grad],Program_Retention[program_code],'Report - GR'!$Z$1,Program_Retention[Year],'Report - GR'!$B172,Program_Retention[Semester],'Report - GR'!$C172,Program_Retention[At_years],$T$128)/$D172,"-") -> 0 | S172: =IFERROR(SUMIFS(Program_Retention[Not_Retained],Program_Retention[program_code],'Report - GR'!$Z$1,Program_Retention[Year],'Report - GR'!$B172,Program_Retention[Semester],'Report - GR'!$C172,Program_Retention[At_years],$T$128)/$D172,"-") -> 0 | T172: =SUM(O172:S172) -> 0 | W172: =IFERROR(SUMIFS(Program_Retention[Program_Retain],Program_Retention[program_code],'Report - GR'!$Z$1,Program_Retention[Year],'Report - GR'!$B172,Program_Retention[Semester],'Report - GR'!$C172,Program_Retention[At_years],$AB$128)/$D172,"-") -> 0 | X172: =IFERROR(SUMIFS(Program_Retention[Program_Grad],Program_Retention[program_code],'Report - GR'!$Z$1,Program_Retention[Year],'Report - GR'!$B172,Program_Retention[Semester],'Report - GR'!$C172,Program_Retention[At_years],$AB$128)/$D172,"-") -> 0 | Y172: =IFERROR(SUMIFS(Program_Retention[WCU_Retain],Program_Retention[program_code],'Report - GR'!$Z$1,Program_Retention[Year],'Report - GR'!$B172,Program_Retention[Semester],'Report - GR'!$C172,Program_Retention[At_years],$AB$128)/$D172,"-") -> 0 | Z172: =IFERROR(SUMIFS(Program_Retention[WCU_Grad],Program_Retention[program_code],'Report - GR'!$Z$1,Program_Retention[Year],'Report - GR'!$B172,Program_Retention[Semester],'Report - GR'!$C172,Program_Retention[At_years],$AB$128)/$D172,"-") -> 0 | AA172: =IFERROR(SUMIFS(Program_Retention[Not_Retained],Program_Retention[program_code],'Report - GR'!$Z$1,Program_Retention[Year],'Report - GR'!$B172,Program_Retention[Semester],'Report - GR'!$C172,Program_Retention[At_years],$AB$128)/$D172,"-") -> 0 | AB172: =SUM(W172:AA172) -> 0 | AE172: =IFERROR(SUMIFS(Program_Retention[Program_Retain],Program_Retention[program_code],'Report - GR'!$Z$1,Program_Retention[Year],'Report - GR'!$B172,Program_Retention[Semester],'Report - GR'!$C172,Program_Retention[At_years],$AJ$128)/$D172,"-") -> 0 | AF172: =IFERROR(SUMIFS(Program_Retention[Program_Grad],Program_Retention[program_code],'Report - GR'!$Z$1,Program_Retention[Year],'Report - GR'!$B172,Program_Retention[Semester],'Report - GR'!$C172,Program_Retention[At_years],$AJ$128)/$D172,"-") -> 0 | AG172: =IFERROR(SUMIFS(Program_Retention[WCU_Retain],Program_Retention[program_code],'Report - GR'!$Z$1,Program_Retention[Year],'Report - GR'!$B172,Program_Retention[Semester],'Report - GR'!$C172,Program_Retention[At_years],$AJ$128)/$D172,"-") -> 0 | AH172: =IFERROR(SUMIFS(Program_Retention[WCU_Grad],Program_Retention[program_code],'Report - GR'!$Z$1,Program_Retention[Year],'Report - GR'!$B172,Program_Retention[Semester],'Report - GR'!$C172,Program_Retention[At_years],$AJ$128)/$D172,"-") -> 0 | AI172: =IFERROR(SUMIFS(Program_Retention[Not_Retained],Program_Retention[program_code],'Report - GR'!$Z$1,Program_Retention[Year],'Report - GR'!$B172,Program_Retention[Semester],'Report - GR'!$C172,Program_Retention[At_years],$AJ$128)/$D172,"-") -> 0 | AJ172: =SUM(AE172:AI172) -> 0 | AM172: =IFERROR(SUMIFS(Program_Retention[Program_Retain],Program_Retention[program_code],'Report - GR'!$Z$1,Program_Retention[Year],'Report - GR'!$B172,Program_Retention[Semester],'Report - GR'!$C172,Program_Retention[At_years],$AR$128)/$D172,"-") -> 0 | AN172: =IFERROR(SUMIFS(Program_Retention[Program_Grad],Program_Retention[program_code],'Report - GR'!$Z$1,Program_Retention[Year],'Report - GR'!$B172,Program_Retention[Semester],'Report - GR'!$C172,Program_Retention[At_years],$AR$128)/$D172,"-") -> 0 | AO172: =IFERROR(SUMIFS(Program_Retention[WCU_Retain],Program_Retention[program_code],'Report - GR'!$Z$1,Program_Retention[Year],'Report - GR'!$B172,Program_Retention[Semester],'Report - GR'!$C172,Program_Retention[At_years],$AR$128)/$D172,"-") -> 0 | AP172: =IFERROR(SUMIFS(Program_Retention[WCU_Grad],Program_Retention[program_code],'Report - GR'!$Z$1,Program_Retention[Year],'Report - GR'!$B172,Program_Retention[Semester],'Report - GR'!$C172,Program_Retention[At_years],$AR$128)/$D172,"-") -> 0 | AQ172: =IFERROR(SUMIFS(Program_Retention[Not_Retained],Program_Retention[program_code],'Report - GR'!$Z$1,Program_Retention[Year],'Report - GR'!$B172,Program_Retention[Semester],'Report - GR'!$C172,Program_Retention[At_years],$AR$128)/$D172,"-") -> 0 | AR172: =SUM(AM172:AQ172) -> 0
B173: 2011 | C173: Spring | D173: =SUMIFS(Program_Retention[Cohort_Count],Program_Retention[program_code],'Report - GR'!$Z$1,Program_Retention[Year],'Report - GR'!$B173,Program_Retention[Semester],'Report - GR'!$C173,Program_Retention[At_years],$D$128) -> 6 | G173: =IFERROR(SUMIFS(Program_Retention[Program_Retain],Program_Retention[program_code],'Report - GR'!$Z$1,Program_Retention[Year],'Report - GR'!$B173,Program_Retention[Semester],'Report - GR'!$C173,Program_Retention[At_years],$L$128)/$D173,"-") -> 0.5 | H173: =IFERROR(SUMIFS(Program_Retention[Program_Grad],Program_Retention[program_code],'Report - GR'!$Z$1,Program_Retention[Year],'Report - GR'!$B173,Program_Retention[Semester],'Report - GR'!$C173,Program_Retention[At_years],$L$128)/$D173,"-") -> 0 | I173: =IFERROR(SUMIFS(Program_Retention[WCU_Retain],Program_Retention[program_code],'Report - GR'!$Z$1,Program_Retention[Year],'Report - GR'!$B173,Program_Retention[Semester],'Report - GR'!$C173,Program_Retention[At_years],$L$128)/$D173,"-") -> 0 | J173: =IFERROR(SUMIFS(Program_Retention[WCU_Grad],Program_Retention[program_code],'Report - GR'!$Z$1,Program_Retention[Year],'Report - GR'!$B173,Program_Retention[Semester],'Report - GR'!$C173,Program_Retention[At_years],$L$128)/$D173,"-") -> 0 | K173: =IFERROR(SUMIFS(Program_Retention[Not_Retained],Program_Retention[program_code],'Report - GR'!$Z$1,Program_Retention[Year],'Report - GR'!$B173,Program_Retention[Semester],'Report - GR'!$C173,Program_Retention[At_years],$L$128)/$D173,"-") -> 0.5 | L173: =SUM(G173:K173) -> 1 | O173: =IFERROR(SUMIFS(Program_Retention[Program_Retain],Program_Retention[program_code],'Report - GR'!$Z$1,Program_Retention[Year],'Report - GR'!$B173,Program_Retention[Semester],'Report - GR'!$C173,Program_Retention[At_years],$T$128)/$D173,"-") -> 0 | P173: =IFERROR(SUMIFS(Program_Retention[Program_Grad],Program_Retention[program_code],'Report - GR'!$Z$1,Program_Retention[Year],'Report - GR'!$B173,Program_Retention[Semester],'Report - GR'!$C173,Program_Retention[At_years],$T$128)/$D173,"-") -> 0 | Q173: =IFERROR(SUMIFS(Program_Retention[WCU_Retain],Program_Retention[program_code],'Report - GR'!$Z$1,Program_Retention[Year],'Report - GR'!$B173,Program_Retention[Semester],'Report - GR'!$C173,Program_Retention[At_years],$T$128)/$D173,"-") -> 0 | R173: =IFERROR(SUMIFS(Program_Retention[WCU_Grad],Program_Retention[program_code],'Report - GR'!$Z$1,Program_Retention[Year],'Report - GR'!$B173,Program_Retention[Semester],'Report - GR'!$C173,Program_Retention[At_years],$T$128)/$D173,"-") -> 0 | S173: =IFERROR(SUMIFS(Program_Retention[Not_Retained],Program_Retention[program_code],'Report - GR'!$Z$1,Program_Retention[Year],'Report - GR'!$B173,Program_Retention[Semester],'Report - GR'!$C173,Program_Retention[At_years],$T$128)/$D173,"-") -> 0 | T173: =SUM(O173:S173) -> 0 | W173: =IFERROR(SUMIFS(Program_Retention[Program_Retain],Program_Retention[program_code],'Report - GR'!$Z$1,Program_Retention[Year],'Report - GR'!$B173,Program_Retention[Semester],'Report - GR'!$C173,Program_Retention[At_years],$AB$128)/$D173,"-") -> 0 | X173: =IFERROR(SUMIFS(Program_Retention[Program_Grad],Program_Retention[program_code],'Report - GR'!$Z$1,Program_Retention[Year],'Report - GR'!$B173,Program_Retention[Semester],'Report - GR'!$C173,Program_Retention[At_years],$AB$128)/$D173,"-") -> 0 | Y173: =IFERROR(SUMIFS(Program_Retention[WCU_Retain],Program_Retention[program_code],'Report - GR'!$Z$1,Program_Retention[Year],'Report - GR'!$B173,Program_Retention[Semester],'Report - GR'!$C173,Program_Retention[At_years],$AB$128)/$D173,"-") -> 0 | Z173: =IFERROR(SUMIFS(Program_Retention[WCU_Grad],Program_Retention[program_code],'Report - GR'!$Z$1,Program_Retention[Year],'Report - GR'!$B173,Program_Retention[Semester],'Report - GR'!$C173,Program_Retention[At_years],$AB$128)/$D173,"-") -> 0 | AA173: =IFERROR(SUMIFS(Program_Retention[Not_Retained],Program_Retention[program_code],'Report - GR'!$Z$1,Program_Retention[Year],'Report - GR'!$B173,Program_Retention[Semester],'Report - GR'!$C173,Program_Retention[At_years],$AB$128)/$D173,"-") -> 0 | AB173: =SUM(W173:AA173) -> 0 | AE173: =IFERROR(SUMIFS(Program_Retention[Program_Retain],Program_Retention[program_code],'Report - GR'!$Z$1,Program_Retention[Year],'Report - GR'!$B173,Program_Retention[Semester],'Report - GR'!$C173,Program_Retention[At_years],$AJ$128)/$D173,"-") -> 0 | AF173: =IFERROR(SUMIFS(Program_Retention[Program_Grad],Program_Retention[program_code],'Report - GR'!$Z$1,Program_Retention[Year],'Report - GR'!$B173,Program_Retention[Semester],'Report - GR'!$C173,Program_Retention[At_years],$AJ$128)/$D173,"-") -> 0 | AG173: =IFERROR(SUMIFS(Program_Retention[WCU_Retain],Program_Retention[program_code],'Report - GR'!$Z$1,Program_Retention[Year],'Report - GR'!$B173,Program_Retention[Semester],'Report - GR'!$C173,Program_Retention[At_years],$AJ$128)/$D173,"-") -> 0 | AH173: =IFERROR(SUMIFS(Program_Retention[WCU_Grad],Program_Retention[program_code],'Report - GR'!$Z$1,Program_Retention[Year],'Report - GR'!$B173,Program_Retention[Semester],'Report - GR'!$C173,Program_Retention[At_years],$AJ$128)/$D173,"-") -> 0 | AI173: =IFERROR(SUMIFS(Program_Retention[Not_Retained],Program_Retention[program_code],'Report - GR'!$Z$1,Program_Retention[Year],'Report - GR'!$B173,Program_Retention[Semester],'Report - GR'!$C173,Program_Retention[At_years],$AJ$128)/$D173,"-") -> 0 | AJ173: =SUM(AE173:AI173) -> 0 | AM173: =IFERROR(SUMIFS(Program_Retention[Program_Retain],Program_Retention[program_code],'Report - GR'!$Z$1,Program_Retention[Year],'Report - GR'!$B173,Program_Retention[Semester],'Report - GR'!$C173,Program_Retention[At_years],$AR$128)/$D173,"-") -> 0 | AN173: =IFERROR(SUMIFS(Program_Retention[Program_Grad],Program_Retention[program_code],'Report - GR'!$Z$1,Program_Retention[Year],'Report - GR'!$B173,Program_Retention[Semester],'Report - GR'!$C173,Program_Retention[At_years],$AR$128)/$D173,"-") -> 0 | AO173: =IFERROR(SUMIFS(Program_Retention[WCU_Retain],Program_Retention[program_code],'Report - GR'!$Z$1,Program_Retention[Year],'Report - GR'!$B173,Program_Retention[Semester],'Report - GR'!$C173,Program_Retention[At_years],$AR$128)/$D173,"-") -> 0 | AP173: =IFERROR(SUMIFS(Program_Retention[WCU_Grad],Program_Retention[program_code],'Report - GR'!$Z$1,Program_Retention[Year],'Report - GR'!$B173,Program_Retention[Semester],'Report - GR'!$C173,Program_Retention[At_years],$AR$128)/$D173,"-") -> 0 | AQ173: =IFERROR(SUMIFS(Program_Retention[Not_Retained],Program_Retention[program_code],'Report - GR'!$Z$1,Program_Retention[Year],'Report - GR'!$B173,Program_Retention[Semester],'Report - GR'!$C173,Program_Retention[At_years],$AR$128)/$D173,"-") -> 0 | AR173: =SUM(AM173:AQ173) -> 0
B175: 2011 | C175: Fall | D175: =SUMIFS(Program_Retention[Cohort_Count],Program_Retention[program_code],'Report - GR'!$Z$1,Program_Retention[Year],'Report - GR'!$B175,Program_Retention[Semester],'Report - GR'!$C175,Program_Retention[At_years],$D$128) -> 9 | G175: =IFERROR(SUMIFS(Program_Retention[Program_Retain],Program_Retention[program_code],'Report - GR'!$Z$1,Program_Retention[Year],'Report - GR'!$B175,Program_Retention[Semester],'Report - GR'!$C175,Program_Retention[At_years],$L$128)/$D175,"-") -> 0 | H175: =IFERROR(SUMIFS(Program_Retention[Program_Grad],Program_Retention[program_code],'Report - GR'!$Z$1,Program_Retention[Year],'Report - GR'!$B175,Program_Retention[Semester],'Report - GR'!$C175,Program_Retention[At_years],$L$128)/$D175,"-") -> 0 | I175: =IFERROR(SUMIFS(Program_Retention[WCU_Retain],Program_Retention[program_code],'Report - GR'!$Z$1,Program_Retention[Year],'Report - GR'!$B175,Program_Retention[Semester],'Report - GR'!$C175,Program_Retention[At_years],$L$128)/$D175,"-") -> 0 | J175: =IFERROR(SUMIFS(Program_Retention[WCU_Grad],Program_Retention[program_code],'Report - GR'!$Z$1,Program_Retention[Year],'Report - GR'!$B175,Program_Retention[Semester],'Report - GR'!$C175,Program_Retention[At_years],$L$128)/$D175,"-") -> 0 | K175: =IFERROR(SUMIFS(Program_Retention[Not_Retained],Program_Retention[program_code],'Report - GR'!$Z$1,Program_Retention[Year],'Report - GR'!$B175,Program_Retention[Semester],'Report - GR'!$C175,Program_Retention[At_years],$L$128)/$D175,"-") -> 0 | L175: =SUM(G175:K175) -> 0 | O175: =IFERROR(SUMIFS(Program_Retention[Program_Retain],Program_Retention[program_code],'Report - GR'!$Z$1,Program_Retention[Year],'Report - GR'!$B175,Program_Retention[Semester],'Report - GR'!$C175,Program_Retention[At_years],$T$128)/$D175,"-") -> 0 | P175: =IFERROR(SUMIFS(Program_Retention[Program_Grad],Program_Retention[program_code],'Report - GR'!$Z$1,Program_Retention[Year],'Report - GR'!$B175,Program_Retention[Semester],'Report - GR'!$C175,Program_Retention[At_years],$T$128)/$D175,"-") -> 0 | Q175: =IFERROR(SUMIFS(Program_Retention[WCU_Retain],Program_Retention[program_code],'Report - GR'!$Z$1,Program_Retention[Year],'Report - GR'!$B175,Program_Retention[Semester],'Report - GR'!$C175,Program_Retention[At_years],$T$128)/$D175,"-") -> 0 | R175: =IFERROR(SUMIFS(Program_Retention[WCU_Grad],Program_Retention[program_code],'Report - GR'!$Z$1,Program_Retention[Year],'Report - GR'!$B175,Program_Retention[Semester],'Report - GR'!$C175,Program_Retention[At_years],$T$128)/$D175,"-") -> 0 | S175: =IFERROR(SUMIFS(Program_Retention[Not_Retained],Program_Retention[program_code],'Report - GR'!$Z$1,Program_Retention[Year],'Report - GR'!$B175,Program_Retention[Semester],'Report - GR'!$C175,Program_Retention[At_years],$T$128)/$D175,"-") -> 0 | T175: =SUM(O175:S175) -> 0 | W175: =IFERROR(SUMIFS(Program_Retention[Program_Retain],Program_Retention[program_code],'Report - GR'!$Z$1,Program_Retention[Year],'Report - GR'!$B175,Program_Retention[Semester],'Report - GR'!$C175,Program_Retention[At_years],$AB$128)/$D175,"-") -> 0 | X175: =IFERROR(SUMIFS(Program_Retention[Program_Grad],Program_Retention[program_code],'Report - GR'!$Z$1,Program_Retention[Year],'Report - GR'!$B175,Program_Retention[Semester],'Report - GR'!$C175,Program_Retention[At_years],$AB$128)/$D175,"-") -> 0 | Y175: =IFERROR(SUMIFS(Program_Retention[WCU_Retain],Program_Retention[program_code],'Report - GR'!$Z$1,Program_Retention[Year],'Report - GR'!$B175,Program_Retention[Semester],'Report - GR'!$C175,Program_Retention[At_years],$AB$128)/$D175,"-") -> 0 | Z175: =IFERROR(SUMIFS(Program_Retention[WCU_Grad],Program_Retention[program_code],'Report - GR'!$Z$1,Program_Retention[Year],'Report - GR'!$B175,Program_Retention[Semester],'Report - GR'!$C175,Program_Retention[At_years],$AB$128)/$D175,"-") -> 0 | AA175: =IFERROR(SUMIFS(Program_Retention[Not_Retained],Program_Retention[program_code],'Report - GR'!$Z$1,Program_Retention[Year],'Report - GR'!$B175,Program_Retention[Semester],'Report - GR'!$C175,Program_Retention[At_years],$AB$128)/$D175,"-") -> 0 | AB175: =SUM(W175:AA175) -> 0 | AE175: =IFERROR(SUMIFS(Program_Retention[Program_Retain],Program_Retention[program_code],'Report - GR'!$Z$1,Program_Retention[Year],'Report - GR'!$B175,Program_Retention[Semester],'Report - GR'!$C175,Program_Retention[At_years],$AJ$128)/$D175,"-") -> 0 | AF175: =IFERROR(SUMIFS(Program_Retention[Program_Grad],Program_Retention[program_code],'Report - GR'!$Z$1,Program_Retention[Year],'Report - GR'!$B175,Program_Retention[Semester],'Report - GR'!$C175,Program_Retention[At_years],$AJ$128)/$D175,"-") -> 0 | AG175: =IFERROR(SUMIFS(Program_Retention[WCU_Retain],Program_Retention[program_code],'Report - GR'!$Z$1,Program_Retention[Year],'Report - GR'!$B175,Program_Retention[Semester],'Report - GR'!$C175,Program_Retention[At_years],$AJ$128)/$D175,"-") -> 0 | AH175: =IFERROR(SUMIFS(Program_Retention[WCU_Grad],Program_Retention[program_code],'Report - GR'!$Z$1,Program_Retention[Year],'Report - GR'!$B175,Program_Retention[Semester],'Report - GR'!$C175,Program_Retention[At_years],$AJ$128)/$D175,"-") -> 0 | AI175: =IFERROR(SUMIFS(Program_Retention[Not_Retained],Program_Retention[program_code],'Report - GR'!$Z$1,Program_Retention[Year],'Report - GR'!$B175,Program_Retention[Semester],'Report - GR'!$C175,Program_Retention[At_years],$AJ$128)/$D175,"-") -> 0 | AJ175: =SUM(AE175:AI175) -> 0 | AM175: =IFERROR(SUMIFS(Program_Retention[Program_Retain],Program_Retention[program_code],'Report - GR'!$Z$1,Program_Retention[Year],'Report - GR'!$B175,Program_Retention[Semester],'Report - GR'!$C175,Program_Retention[At_years],$AR$128)/$D175,"-") -> 0 | AN175: =IFERROR(SUMIFS(Program_Retention[Program_Grad],Program_Retention[program_code],'Report - GR'!$Z$1,Program_Retention[Year],'Report - GR'!$B175,Program_Retention[Semester],'Report - GR'!$C175,Program_Retention[At_years],$AR$128)/$D175,"-") -> 0 | AO175: =IFERROR(SUMIFS(Program_Retention[WCU_Retain],Program_Retention[program_code],'Report - GR'!$Z$1,Program_Retention[Year],'Report - GR'!$B175,Program_Retention[Semester],'Report - GR'!$C175,Program_Retention[At_years],$AR$128)/$D175,"-") -> 0 | AP175: =IFERROR(SUMIFS(Program_Retention[WCU_Grad],Program_Retention[program_code],'Report - GR'!$Z$1,Program_Retention[Year],'Report - GR'!$B175,Program_Retention[Semester],'Report - GR'!$C175,Program_Retention[At_years],$AR$128)/$D175,"-") -> 0 | AQ175: =IFERROR(SUMIFS(Program_Retention[Not_Retained],Program_Retention[program_code],'Report - GR'!$Z$1,Program_Retention[Year],'Report - GR'!$B175,Program_Retention[Semester],'Report - GR'!$C175,Program_Retention[At_years],$AR$128)/$D175,"-") -> 0 | AR175: =SUM(AM175:AQ175) -> 0

Sheet Process - GR - Numbers
A1: Program: | B1: ='Report - GR'!Program_Code -> Grad1
C3: New Cohort | F3: @1 year | N3: @2 years | V3: @3 years | AD3: @4 years | AL3: @6 years
C4: 0.5 | K4: 1 | S4: 2 | AA4: 3 | AI4: 4 | AQ4: 6
A5: Year | B5: Semester | C5: New Cohort | F5: Prg Ret | G5: Prg Grad | H5: WCU Ret | I5: WCU Grad | J5: Not Retained | K5: Total | N5: Prg Ret | O5: Prg Grad | P5: WCU Ret | Q5: WCU Grad | R5: Not Retained | S5: Total | V5: Prg Ret | W5: Prg Grad | X5: WCU Ret | Y5: WCU Grad | Z5: Not Retained | AA5: Total | AD5: Prg Ret | AE5: Prg Grad | AF5: WCU Ret | AG5: WCU Grad | AH5: Not Retained | AI5: Total | AL5: Prg Ret | AM5: Prg Grad | AN5: WCU Ret | AO5: WCU Grad | AP5: Not Retained | AQ5: Total
A6: 1996 | B6: Fall | C6: =SUMIFS(Program_Retention[Cohort_Count],Program_Retention[program_code],$B$1,Program_Retention[Year],$A6,Program_Retention[Semester],$B6,Program_Retention[At_years],$C$4) -> 28 | F6: =IFERROR(SUMIFS(Program_Retention[Program_Retain],Program_Retention[program_code],$B$1,Program_Retention[Year],$A6,Program_Retention[Semester],$B6,Program_Retention[At_years],$K$4),"-") -> 15 | G6: =IFERROR(SUMIFS(Program_Retention[Program_Grad],Program_Retention[program_code],$B$1,Program_Retention[Year],$A6,Program_Retention[Semester],$B6,Program_Retention[At_years],$K$4),"-") -> 5 | H6: =IFERROR(SUMIFS(Program_Retention[WCU_Retain],Program_Retention[program_code],$B$1,Program_Retention[Year],$A6,Program_Retention[Semester],$B6,Program_Retention[At_years],$K$4),"-") -> 1 | I6: =IFERROR(SUMIFS(Program_Retention[WCU_Grad],Program_Retention[program_code],$B$1,Program_Retention[Year],$A6,Program_Retention[Semester],$B6,Program_Retention[At_years],$K$4),"-") -> 0 | J6: =IFERROR(SUMIFS(Program_Retention[Not_Retained],Program_Retention[program_code],$B$1,Program_Retention[Year],$A6,Program_Retention[Semester],$B6,Program_Retention[At_years],$K$4),"-") -> 7 | K6: =SUM(F6:J6) -> 28 | N6: =IFERROR(SUMIFS(Program_Retention[Program_Retain],Program_Retention[program_code],$B$1,Program_Retention[Year],$A6,Program_Retention[Semester],$B6,Program_Retention[At_years],$S$4),"-") -> 7 | O6: =IFERROR(SUMIFS(Program_Retention[Program_Grad],Program_Retention[program_code],$B$1,Program_Retention[Year],$A6,Program_Retention[Semester],$B6,Program_Retention[At_years],$S$4),"-") -> 13 | P6: =IFERROR(SUMIFS(Program_Retention[WCU_Retain],Program_Retention[program_code],$B$1,Program_Retention[Year],$A6,Program_Retention[Semester],$B6,Program_Retention[At_years],$S$4),"-") -> 0 | Q6: =IFERROR(SUMIFS(Program_Retention[WCU_Grad],Program_Retention[program_code],$B$1,Program_Retention[Year],$A6,Program_Retention[Semester],$B6,Program_Retention[At_years],$S$4),"-") -> 0 | R6: =IFERROR(SUMIFS(Program_Retention[Not_Retained],Program_Retention[program_code],$B$1,Program_Retention[Year],$A6,Program_Retention[Semester],$B6,Program_Retention[At_years],$S$4),"-") -> 8 | S6: =SUM(N6:R6) -> 28 | V6: =IFERROR(SUMIFS(Program_Retention[Program_Retain],Program_Retention[program_code],$B$1,Program_Retention[Year],$A6,Program_Retention[Semester],$B6,Program_Retention[At_years],$AA$4),"-") -> 6 | W6: =IFERROR(SUMIFS(Program_Retention[Program_Grad],Program_Retention[program_code],$B$1,Program_Retention[Year],$A6,Program_Retention[Semester],$B6,Program_Retention[At_years],$AA$4),"-") -> 17 | X6: =IFERROR(SUMIFS(Program_Retention[WCU_Retain],Program_Retention[program_code],$B$1,Program_Retention[Year],$A6,Program_Retention[Semester],$B6,Program_Retention[At_years],$AA$4),"-") -> 0 | Y6: =IFERROR(SUMIFS(Program_Retention[WCU_Grad],Program_Retention[program_code],$B$1,Program_Retention[Year],$A6,Program_Retention[Semester],$B6,Program_Retention[At_years],$AA$4),"-") -> 0 | Z6: =IFERROR(SUMIFS(Program_Retention[Not_Retained],Program_Retention[program_code],$B$1,Program_Retention[Year],$A6,Program_Retention[Semester],$B6,Program_Retention[At_years],$AA$4),"-") -> 5 | AA6: =SUM(V6:Z6) -> 28 | AD6: =IFERROR(SUMIFS(Program_Retention[Program_Retain],Program_Retention[program_code],$B$1,Program_Retention[Year],$A6,Program_Retention[Semester],$B6,Program_Retention[At_years],$AI$4),"-") -> 4 | AE6: =IFERROR(SUMIFS(Program_Retention[Program_Grad],Program_Retention[program_code],$B$1,Program_Retention[Year],$A6,Program_Retention[Semester],$B6,Program_Retention[At_years],$AI$4),"-") -> 18 | AF6: =IFERROR(SUMIFS(Program_Retention[WCU_Retain],Program_Retention[program_code],$B$1,Program_Retention[Year],$A6,Program_Retention[Semester],$B6,Program_Retention[At_years],$AI$4),"-") -> 0 | AG6: =IFERROR(SUMIFS(Program_Retention[WCU_Grad],Program_Retention[program_code],$B$1,Program_Retention[Year],$A6,Program_Retention[Semester],$B6,Program_Retention[At_years],$AI$4),"-") -> 0 | AH6: =IFERROR(SUMIFS(Program_Retention[Not_Retained],Program_Retention[program_code],$B$1,Program_Retention[Year],$A6,Program_Retention[Semester],$B6,Program_Retention[At_years],$AI$4),"-") -> 6 | AI6: =SUM(AD6:AH6) -> 28 | AL6: =IFERROR(SUMIFS(Program_Retention[Program_Retain],Program_Retention[program_code],$B$1,Program_Retention[Year],$A6,Program_Retention[Semester],$B6,Program_Retention[At_years],$AQ$4),"-") -> 2 | AM6: =IFERROR(SUMIFS(Program_Retention[Program_Grad],Program_Retention[program_code],$B$1,Program_Retention[Year],$A6,Program_Retention[Semester],$B6,Program_Retention[At_years],$AQ$4),"-") -> 22 | AN6: =IFERROR(SUMIFS(Program_Retention[WCU_Retain],Program_Retention[program_code],$B$1,Program_Retention[Year],$A6,Program_Retention[Semester],$B6,Program_Retention[At_years],$AQ$4),"-") -> 0 | AO6: =IFERROR(SUMIFS(Program_Retention[WCU_Grad],Program_Retention[program_code],$B$1,Program_Retention[Year],$A6,Program_Retention[Semester],$B6,Program_Retention[At_years],$AQ$4),"-") -> 0 | AP6: =IFERROR(SUMIFS(Program_Retention[Not_Retained],Program_Retention[program_code],$B$1,Program_Retention[Year],$A6,Program_Retention[Semester],$B6,Program_Retention[At_years],$AQ$4),"-") -> 4 | AQ6: =SUM(AL6:AP6) -> 28
A7: 1997 | B7: Spring | C7: =SUMIFS(Program_Retention[Cohort_Count],Program_Retention[program_code],$B$1,Program_Retention[Year],$A7,Program_Retention[Semester],$B7,Program_Retention[At_years],$C$4) -> 3 | F7: =IFERROR(SUMIFS(Program_Retention[Program_Retain],Program_Retention[program_code],$B$1,Program_Retention[Year],$A7,Program_Retention[Semester],$B7,Program_Retention[At_years],$K$4),"-") -> 2 | G7: =IFERROR(SUMIFS(Program_Retention[Program_Grad],Program_Retention[program_code],$B$1,Program_Retention[Year],$A7,Program_Retention[Semester],$B7,Program_Retention[At_years],$K$4),"-") -> 0 | H7: =IFERROR(SUMIFS(Program_Retention[WCU_Retain],Program_Retention[program_code],$B$1,Program_Retention[Year],$A7,Program_Retention[Semester],$B7,Program_Retention[At_years],$K$4),"-") -> 0 | I7: =IFERROR(SUMIFS(Program_Retention[WCU_Grad],Program_Retention[program_code],$B$1,Program_Retention[Year],$A7,Program_Retention[Semester],$B7,Program_Retention[At_years],$K$4),"-") -> 0 | J7: =IFERROR(SUMIFS(Program_Retention[Not_Retained],Program_Retention[program_code],$B$1,Program_Retention[Year],$A7,Program_Retention[Semester],$B7,Program_Retention[At_years],$K$4),"-") -> 1 | K7: =SUM(F7:J7) -> 3 | N7: =IFERROR(SUMIFS(Program_Retention[Program_Retain],Program_Retention[program_code],$B$1,Program_Retention[Year],$A7,Program_Retention[Semester],$B7,Program_Retention[At_years],$S$4),"-") -> 1 | O7: =IFERROR(SUMIFS(Program_Retention[Program_Grad],Program_Retention[program_code],$B$1,Program_Retention[Year],$A7,Program_Retention[Semester],$B7,Program_Retention[At_years],$S$4),"-") -> 1 | P7: =IFERROR(SUMIFS(Program_Retention[WCU_Retain],Program_Retention[program_code],$B$1,Program_Retention[Year],$A7,Program_Retention[Semester],$B7,Program_Retention[At_years],$S$4),"-") -> 0 | Q7: =IFERROR(SUMIFS(Program_Retention[WCU_Grad],Program_Retention[program_code],$B$1,Program_Retention[Year],$A7,Program_Retention[Semester],$B7,Program_Retention[At_years],$S$4),"-") -> 0 | R7: =IFERROR(SUMIFS(Program_Retention[Not_Retained],Program_Retention[program_code],$B$1,Program_Retention[Year],$A7,Program_Retention[Semester],$B7,Program_Retention[At_years],$S$4),"-") -> 1 | S7: =SUM(N7:R7) -> 3 | V7: =IFERROR(SUMIFS(Program_Retention[Program_Retain],Program_Retention[program_code],$B$1,Program_Retention[Year],$A7,Program_Retention[Semester],$B7,Program_Retention[At_years],$AA$4),"-") -> 1 | W7: =IFERROR(SUMIFS(Program_Retention[Program_Grad],Program_Retention[program_code],$B$1,Program_Retention[Year],$A7,Program_Retention[Semester],$B7,Program_Retention[At_years],$AA$4),"-") -> 1 | X7: =IFERROR(SUMIFS(Program_Retention[WCU_Retain],Program_Retention[program_code],$B$1,Program_Retention[Year],$A7,Program_Retention[Semester],$B7,Program_Retention[At_years],$AA$4),"-") -> 0 | Y7: =IFERROR(SUMIFS(Program_Retention[WCU_Grad],Program_Retention[program_code],$B$1,Program_Retention[Year],$A7,Program_Retention[Semester],$B7,Program_Retention[At_years],$AA$4),"-") -> 0 | Z7: =IFERROR(SUMIFS(Program_Retention[Not_Retained],Program_Retention[program_code],$B$1,Program_Retention[Year],$A7,Program_Retention[Semester],$B7,Program_Retention[At_years],$AA$4),"-") -> 1 | AA7: =SUM(V7:Z7) -> 3 | AD7: =IFERROR(SUMIFS(Program_Retention[Program_Retain],Program_Retention[program_code],$B$1,Program_Retention[Year],$A7,Program_Retention[Semester],$B7,Program_Retention[At_years],$AI$4),"-") -> 0 | AE7: =IFERROR(SUMIFS(Program_Retention[Program_Grad],Program_Retention[program_code],$B$1,Program_Retention[Year],$A7,Program_Retention[Semester],$B7,Program_Retention[At_years],$AI$4),"-") -> 1 | AF7: =IFERROR(SUMIFS(Program_Retention[WCU_Retain],Program_Retention[program_code],$B$1,Program_Retention[Year],$A7,Program_Retention[Semester],$B7,Program_Retention[At_years],$AI$4),"-") -> 0 | AG7: =IFERROR(SUMIFS(Program_Retention[WCU_Grad],Program_Retention[program_code],$B$1,Program_Retention[Year],$A7,Program_Retention[Semester],$B7,Program_Retention[At_years],$AI$4),"-") -> 0 | AH7: =IFERROR(SUMIFS(Program_Retention[Not_Retained],Program_Retention[program_code],$B$1,Program_Retention[Year],$A7,Program_Retention[Semester],$B7,Program_Retention[At_years],$AI$4),"-") -> 2 | AI7: =SUM(AD7:AH7) -> 3 | AL7: =IFERROR(SUMIFS(Program_Retention[Program_Retain],Program_Retention[program_code],$B$1,Program_Retention[Year],$A7,Program_Retention[Semester],$B7,Program_Retention[At_years],$AQ$4),"-") -> 0 | AM7: =IFERROR(SUMIFS(Program_Retention[Program_Grad],Program_Retention[program_code],$B$1,Program_Retention[Year],$A7,Program_Retention[Semester],$B7,Program_Retention[At_years],$AQ$4),"-") -> 1 | AN7: =IFERROR(SUMIFS(Program_Retention[WCU_Retain],Program_Retention[program_code],$B$1,Program_Retention[Year],$A7,Program_Retention[Semester],$B7,Program_Retention[At_years],$AQ$4),"-") -> 0 | AO7: =IFERROR(SUMIFS(Program_Retention[WCU_Grad],Program_Retention[program_code],$B$1,Program_Retention[Year],$A7,Program_Retention[Semester],$B7,Program_Retention[At_years],$AQ$4),"-") -> 0 | AP7: =IFERROR(SUMIFS(Program_Retention[Not_Retained],Program_Retention[program_code],$B$1,Program_Retention[Year],$A7,Program_Retention[Semester],$B7,Program_Retention[At_years],$AQ$4),"-") -> 2 | AQ7: =SUM(AL7:AP7) -> 3
A8: 1996-1997 | B8: Total | C8: =SUM(C6:C7) -> 31 | F8: =SUM(F6:F7) -> 17 | G8: =SUM(G6:G7) -> 5 | H8: 1 | I8: 0 | J8: 8 | K8: 31 | N8: =SUM(N6:N7) -> 8 | O8: =SUM(O6:O7) -> 14 | P8: 0 | Q8: 0 | R8: 9 | S8: 31 | V8: =SUM(V6:V7) -> 7 | W8: =SUM(W6:W7) -> 18 | X8: 0 | Y8: 0 | Z8: 6 | AA8: 31 | AD8: =SUM(AD6:AD7) -> 4 | AE8: =SUM(AE6:AE7) -> 19 | AF8: 0 | AG8: 0 | AH8: 8 | AI8: 31 | AL8: =SUM(AL6:AL7) -> 2 | AM8: =SUM(AM6:AM7) -> 23 | AN8: 0 | AO8: 0 | AP8: 6 | AQ8: 31
A10: 1997 | B10: Fall | C10: =SUMIFS(Program_Retention[Cohort_Count],Program_Retention[program_code],$B$1,Program_Retention[Year],$A10,Program_Retention[Semester],$B10,Program_Retention[At_years],$C$4) -> 14 | F10: =IFERROR(SUMIFS(Program_Retention[Program_Retain],Program_Retention[program_code],$B$1,Program_Retention[Year],$A10,Program_Retention[Semester],$B10,Program_Retention[At_years],$K$4),"-") -> 7 | G10: =IFERROR(SUMIFS(Program_Retention[Program_Grad],Program_Retention[program_code],$B$1,Program_Retention[Year],$A10,Program_Retention[Semester],$B10,Program_Retention[At_years],$K$4),"-") -> 2 | H10: =IFERROR(SUMIFS(Program_Retention[WCU_Retain],Program_Retention[program_code],$B$1,Program_Retention[Year],$A10,Program_Retention[Semester],$B10,Program_Retention[At_years],$K$4),"-") -> 0 | I10: =IFERROR(SUMIFS(Program_Retention[WCU_Grad],Program_Retention[program_code],$B$1,Program_Retention[Year],$A10,Program_Retention[Semester],$B10,Program_Retention[At_years],$K$4),"-") -> 0 | J10: =IFERROR(SUMIFS(Program_Retention[Not_Retained],Program_Retention[program_code],$B$1,Program_Retention[Year],$A10,Program_Retention[Semester],$B10,Program_Retention[At_years],$K$4),"-") -> 5 | K10: =SUM(F10:J10) -> 14 | N10: =IFERROR(SUMIFS(Program_Retention[Program_Retain],Program_Retention[program_code],$B$1,Program_Retention[Year],$A10,Program_Retention[Semester],$B10,Program_Retention[At_years],$S$4),"-") -> 1 | O10: =IFERROR(SUMIFS(Program_Retention[Program_Grad],Program_Retention[program_code],$B$1,Program_Retention[Year],$A10,Program_Retention[Semester],$B10,Program_Retention[At_years],$S$4),"-") -> 6 | P10: =IFERROR(SUMIFS(Program_Retention[WCU_Retain],Program_Retention[program_code],$B$1,Program_Retention[Year],$A10,Program_Retention[Semester],$B10,Program_Retention[At_years],$S$4),"-") -> 0 | Q10: =IFERROR(SUMIFS(Program_Retention[WCU_Grad],Program_Retention[program_code],$B$1,Program_Retention[Year],$A10,Program_Retention[Semester],$B10,Program_Retention[At_years],$S$4),"-") -> 0 | R10: =IFERROR(SUMIFS(Program_Retention[Not_Retained],Program_Retention[program_code],$B$1,Program_Retention[Year],$A10,Program_Retention[Semester],$B10,Program_Retention[At_years],$S$4),"-") -> 7 | S10: =SUM(N10:R10) -> 14 | V10: =IFERROR(SUMIFS(Program_Retention[Program_Retain],Program_Retention[program_code],$B$1,Program_Retention[Year],$A10,Program_Retention[Semester],$B10,Program_Retention[At_years],$AA$4),"-") -> 2 | W10: =IFERROR(SUMIFS(Program_Retention[Program_Grad],Program_Retention[program_code],$B$1,Program_Retention[Year],$A10,Program_Retention[Semester],$B10,Program_Retention[At_years],$AA$4),"-") -> 7 | X10: =IFERROR(SUMIFS(Program_Retention[WCU_Retain],Program_Retention[program_code],$B$1,Program_Retention[Year],$A10,Program_Retention[Semester],$B10,Program_Retention[At_years],$AA$4),"-") -> 0 | Y10: =IFERROR(SUMIFS(Program_Retention[WCU_Grad],Program_Retention[program_code],$B$1,Program_Retention[Year],$A10,Program_Retention[Semester],$B10,Program_Retention[At_years],$AA$4),"-") -> 0 | Z10: =IFERROR(SUMIFS(Program_Retention[Not_Retained],Program_Retention[program_code],$B$1,Program_Retention[Year],$A10,Program_Retention[Semester],$B10,Program_Retention[At_years],$AA$4),"-") -> 5 | AA10: =SUM(V10:Z10) -> 14 | AD10: =IFERROR(SUMIFS(Program_Retention[Program_Retain],Program_Retention[program_code],$B$1,Program_Retention[Year],$A10,Program_Retention[Semester],$B10,Program_Retention[At_years],$AI$4),"-") -> 0 | AE10: =IFERROR(SUMIFS(Program_Retention[Program_Grad],Program_Retention[program_code],$B$1,Program_Retention[Year],$A10,Program_Retention[Semester],$B10,Program_Retention[At_years],$AI$4),"-") -> 7 | AF10: =IFERROR(SUMIFS(Program_Retention[WCU_Retain],Program_Retention[program_code],$B$1,Program_Retention[Year],$A10,Program_Retention[Semester],$B10,Program_Retention[At_years],$AI$4),"-") -> 0 | AG10: =IFERROR(SUMIFS(Program_Retention[WCU_Grad],Program_Retention[program_code],$B$1,Program_Retention[Year],$A10,Program_Retention[Semester],$B10,Program_Retention[At_years],$AI$4),"-") -> 0 | AH10: =IFERROR(SUMIFS(Program_Retention[Not_Retained],Program_Retention[program_code],$B$1,Program_Retention[Year],$A10,Program_Retention[Semester],$B10,Program_Retention[At_years],$AI$4),"-") -> 7 | AI10: =SUM(AD10:AH10) -> 14 | AL10: =IFERROR(SUMIFS(Program_Retention[Program_Retain],Program_Retention[program_code],$B$1,Program_Retention[Year],$A10,Program_Retention[Semester],$B10,Program_Retention[At_years],$AQ$4),"-") -> 0 | AM10: =IFERROR(SUMIFS(Program_Retention[Program_Grad],Program_Retention[program_code],$B$1,Program_Retention[Year],$A10,Program_Retention[Semester],$B10,Program_Retention[At_years],$AQ$4),"-") -> 8 | AN10: =IFERROR(SUMIFS(Program_Retention[WCU_Retain],Program_Retention[program_code],$B$1,Program_Retention[Year],$A10,Program_Retention[Semester],$B10,Program_Retention[At_years],$AQ$4),"-") -> 0 | AO10: =IFERROR(SUMIFS(Program_Retention[WCU_Grad],Program_Retention[program_code],$B$1,Program_Retention[Year],$A10,Program_Retention[Semester],$B10,Program_Retention[At_years],$AQ$4),"-") -> 0 | AP10: =IFERROR(SUMIFS(Program_Retention[Not_Retained],Program_Retention[program_code],$B$1,Program_Retention[Year],$A10,Program_Retention[Semester],$B10,Program_Retention[At_years],$AQ$4),"-") -> 6 | AQ10: =SUM(AL10:AP10) -> 14
